Workbook

Sheet Main
B10: 2023-03-31
B12: Sheet No. | C12: Template Name | D12: Summary
B13: 1 | C13: Future Intra | D13: For Intraday trading in F&O segment
B14: 2 | C14: Cash Intra | D14: For Intraday trading in cash market segment
B15: 3 | C15: Mid-cap Intra | D15: For Intraday trading in Mid-cap stocks
B16: 4 | C16: Bulk Deals | D16: Reveals Bulk Deals carried on NSE & BSE
B17: 5 | C17: Call Tracker
K27: `

Sheet Future Intra
M5: Back to Main Page
A6: FOR INTRA DAY TRADING | L6: =Main!B10 -> 2023-03-31
A9: Sr.no | B9: Sector | C9: Scrip | D9: Expiry Date | E9: CLOSE RATE | F9: Pivot Point | G9: Supports | J9: Resistances
E10: Point | F10: Point | G10: S1 | H10: S2 | I10: S3 | J10: R1 | K10: R2 | L10: R3 | M10: HIGH | N10: LOW | O10: OI | P10: % Change in OI
A11: 1 | B11: Index | C11: NIFTY | D11: 2023-04-27 | E11: 17213.10 | F11: 17168.03 | G11: 17097.07 | H11: 16981.03 | I11: 16910.07 | J11: 17284.07 | K11: 17355.03 | L11: 17471.07 | M11: 17239 | N11: 17052 | O11: 13605200 | P11: -17.89%
A12: 2 | B12: Index | C12: BANKNIFTY | D12: 2023-04-27 | E12: 40221.60 | F12: 40134.17 | G12: 39957.28 | H12: 39692.97 | I12: 39516.08 | J12: 40398.48 | K12: 40575.37 | L12: 40839.68 | M12: 40311.05 | N12: 39869.85 | O12: 5050200 | P12: -12.30%
A13: 3 | B13: Index | C13: FINNIFTY | D13: 2023-04-25 | E13: 17931.05 | F13: 17900.95 | G13: 17836.90 | H13: 17742.75 | I13: 17678.70 | J13: 17995.10 | K13: 18059.15 | L13: 18153.30 | M13: 17965 | N13: 17806.8 | O13: 17400 | P13: 24.64%
A14: 4 | B14: Index | C14: MIDCPNIFTY | D14: 2023-04-25 | E14: 7045.15 | F14: 2348.38 | G14: 4696.77 | H14: 2348.38 | I14: 4696.77 | J14: 4696.77 | K14: 2348.38 | L14: 4696.77 | M14: 0 | N14: 0 | O14: 0
A15: 5 | B15: Chemical | C15: AARTIIND | D15: 2023-04-27 | E15: 514.05 | F15: 508.32 | G15: 496.73 | H15: 479.42 | I15: 467.83 | J15: 525.63 | K15: 537.22 | L15: 554.53 | M15: 519.9 | N15: 491 | O15: 3756150 | P15: -12.20%
A16: 6 | B16: Capital_Goods | C16: ABB | D16: 2023-04-27 | E16: 3382.90 | F16: 3378.37 | G16: 3334.88 | H16: 3286.87 | I16: 3243.38 | J16: 3426.38 | K16: 3469.87 | L16: 3517.88 | M16: 3421.85 | N16: 3330.35 | O16: 1468500 | P16: -7.42%
A17: 7 | B17: Pharma | C17: ABBOTINDIA | D17: 2023-04-27 | E17: 21990.20 | F17: 21961.73 | G17: 21853.47 | H17: 21716.73 | I17: 21608.47 | J17: 22098.47 | K17: 22206.73 | L17: 22343.47 | M17: 22070 | N17: 21825 | O17: 42560 | P17: -7.56%
A18: 8 | B18: Others | C18: ABCAPITAL | D18: 2023-04-27 | E18: 154.55 | F18: 152.43 | G18: 149.82 | H18: 145.08 | I18: 142.47 | J18: 157.17 | K18: 159.78 | L18: 164.52 | M18: 155.05 | N18: 147.7 | O18: 29365200 | P18: -7.39%
A19: 9 | B19: Textile | C19: ABFRL | D19: 2023-04-27 | E19: 213.05 | F19: 211.88 | G19: 209.82 | H19: 206.58 | I19: 204.52 | J19: 215.12 | K19: 217.18 | L19: 220.42 | M19: 213.95 | N19: 208.65 | O19: 21806200 | P19: -9.32%
A20: 10 | B20: Cement | C20: ACC | D20: 2023-04-27 | E20: 1641.40 | F20: 1640.10 | G20: 1616.90 | H20: 1592.40 | I20: 1569.20 | J20: 1664.60 | K20: 1687.80 | L20: 1712.30 | M20: 1663.3 | N20: 1615.6 | O20: 4876250 | P20: -1.51%
A21: 11 | B21: Others | C21: ADANIENT | D21: 2023-04-27 | E21: 1752.55 | F21: 1704.70 | G21: 1646.85 | H21: 1541.15 | I21: 1483.30 | J21: 1810.40 | K21: 1868.25 | L21: 1973.95 | M21: 1762.55 | N21: 1599 | O21: 14579750 | P21: -8.96%
A22: 12 | B22: Others | C22: ADANIPORTS | D22: 2023-04-27 | E22: 640.40 | F22: 627.50 | G22: 610.75 | H22: 581.10 | I22: 564.35 | J22: 657.15 | K22: 673.90 | L22: 703.55 | M22: 644.25 | N22: 597.85 | O22: 43023750 | P22: 9.21%
A23: 13 | B23: Pharma | C23: ALKEM | D23: 2023-04-27 | E23: 3321.30 | F23: 3303.83 | G23: 3275.77 | H23: 3230.23 | I23: 3202.17 | J23: 3349.37 | K23: 3377.43 | L23: 3422.97 | M23: 3331.9 | N23: 3258.3 | O23: 436600 | P23: -8.97%
A24: 14 | B24: Cement | C24: AMBUJACEM | D24: 2023-04-27 | E24: 367.25 | F24: 366.28 | G24: 362.07 | H24: 356.88 | I24: 352.67 | J24: 371.47 | K24: 375.68 | L24: 380.87 | M24: 370.5 | N24: 361.1 | O24: 57875400 | P24: -2.68%
A25: 15 | B25: Others | C25: APOLLOHOSP | D25: 2023-04-27 | E25: 4403.40 | F25: 4386.05 | G25: 4352.45 | H25: 4301.50 | I25: 4267.90 | J25: 4437.00 | K25: 4470.60 | L25: 4521.55 | M25: 4419.65 | N25: 4335.1 | O25: 1247000 | P25: -9.83%
A26: 16 | B26: Automobile | C26: APOLLOTYRE | D26: 2023-04-27 | E26: 313.25 | F26: 311.92 | G26: 309.28 | H26: 305.32 | I26: 302.68 | J26: 315.88 | K26: 318.52 | L26: 322.48 | M26: 314.55 | N26: 307.95 | O26: 12337500 | P26: -14.88%
A27: 17 | B27: Automobile | C27: ASHOKLEY | D27: 2023-04-27 | E27: 137.70 | F27: 137.02 | G27: 136.03 | H27: 134.37 | I27: 133.38 | J27: 138.68 | K27: 139.67 | L27: 141.33 | M27: 138 | N27: 135.35 | O27: 52535000 | P27: -18.21%
A28: 18 | B28: FMCG | C28: ASIANPAINT | D28: 2023-04-27 | E28: 2790.25 | F28: 2794.17 | G28: 2772.78 | H28: 2755.32 | I28: 2733.93 | J28: 2811.63 | K28: 2833.02 | L28: 2850.48 | M28: 2815.55 | N28: 2776.7 | O28: 6016600 | P28: -2.95%
A29: 19 | B29: Others | C29: ASTRAL | D29: 2023-04-27 | E29: 1350.55 | F29: 1339.97 | G29: 1323.98 | H29: 1297.42 | I29: 1281.43 | J29: 1366.53 | K29: 1382.52 | L29: 1409.08 | M29: 1355.95 | N29: 1313.4 | O29: 1960514 | P29: -5.43%
A30: 20 | B30: Others | C30: ATUL | D30: 2023-04-27 | E30: 7005.40 | F30: 6989.30 | G30: 6954.60 | H30: 6903.80 | I30: 6869.10 | J30: 7040.10 | K30: 7074.80 | L30: 7125.60 | M30: 7024 | N30: 6938.5 | O30: 131175 | P30: -22.51%
A31: 21 | B31: Banking | C31: AUBANK | D31: 2023-04-27 | E31: 563.55 | F31: 561.73 | G31: 555.52 | H31: 547.48 | I31: 541.27 | J31: 569.77 | K31: 575.98 | L31: 584.02 | M31: 567.95 | N31: 553.7 | O31: 12526000 | P31: -5.13%
A32: 22 | B32: Pharma | C32: AUROPHARMA | D32: 2023-04-27 | E32: 513.65 | F32: 512.97 | G32: 508.93 | H32: 504.22 | I32: 500.18 | J32: 517.68 | K32: 521.72 | L32: 526.43 | M32: 517 | N32: 508.25 | O32: 12238000 | P32: -6.63%
A33: 23 | B33: Banking | C33: AXISBANK | D33: 2023-04-27 | E33: 848.55 | F33: 846.00 | G33: 839.65 | H33: 830.75 | I33: 824.40 | J33: 854.90 | K33: 861.25 | L33: 870.15 | M33: 852.35 | N33: 837.1 | O33: 50289600 | P33: -2.76%
A34: 24 | B34: Automobile | C34: BAJAJ-AUTO | D34: 2023-04-27 | E34: 3873.65 | F34: 3858.17 | G34: 3833.58 | H34: 3793.52 | I34: 3768.93 | J34: 3898.23 | K34: 3922.82 | L34: 3962.88 | M34: 3882.75 | N34: 3818.1 | O34: 1327250 | P34: -6.28%
A35: 25 | B35: Finance | C35: BAJAJFINSV | D35: 2023-04-27 | E35: 1253.85 | F35: 1248.73 | G35: 1238.57 | H35: 1223.28 | I35: 1213.12 | J35: 1264.02 | K35: 1274.18 | L35: 1289.47 | M35: 1258.9 | N35: 1233.45 | O35: 10015500 | P35: -6.17%
A36: 26 | B36: Finance | C36: BAJFINANCE | D36: 2023-04-27 | E36: 5672.10 | F36: 5651.87 | G36: 5611.73 | H36: 5551.37 | I36: 5511.23 | J36: 5712.23 | K36: 5752.37 | L36: 5812.73 | M36: 5692 | N36: 5591.5 | O36: 5296750 | P36: -7.57%
A37: 27 | B37: Automobile | C37: BALKRISIND | D37: 2023-04-27 | E37: 1975.00 | F37: 1973.75 | G37: 1964.75 | H37: 1954.50 | I37: 1945.50 | J37: 1984.00 | K37: 1993.00 | L37: 2003.25 | M37: 1982.75 | N37: 1963.5 | O37: 1511100 | P37: -6.06%
A38: 28 | B38: Others | C38: BALRAMCHIN | D38: 2023-04-27 | E38: 377.80 | F38: 373.23 | G38: 367.12 | H38: 356.43 | I38: 350.32 | J38: 383.92 | K38: 390.03 | L38: 400.72 | M38: 379.35 | N38: 362.55 | O38: 5473600 | P38: -5.31%
A39: 29 | B39: Banking | C39: BANDHANBNK | D39: 2023-04-27 | E39: 191.90 | F39: 190.75 | G39: 187.80 | H39: 183.70 | I39: 180.75 | J39: 194.85 | K39: 197.80 | L39: 201.90 | M39: 193.7 | N39: 186.65 | O39: 49093200 | P39: 1.92%
A40: 30 | B40: Banking | C40: BANKBARODA | D40: 2023-04-27 | E40: 166.00 | F40: 164.48 | G40: 162.62 | H40: 159.23 | I40: 157.37 | J40: 167.87 | K40: 169.73 | L40: 173.12 | M40: 166.35 | N40: 161.1 | O40: 85474350 | P40: -4.70%
A41: 31 | B41: FMCG | C41: BATAINDIA | D41: 2023-04-27 | E41: 1414.60 | F41: 1407.88 | G41: 1397.77 | H41: 1380.93 | I41: 1370.82 | J41: 1424.72 | K41: 1434.83 | L41: 1451.67 | M41: 1418 | N41: 1391.05 | O41: 2387825 | P41: -8.62%
A42: 32 | B42: Capital_Goods | C42: BEL | D42: 2023-04-27 | E42: 92.10 | F42: 91.68 | G42: 90.97 | H42: 89.83 | I42: 89.12 | J42: 92.82 | K42: 93.53 | L42: 94.67 | M42: 92.4 | N42: 90.55 | O42: 96375600 | P42: -7.63%
A43: 33 | B43: FMCG | C43: BERGEPAINT | D43: 2023-04-27 | E43: 573.45 | F43: 574.93 | G43: 570.67 | H43: 567.88 | I43: 563.62 | J43: 577.72 | K43: 581.98 | L43: 584.77 | M43: 579.2 | N43: 572.15 | O43: 7377700 | P43: -1.86%
A44: 34 | B44: Automobile | C44: BHARATFORG | D44: 2023-04-27 | E44: 763.40 | F44: 760.13 | G44: 754.27 | H44: 745.13 | I44: 739.27 | J44: 769.27 | K44: 775.13 | L44: 784.27 | M44: 766 | N44: 751 | O44: 6858000 | P44: -17.79%
A45: 35 | B45: Telecom | C45: BHARTIARTL | D45: 2023-04-27 | E45: 750.00 | F45: 750.95 | G45: 742.35 | H45: 734.70 | I45: 726.10 | J45: 758.60 | K45: 767.20 | L45: 774.85 | M45: 759.55 | N45: 743.3 | O45: 36852400 | P45: -7.94%
A46: 36 | B46: Capital_Goods | C46: BHEL | D46: 2023-04-27 | E46: 70.95 | F46: 71.02 | G46: 70.28 | H46: 69.62 | I46: 68.88 | J46: 71.68 | K46: 72.42 | L46: 73.08 | M46: 71.75 | N46: 70.35 | O46: 75778500 | P46: -1.14%
A47: 37 | B47: Pharma | C47: BIOCON | D47: 2023-04-27 | E47: 203.35 | F47: 203.12 | G47: 201.23 | H47: 199.12 | I47: 197.23 | J47: 205.23 | K47: 207.12 | L47: 209.23 | M47: 205 | N47: 201 | O47: 33352300 | P47: -7.92%
A48: 38 | B48: Automobile | C48: BOSCHLTD | D48: 2023-04-27 | E48: 18852.90 | F48: 18718.85 | G48: 18549.05 | H48: 18245.20 | I48: 18075.40 | J48: 19022.70 | K48: 19192.50 | L48: 19496.35 | M48: 18888.65 | N48: 18415 | O48: 129550 | P48: -13.14%
A49: 39 | B49: Oil_Gas | C49: BPCL | D49: 2023-04-27 | E49: 343.15 | F49: 342.32 | G49: 340.13 | H49: 337.12 | I49: 334.93 | J49: 345.33 | K49: 347.52 | L49: 350.53 | M49: 344.5 | N49: 339.3 | O49: 13642200 | P49: -3.93%
A50: 40 | B50: FMCG | C50: BRITANNIA | D50: 2023-04-27 | E50: 4252.60 | F50: 4235.68 | G50: 4210.57 | H50: 4168.53 | I50: 4143.42 | J50: 4277.72 | K50: 4302.83 | L50: 4344.87 | M50: 4260.8 | N50: 4193.65 | O50: 1212400 | P50: -13.54%
A51: 41 | B51: Technology | C51: BSOFT | D51: 2023-04-27 | E51: 257.85 | F51: 256.38 | G51: 253.77 | H51: 249.68 | I51: 247.07 | J51: 260.47 | K51: 263.08 | L51: 267.17 | M51: 259 | N51: 252.3 | O51: 7034000 | P51: -7.71%
A52: 42 | B52: Banking | C52: CANBK | D52: 2023-04-27 | E52: 283.15 | F52: 281.10 | G52: 278.05 | H52: 272.95 | I52: 269.90 | J52: 286.20 | K52: 289.25 | L52: 294.35 | M52: 284.15 | N52: 276 | O52: 39735900 | P52: -3.91%
A53: 43 | B53: Finance | C53: CANFINHOME | D53: 2023-04-27 | E53: 520.15 | F53: 521.37 | G53: 514.78 | H53: 509.42 | I53: 502.83 | J53: 526.73 | K53: 533.32 | L53: 538.68 | M53: 527.95 | N53: 516 | O53: 3579225 | P53: 2.06%
A54: 44 | B54: Others | C54: CHAMBLFERT | D54: 2023-04-27 | E54: 261.45 | F54: 257.92 | G54: 253.78 | H54: 246.12 | I54: 241.98 | J54: 265.58 | K54: 269.72 | L54: 277.38 | M54: 262.05 | N54: 250.25 | O54: 4516500 | P54: -10.25%
A55: 45 | B55: Finance | C55: CHOLAFIN | D55: 2023-04-27 | E55: 753.45 | F55: 748.05 | G55: 740.35 | H55: 727.25 | I55: 719.55 | J55: 761.15 | K55: 768.85 | L55: 781.95 | M55: 755.75 | N55: 734.95 | O55: 9843750 | P55: -4.09%
A56: 46 | B56: Pharma | C56: CIPLA | D56: 2023-04-27 | E56: 895.65 | F56: 896.53 | G56: 890.87 | H56: 886.08 | I56: 880.42 | J56: 901.32 | K56: 906.98 | L56: 911.77 | M56: 902.2 | N56: 891.75 | O56: 12707500 | P56: -11.12%
A57: 47 | B57: Others | C57: COALINDIA | D57: 2023-04-27 | E57: 213.20 | F57: 212.28 | G57: 210.27 | H57: 207.33 | I57: 205.32 | J57: 215.22 | K57: 217.23 | L57: 220.17 | M57: 214.3 | N57: 209.35 | O57: 42369600 | P57: -5.47%
A58: 48 | B58: Technology | C58: COFORGE | D58: 2023-04-27 | E58: 3685.85 | F58: 3659.00 | G58: 3618.00 | H58: 3550.15 | I58: 3509.15 | J58: 3726.85 | K58: 3767.85 | L58: 3835.70 | M58: 3700 | N58: 3591.15 | O58: 574800 | P58: -18.19%
A59: 49 | B59: FMCG | C59: COLPAL | D59: 2023-04-27 | E59: 1494.45 | F59: 1496.52 | G59: 1485.43 | H59: 1476.42 | I59: 1465.33 | J59: 1505.53 | K59: 1516.62 | L59: 1525.63 | M59: 1507.6 | N59: 1487.5 | O59: 1411900 | P59: -28.84%
A60: 50 | B60: Others | C60: CONCOR | D60: 2023-04-27 | E60: 575.60 | F60: 570.75 | G60: 564.15 | H60: 552.70 | I60: 546.10 | J60: 582.20 | K60: 588.80 | L60: 600.25 | M60: 577.35 | N60: 559.3 | O60: 8336000 | P60: -7.54%
A61: 51 | B61: Others | C61: COROMANDEL | D61: 2023-04-27 | E61: 862.65 | F61: 863.27 | G61: 853.03 | H61: 843.42 | I61: 833.18 | J61: 872.88 | K61: 883.12 | L61: 892.73 | M61: 873.5 | N61: 853.65 | O61: 1346100 | P61: -17.47%
A62: 52 | B62: Capital_Goods | C62: CROMPTON | D62: 2023-04-27 | E62: 293.95 | F62: 294.92 | G62: 291.53 | H62: 289.12 | I62: 285.73 | J62: 297.33 | K62: 300.72 | L62: 303.13 | M62: 298.3 | N62: 292.5 | O62: 5607000 | P62: -5.89%
A63: 53 | B63: Banking | C63: CUB | D63: 2023-04-27 | E63: 123.65 | F63: 123.05 | G63: 122.00 | H63: 120.35 | I63: 119.30 | J63: 124.70 | K63: 125.75 | L63: 127.40 | M63: 124.1 | N63: 121.4 | O63: 15015000 | P63: -8.11%
A64: 54 | B64: Capital_Goods | C64: CUMMINSIND | D64: 2023-04-27 | E64: 1648.60 | F64: 1639.45 | G64: 1626.05 | H64: 1603.50 | I64: 1590.10 | J64: 1662.00 | K64: 1675.40 | L64: 1697.95 | M64: 1652.85 | N64: 1616.9 | O64: 2671800 | P64: -18.99%
A65: 55 | B65: FMCG | C65: DABUR | D65: 2023-04-27 | E65: 538.85 | F65: 537.43 | G65: 533.92 | H65: 528.98 | I65: 525.47 | J65: 542.37 | K65: 545.88 | L65: 550.82 | M65: 540.95 | N65: 532.5 | O65: 10673750 | P65: -1.65%
A66: 56 | B66: Cement | C66: DALBHARAT | D66: 2023-04-27 | E66: 1947.00 | F66: 1924.00 | G66: 1896.00 | H66: 1845.00 | I66: 1817.00 | J66: 1975.00 | K66: 2003.00 | L66: 2054.00 | M66: 1952 | N66: 1873 | O66: 1764000 | P66: -0.65%
A67: 57 | B67: Chemical | C67: DEEPAKNTR | D67: 2023-04-27 | E67: 1799.45 | F67: 1798.75 | G67: 1784.55 | H67: 1769.65 | I67: 1755.45 | J67: 1813.65 | K67: 1827.85 | L67: 1842.75 | M67: 1812.95 | N67: 1783.85 | O67: 1590000 | P67: -30.97%
A68: 58 | B68: Others | C68: DELTACORP | D68: 2023-04-27 | E68: 179.25 | F68: 177.90 | G68: 175.80 | H68: 172.35 | I68: 170.25 | J68: 181.35 | K68: 183.45 | L68: 186.90 | M68: 180 | N68: 174.45 | O68: 17054800 | P68: -1.66%
A69: 59 | B69: Pharma | C69: DIVISLAB | D69: 2023-04-27 | E69: 2838.90 | F69: 2832.52 | G69: 2818.58 | H69: 2798.27 | I69: 2784.33 | J69: 2852.83 | K69: 2866.77 | L69: 2887.08 | M69: 2846.45 | N69: 2812.2 | O69: 2509650 | P69: -17.47%
A70: 60 | B70: Others | C70: DIXON | D70: 2023-04-27 | E70: 2800.05 | F70: 2811.88 | G70: 2758.22 | H70: 2716.38 | I70: 2662.72 | J70: 2853.72 | K70: 2907.38 | L70: 2949.22 | M70: 2865.55 | N70: 2770.05 | O70: 632000 | P70: 0.54%
A71: 61 | B71: Realty | C71: DLF | D71: 2023-04-27 | E71: 355.55 | F71: 353.52 | G71: 350.33 | H71: 345.12 | I71: 341.93 | J71: 358.73 | K71: 361.92 | L71: 367.13 | M71: 356.7 | N71: 348.3 | O71: 43112850 | P71: -0.17%
A72: 62 | B72: Pharma | C72: DRREDDY | D72: 2023-04-27 | E72: 4608.05 | F72: 4593.05 | G72: 4573.00 | H72: 4537.95 | I72: 4517.90 | J72: 4628.10 | K72: 4648.15 | L72: 4683.20 | M72: 4613.1 | N72: 4558 | O72: 2316250 | P72: -5.01%
A73: 63 | B73: Automobile | C73: EICHERMOT | D73: 2023-04-27 | E73: 2958.10 | F73: 2929.25 | G73: 2895.50 | H73: 2832.90 | I73: 2799.15 | J73: 2991.85 | K73: 3025.60 | L73: 3088.20 | M73: 2963 | N73: 2866.65 | O73: 3190075 | P73: -9.95%
A74: 64 | B74: Automobile | C74: ESCORTS | D74: 2023-04-27 | E74: 1872.80 | F74: 1860.70 | G74: 1842.95 | H74: 1813.10 | I74: 1795.35 | J74: 1890.55 | K74: 1908.30 | L74: 1938.15 | M74: 1878.45 | N74: 1830.85 | O74: 1274900 | P74: -18.60%
A75: 65 | B75: Automobile | C75: EXIDEIND | D75: 2023-04-27 | E75: 178.65 | F75: 177.35 | G75: 175.50 | H75: 172.35 | I75: 170.50 | J75: 180.50 | K75: 182.35 | L75: 185.50 | M75: 179.2 | N75: 174.2 | O75: 15933600 | P75: -11.23%
A76: 66 | B76: Banking | C76: FEDERALBNK | D76: 2023-04-27 | E76: 129.85 | F76: 128.92 | G76: 127.38 | H76: 124.92 | I76: 123.38 | J76: 131.38 | K76: 132.92 | L76: 135.38 | M76: 130.45 | N76: 126.45 | O76: 55615000 | P76: -15.48%
A77: 67 | B77: Technology | C77: FSL
A78: 68 | B78: Oil_Gas | C78: GAIL | D78: 2023-04-27 | E78: 106.35 | F78: 105.47 | G78: 103.98 | H78: 101.62 | I78: 100.13 | J78: 107.83 | K78: 109.32 | L78: 111.68 | M78: 106.95 | N78: 103.1 | O78: 62485350 | P78: -24.42%
A79: 69 | B79: Pharma | C79: GLENMARK | D79: 2023-04-27 | E79: 449.70 | F79: 450.93 | G79: 447.17 | H79: 444.63 | I79: 440.87 | J79: 453.47 | K79: 457.23 | L79: 459.77 | M79: 454.7 | N79: 448.4 | O79: 5420100 | P79: -7.27%
A80: 70 | B80: Infrastructure | C80: GMRINFRA | D80: 2023-04-27 | E80: 39.20 | F80: 38.77 | G80: 38.13 | H80: 37.07 | I80: 36.43 | J80: 39.83 | K80: 40.47 | L80: 41.53 | M80: 39.4 | N80: 37.7 | O80: 120600000 | P80: -25.88%
A81: 71 | B81: Others | C81: GNFC | D81: 2023-04-27 | E81: 497.75 | F81: 496.13 | G81: 492.02 | H81: 486.28 | I81: 482.17 | J81: 501.87 | K81: 505.98 | L81: 511.72 | M81: 500.25 | N81: 490.4 | O81: 7715500 | P81: -6.46%
A82: 72 | B82: FMCG | C82: GODREJCP | D82: 2023-04-27 | E82: 972.35 | F82: 968.77 | G82: 963.58 | H82: 954.82 | I82: 949.63 | J82: 977.53 | K82: 982.72 | L82: 991.48 | M82: 973.95 | N82: 960 | O82: 5802000 | P82: -2.11%
A83: 73 | B83: Realty | C83: GODREJPROP | D83: 2023-04-27 | E83: 1030.95 | F83: 1026.15 | G83: 1018.05 | H83: 1005.15 | I83: 997.05 | J83: 1039.05 | K83: 1047.15 | L83: 1060.05 | M83: 1034.25 | N83: 1013.25 | O83: 4540700 | P83: -5.92%
A84: 74 | B84: Pharma | C84: GRANULES | D84: 2023-04-27 | E84: 275.90 | F84: 274.28 | G84: 271.77 | H84: 267.63 | I84: 265.12 | J84: 278.42 | K84: 280.93 | L84: 285.07 | M84: 276.8 | N84: 270.15 | O84: 6458000 | P84: -5.67%
A85: 75 | B85: Cement | C85: GRASIM | D85: 2023-04-27 | E85: 1647.30 | F85: 1640.53 | G85: 1630.07 | H85: 1612.83 | I85: 1602.37 | J85: 1657.77 | K85: 1668.23 | L85: 1685.47 | M85: 1651 | N85: 1623.3 | O85: 10833800 | P85: -2.35%
A86: 76 | B86: Oil_Gas | C86: GUJGASLTD | D86: 2023-04-27 | E86: 473.75 | F86: 473.83 | G86: 469.42 | H86: 465.08 | I86: 460.67 | J86: 478.17 | K86: 482.58 | L86: 486.92 | M86: 478.25 | N86: 469.5 | O86: 3598750 | P86: -12.65%
A87: 77 | B87: Others | C87: HAL | D87: 2023-04-27 | E87: 2717.60 | F87: 2694.83 | G87: 2662.77 | H87: 2607.93 | I87: 2575.87 | J87: 2749.67 | K87: 2781.73 | L87: 2836.57 | M87: 2726.9 | N87: 2640 | O87: 2476500 | P87: -21.66%
A88: 78 | B88: Capital_Goods | C88: HAVELLS | D88: 2023-04-27 | E88: 1188.35 | F88: 1174.68 | G88: 1158.42 | H88: 1128.48 | I88: 1112.22 | J88: 1204.62 | K88: 1220.88 | L88: 1250.82 | M88: 1190.95 | N88: 1144.75 | O88: 3729500 | P88: -22.16%
A89: 79 | B89: Technology | C89: HCLTECH | D89: 2023-04-27 | E89: 1074.00 | F89: 1066.48 | G89: 1056.02 | H89: 1038.03 | I89: 1027.57 | J89: 1084.47 | K89: 1094.93 | L89: 1112.92 | M89: 1076.95 | N89: 1048.5 | O89: 10358600 | P89: -10.83%
A90: 80 | B90: Finance | C90: HDFC | D90: 2023-04-27 | E90: 2621.25 | F90: 2616.97 | G90: 2604.93 | H90: 2588.62 | I90: 2576.58 | J90: 2633.28 | K90: 2645.32 | L90: 2661.63 | M90: 2629 | N90: 2600.65 | O90: 22038000 | P90: -7.85%
A91: 81 | B91: Finance | C91: HDFCAMC | D91: 2023-04-27 | E91: 1689.30 | F91: 1691.57 | G91: 1676.73 | H91: 1664.17 | I91: 1649.33 | J91: 1704.13 | K91: 1718.97 | L91: 1731.53 | M91: 1706.4 | N91: 1679 | O91: 2876100 | P91: -13.94%
A92: 82 | B92: Banking | C92: HDFCBANK | D92: 2023-04-27 | E92: 1602.40 | F92: 1601.80 | G92: 1592.95 | H92: 1583.50 | I92: 1574.65 | J92: 1611.25 | K92: 1620.10 | L92: 1629.55 | M92: 1610.65 | N92: 1592.35 | O92: 70181100 | P92: -4.61%
A93: 83 | B93: Finance | C93: HDFCLIFE | D93: 2023-04-27 | E93: 499.30 | F93: 496.45 | G93: 492.40 | H93: 485.50 | I93: 481.45 | J93: 503.35 | K93: 507.40 | L93: 514.30 | M93: 500.5 | N93: 489.55 | O93: 17433900 | P93: -10.87%
A94: 84 | B94: Automobile | C94: HEROMOTOCO | D94: 2023-04-27 | E94: 2324.55 | F94: 2305.98 | G94: 2280.12 | H94: 2235.68 | I94: 2209.82 | J94: 2350.42 | K94: 2376.28 | L94: 2420.72 | M94: 2331.85 | N94: 2261.55 | O94: 2721900 | P94: -10.12%
A95: 85 | B95: Metals | C95: HINDALCO | D95: 2023-04-27 | E95: 401.55 | F95: 398.55 | G95: 394.40 | H95: 387.25 | I95: 383.10 | J95: 405.70 | K95: 409.85 | L95: 417.00 | M95: 402.7 | N95: 391.4 | O95: 23275000 | P95: -11.03%
A96: 86 | B96: Metals | C96: HINDCOPPER | D96: 2023-04-27 | E96: 97.30 | F96: 96.75 | G96: 95.70 | H96: 94.10 | I96: 93.05 | J96: 98.35 | K96: 99.40 | L96: 101.00 | M96: 97.8 | N96: 95.15 | O96: 17414400 | P96: -9.89%
A97: 87 | B97: Oil_Gas | C97: HINDPETRO | D97: 2023-04-27 | E97: 236.50 | F97: 235.88 | G97: 234.12 | H97: 231.73 | I97: 229.97 | J97: 238.27 | K97: 240.03 | L97: 242.42 | M97: 237.65 | N97: 233.5 | O97: 19269900 | P97: -4.38%
A98: 88 | B98: FMCG | C98: HINDUNILVR | D98: 2023-04-27 | E98: 2545.05 | F98: 2529.47 | G98: 2507.28 | H98: 2469.52 | I98: 2447.33 | J98: 2567.23 | K98: 2589.42 | L98: 2627.18 | M98: 2551.65 | N98: 2491.7 | O98: 8403300 | P98: -10.21%
A99: 89 | B99: Others | C99: HONAUT | D99: 2023-04-27 | E99: 35586.50 | F99: 35701.40 | G99: 35284.75 | H99: 34983.00 | I99: 34566.35 | J99: 36003.15 | K99: 36419.80 | L99: 36721.55 | M99: 36118.05 | N99: 35399.65 | O99: 18135 | P99: -3.59%
A100: 90 | B100: Finance | C100: IBULHSGFIN | D100: 2023-04-27 | E100: 97.15 | F100: 95.77 | G100: 93.78 | H100: 90.42 | I100: 88.43 | J100: 99.13 | K100: 101.12 | L100: 104.48 | M100: 97.75 | N100: 92.4 | O100: 43500000 | P100: 0.75%
A101: 91 | B101: Banking | C101: ICICIBANK | D101: 2023-04-27 | E101: 859.20 | F101: 861.13 | G101: 854.27 | H101: 849.33 | I101: 842.47 | J101: 866.07 | K101: 872.93 | L101: 877.87 | M101: 868 | N101: 856.2 | O101: 63238000 | P101: 0.05%
A102: 92 | B102: Finance | C102: ICICIGI | D102: 2023-04-27 | E102: 1083.50 | F102: 1080.83 | G102: 1073.72 | H102: 1063.93 | I102: 1056.82 | J102: 1090.62 | K102: 1097.73 | L102: 1107.52 | M102: 1087.95 | N102: 1071.05 | O102: 3708125 | P102: -2.51%
A103: 93 | B103: Finance | C103: ICICIPRULI | D103: 2023-04-27 | E103: 429.20 | F103: 427.02 | G103: 423.73 | H103: 418.27 | I103: 414.98 | J103: 432.48 | K103: 435.77 | L103: 441.23 | M103: 430.3 | N103: 421.55 | O103: 13545000 | P103: -10.20%
A104: 94 | B104: Telecom | C104: IDEA | D104: 2023-04-27 | E104: 5.95 | F104: 5.97 | G104: 5.83 | H104: 5.72 | I104: 5.58 | J104: 6.08 | K104: 6.22 | L104: 6.33 | M104: 6.1 | N104: 5.85 | O104: 499100000 | P104: -19.04%
A105: 95 | B105: Finance | C105: IDFC | D105: 2023-04-27 | E105: 79.75 | F105: 79.15 | G105: 78.25 | H105: 76.75 | I105: 75.85 | J105: 80.65 | K105: 81.55 | L105: 83.05 | M105: 80.05 | N105: 77.65 | O105: 165250000 | P105: -13.00%
A106: 96 | B106: Banking | C106: IDFCFIRSTB | D106: 2023-04-27 | E106: 54.45 | F106: 53.87 | G106: 53.13 | H106: 51.82 | I106: 51.08 | J106: 55.18 | K106: 55.92 | L106: 57.23 | M106: 54.6 | N106: 52.55 | O106: 183075000 | P106: -4.22%
A107: 97 | B107: Others | C107: IEX | D107: 2023-04-27 | E107: 129.80 | F107: 129.23 | G107: 127.17 | H107: 124.53 | I107: 122.47 | J107: 131.87 | K107: 133.93 | L107: 136.57 | M107: 131.3 | N107: 126.6 | O107: 42671250 | P107: -1.08%
A108: 98 | B108: Oil_Gas | C108: IGL | D108: 2023-04-27 | E108: 441.85 | F108: 441.20 | G108: 438.65 | H108: 435.45 | I108: 432.90 | J108: 444.40 | K108: 446.95 | L108: 450.15 | M108: 443.75 | N108: 438 | O108: 11610500 | P108: -4.32%
A109: 99 | B109: Infrastructure | C109: INDHOTEL | D109: 2023-04-27 | E109: 321.90 | F109: 319.15 | G109: 315.35 | H109: 308.80 | I109: 305.00 | J109: 325.70 | K109: 329.50 | L109: 336.05 | M109: 322.95 | N109: 312.6 | O109: 20498000 | P109: -5.32%
A110: 100 | B110: Cement | C110: INDIACEM | D110: 2023-04-27 | E110: 178.95 | F110: 175.80 | G110: 171.90 | H110: 164.85 | I110: 160.95 | J110: 182.85 | K110: 186.75 | L110: 193.80 | M110: 179.7 | N110: 168.75 | O110: 17507300 | P110: -3.99%
A111: 101 | B111: Others | C111: INDIAMART | D111: 2023-04-27 | E111: 5033.55 | F111: 5012.83 | G111: 4979.67 | H111: 4925.78 | I111: 4892.62 | J111: 5066.72 | K111: 5099.88 | L111: 5153.77 | M111: 5046 | N111: 4958.95 | O111: 310800 | P111: -24.76%
A112: 102 | B112: Others | C112: INDIGO | D112: 2023-04-27 | E112: 1845.25 | F112: 1840.42 | G112: 1827.43 | H112: 1809.62 | I112: 1796.63 | J112: 1858.23 | K112: 1871.22 | L112: 1889.03 | M112: 1853.4 | N112: 1822.6 | O112: 3021300 | P112: -11.39%
A113: 103 | B113: Banking | C113: INDUSINDBK | D113: 2023-04-27 | E113: 1063.40 | F113: 1054.40 | G113: 1040.25 | H113: 1017.10 | I113: 1002.95 | J113: 1077.55 | K113: 1091.70 | L113: 1114.85 | M113: 1068.55 | N113: 1031.25 | O113: 27372150 | P113: -6.09%
A114: 104 | B114: Telecom | C114: INDUSTOWER | D114: 2023-04-27 | E114: 141.80 | F114: 140.75 | G114: 139.25 | H114: 136.70 | I114: 135.20 | J114: 143.30 | K114: 144.80 | L114: 147.35 | M114: 142.25 | N114: 138.2 | O114: 27507200 | P114: -9.81%
A115: 105 | B115: Technology | C115: INFY | D115: 2023-04-27 | E115: 1396.60 | F115: 1390.90 | G115: 1381.80 | H115: 1367.00 | I115: 1357.90 | J115: 1405.70 | K115: 1414.80 | L115: 1429.60 | M115: 1400 | N115: 1376.1 | O115: 35655600 | P115: -5.55%
A116: 106 | B116: Technology | C116: INTELLECT | D116: 2023-04-27 | E116: 401.90 | F116: 401.00 | G116: 398.00 | H116: 394.10 | I116: 391.10 | J116: 404.90 | K116: 407.90 | L116: 411.80 | M116: 404 | N116: 397.1 | O116: 4265000 | P116: -0.16%
A117: 107 | B117: Oil_Gas | C117: IOC | D117: 2023-04-27 | E117: 77.65 | F117: 77.67 | G117: 77.33 | H117: 77.02 | I117: 76.68 | J117: 77.98 | K117: 78.32 | L117: 78.63 | M117: 78 | N117: 77.35 | O117: 73602750 | P117: -12.53%
A118: 108 | B118: Pharma | C118: IPCALAB | D118: 2023-04-27 | E118: 792.60 | F118: 792.78 | G118: 785.82 | H118: 779.03 | I118: 772.07 | J118: 799.57 | K118: 806.53 | L118: 813.32 | M118: 799.75 | N118: 786 | O118: 1608100 | P118: -28.56%
A119: 109 | B119: Others | C119: IRCTC | D119: 2023-04-27 | E119: 569.65 | F119: 568.08 | G119: 563.02 | H119: 556.38 | I119: 551.32 | J119: 574.72 | K119: 579.78 | L119: 586.42 | M119: 573.15 | N119: 561.45 | O119: 13184500 | P119: -7.30%
A120: 110 | B120: FMCG | C120: ITC | D120: 2023-04-27 | E120: 384.05 | F120: 383.13 | G120: 380.62 | H120: 377.18 | I120: 374.67 | J120: 386.57 | K120: 389.08 | L120: 392.52 | M120: 385.65 | N120: 379.7 | O120: 59027200 | P120: -9.44%
A121: 111 | B121: Metals | C121: JINDALSTEL | D121: 2023-04-27 | E121: 551.30 | F121: 547.17 | G121: 541.13 | H121: 530.97 | I121: 524.93 | J121: 557.33 | K121: 563.37 | L121: 573.53 | M121: 553.2 | N121: 537 | O121: 20247500 | P121: -9.32%
A122: 112 | B122: Cement | C122: JKCEMENT | D122: 2023-04-27 | E122: 2989.40 | F122: 2944.20 | G122: 2890.45 | H122: 2791.50 | I122: 2737.75 | J122: 3043.15 | K122: 3096.90 | L122: 3195.85 | M122: 2997.95 | N122: 2845.25 | O122: 439750 | P122: 3.65%
A123: 113 | B123: Metals | C123: JSWSTEEL | D123: 2023-04-27 | E123: 681.85 | F123: 676.97 | G123: 670.18 | H123: 658.52 | I123: 651.73 | J123: 688.63 | K123: 695.42 | L123: 707.08 | M123: 683.75 | N123: 665.3 | O123: 21879450 | P123: -5.90%
A124: 114 | B124: Others | C124: JUBLFOOD | D124: 2023-04-27 | E124: 430.50 | F124: 431.05 | G124: 424.25 | H124: 418.00 | I124: 411.20 | J124: 437.30 | K124: 444.10 | L124: 450.35 | M124: 437.85 | N124: 424.8 | O124: 16430000 | P124: -5.87%
A125: 115 | B125: Banking | C125: KOTAKBANK | D125: 2023-04-27 | E125: 1732.25 | F125: 1725.35 | G125: 1713.20 | H125: 1694.15 | I125: 1682.00 | J125: 1744.40 | K125: 1756.55 | L125: 1775.60 | M125: 1737.5 | N125: 1706.3 | O125: 40792400 | P125: -3.26%
A126: 116 | B126: Finance | C126: L&TFH | D126: 2023-04-27 | E126: 81.20 | F126: 80.92 | G126: 80.08 | H126: 78.97 | I126: 78.13 | J126: 82.03 | K126: 82.87 | L126: 83.98 | M126: 81.75 | N126: 79.8 | O126: 69651820 | P126: -6.02%
A127: 117 | B127: Others | C127: LALPATHLAB | D127: 2023-04-27 | E127: 1812.95 | F127: 1813.52 | G127: 1802.48 | H127: 1792.02 | I127: 1780.98 | J127: 1823.98 | K127: 1835.02 | L127: 1845.48 | M127: 1824.55 | N127: 1803.05 | O127: 725500 | P127: -21.03%
A128: 118 | B128: Pharma | C128: LAURUSLABS | D128: 2023-04-27 | E128: 299.65 | F128: 296.13 | G128: 291.62 | H128: 283.58 | I128: 279.07 | J128: 304.17 | K128: 308.68 | L128: 316.72 | M128: 300.65 | N128: 288.1 | O128: 10089200 | P128: -2.53%
A129: 119 | B129: Finance | C129: LICHSGFIN | D129: 2023-04-27 | E129: 325.75 | F129: 324.03 | G129: 320.37 | H129: 314.98 | I129: 311.32 | J129: 329.42 | K129: 333.08 | L129: 338.47 | M129: 327.7 | N129: 318.65 | O129: 13782000 | P129: -6.50%
A130: 120 | B130: Capital_Goods | C130: LT | D130: 2023-04-27 | E130: 2165.10 | F130: 2156.68 | G130: 2140.27 | H130: 2115.43 | I130: 2099.02 | J130: 2181.52 | K130: 2197.93 | L130: 2222.77 | M130: 2173.1 | N130: 2131.85 | O130: 8003700 | P130: -10.66%
A131: 121 | B131: Technology | C131: LTIM | D131: 2023-04-27 | E131: 4655.90 | F131: 4637.72 | G131: 4590.48 | H131: 4525.07 | I131: 4477.83 | J131: 4703.13 | K131: 4750.37 | L131: 4815.78 | M131: 4684.95 | N131: 4572.3 | O131: 1278300 | P131: -8.94%
A132: 122 | B132: Technology | C132: LTTS | D132: 2023-04-27 | E132: 3247.50 | F132: 3246.50 | G132: 3225.00 | H132: 3202.50 | I132: 3181.00 | J132: 3269.00 | K132: 3290.50 | L132: 3313.00 | M132: 3268 | N132: 3224 | O132: 1113800 | P132: -18.75%
A133: 123 | B133: Pharma | C133: LUPIN | D133: 2023-04-27 | E133: 658.45 | F133: 656.77 | G133: 649.28 | H133: 640.12 | I133: 632.63 | J133: 665.93 | K133: 673.42 | L133: 682.58 | M133: 664.25 | N133: 647.6 | O133: 6550950 | P133: -9.94%
A134: 124 | B134: Automobile | C134: M&M | D134: 2023-04-27 | E134: 1155.05 | F134: 1151.43 | G134: 1142.47 | H134: 1129.88 | I134: 1120.92 | J134: 1164.02 | K134: 1172.98 | L134: 1185.57 | M134: 1160.4 | N134: 1138.85 | O134: 14826000 | P134: -1.22%
A135: 125 | B135: Finance | C135: M&MFIN | D135: 2023-04-27 | E135: 228.95 | F135: 228.03 | G135: 223.87 | H135: 218.78 | I135: 214.62 | J135: 233.12 | K135: 237.28 | L135: 242.37 | M135: 232.2 | N135: 222.95 | O135: 22996000 | P135: -12.80%
A136: 126 | B136: Finance | C136: MANAPPURAM | D136: 2023-04-27 | E136: 122.90 | F136: 121.82 | G136: 119.73 | H136: 116.57 | I136: 114.48 | J136: 124.98 | K136: 127.07 | L136: 130.23 | M136: 123.9 | N136: 118.65 | O136: 36588000 | P136: -7.11%
A137: 127 | B137: FMCG | C137: MARICO | D137: 2023-04-27 | E137: 476.45 | F137: 478.03 | G137: 472.57 | H137: 468.68 | I137: 463.22 | J137: 481.92 | K137: 487.38 | L137: 491.27 | M137: 483.5 | N137: 474.15 | O137: 9429600 | P137: -0.72%
A138: 128 | B138: Automobile | C138: MARUTI | D138: 2023-04-27 | E138: 8354.00 | F138: 8322.52 | G138: 8267.33 | H138: 8180.67 | I138: 8125.48 | J138: 8409.18 | K138: 8464.37 | L138: 8551.03 | M138: 8377.7 | N138: 8235.85 | O138: 1878300 | P138: -13.03%
A139: 129 | B139: FMCG | C139: MCDOWELL-N | D139: 2023-04-27 | E139: 747.80 | F139: 747.37 | G139: 742.58 | H139: 737.37 | I139: 732.58 | J139: 752.58 | K139: 757.37 | L139: 762.58 | M139: 752.15 | N139: 742.15 | O139: 12173125 | P139: -1.05%
A140: 130 | B140: Others | C140: MCX | D140: 2023-04-27 | E140: 1510.65 | F140: 1503.72 | G140: 1485.28 | H140: 1459.92 | I140: 1441.48 | J140: 1529.08 | K140: 1547.52 | L140: 1572.88 | M140: 1522.15 | N140: 1478.35 | O140: 675600 | P140: -12.17%
A141: 131 | B141: Pharma | C141: METROPOLIS | D141: 2023-04-27 | E141: 1211.70 | F141: 1200.88 | G141: 1185.57 | H141: 1159.43 | I141: 1144.12 | J141: 1227.02 | K141: 1242.33 | L141: 1268.47 | M141: 1216.2 | N141: 1174.75 | O141: 912800 | P141: -9.19%
A142: 132 | B142: Finance | C142: MFSL | D142: 2023-04-27 | E142: 631.45 | F142: 627.00 | G142: 619.15 | H142: 606.85 | I142: 599.00 | J142: 639.30 | K142: 647.15 | L142: 659.45 | M142: 634.85 | N142: 614.7 | O142: 3194100 | P142: -11.52%
A143: 133 | B143: Oil_Gas | C143: MGL | D143: 2023-04-27 | E143: 993.00 | F143: 990.03 | G143: 985.27 | H143: 977.53 | I143: 972.77 | J143: 997.77 | K143: 1002.53 | L143: 1010.27 | M143: 994.8 | N143: 982.3 | O143: 2205600 | P143: -11.95%
A144: 134 | B144: Automobile | C144: MOTHERSON | D144: 2023-04-27 | E144: 64.85 | F144: 64.37 | G144: 63.58 | H144: 62.32 | I144: 61.53 | J144: 65.63 | K144: 66.42 | L144: 67.68 | M144: 65.15 | N144: 63.1 | O144: 68856750 | P144: -17.63%
A145: 135 | B145: Technology | C145: MPHASIS | D145: 2023-04-27 | E145: 1734.45 | F145: 1726.95 | G145: 1697.05 | H145: 1659.65 | I145: 1629.75 | J145: 1764.35 | K145: 1794.25 | L145: 1831.65 | M145: 1756.85 | N145: 1689.55 | O145: 2270950 | P145: -26.14%
A146: 136 | B146: Automobile | C146: MRF | D146: 2023-04-27 | E146: 82632.05 | F146: 82419.52 | G146: 82039.03 | H146: 81446.02 | I146: 81065.53 | J146: 83012.53 | K146: 83393.02 | L146: 83986.03 | M146: 82800 | N146: 81826.5 | O146: 47690 | P146: -10.63%
A147: 137 | B147: Finance | C147: MUTHOOTFIN | D147: 2023-04-27 | E147: 954.15 | F147: 949.30 | G147: 942.15 | H147: 930.15 | I147: 923.00 | J147: 961.30 | K147: 968.45 | L147: 980.45 | M147: 956.45 | N147: 937.3 | O147: 7712650 | P147: -13.81%
A148: 138 | B148: Metals | C148: NATIONALUM | D148: 2023-04-27 | E148: 77.95 | F148: 77.53 | G148: 76.72 | H148: 75.48 | I148: 74.67 | J148: 78.77 | K148: 79.58 | L148: 80.82 | M148: 78.35 | N148: 76.3 | O148: 48030000 | P148: -6.21%
A149: 139 | B149: Others | C149: NAUKRI | D149: 2023-04-27 | E149: 3630.90 | F149: 3617.67 | G149: 3594.38 | H149: 3557.87 | I149: 3534.58 | J149: 3654.18 | K149: 3677.47 | L149: 3713.98 | M149: 3640.95 | N149: 3581.15 | O149: 1256125 | P149: -12.91%
A150: 140 | B150: Chemical | C150: NAVINFLUOR | D150: 2023-04-27 | E150: 4203.55 | F150: 4190.37 | G150: 4158.28 | H150: 4113.02 | I150: 4080.93 | J150: 4235.63 | K150: 4267.72 | L150: 4312.98 | M150: 4222.45 | N150: 4145.1 | O150: 411900 | P150: -8.07%
A151: 141 | B151: FMCG | C151: NESTLEIND | D151: 2023-04-27 | E151: 19100.00 | F151: 19056.32 | G151: 18964.73 | H151: 18829.47 | I151: 18737.88 | J151: 19191.58 | K151: 19283.17 | L151: 19418.43 | M151: 19147.9 | N151: 18921.05 | O151: 193560 | P151: -9.48%
A152: 142 | B152: Metals | C152: NMDC | D152: 2023-04-27 | E152: 110.65 | F152: 109.33 | G152: 107.47 | H152: 104.28 | I152: 102.42 | J152: 112.52 | K152: 114.38 | L152: 117.57 | M152: 111.2 | N152: 106.15 | O152: 47691000 | P152: -9.52%
A153: 143 | B153: Power | C153: NTPC | D153: 2023-04-27 | E153: 175.70 | F153: 175.00 | G153: 173.35 | H153: 171.00 | I153: 169.35 | J153: 177.35 | K153: 179.00 | L153: 181.35 | M153: 176.65 | N153: 172.65 | O153: 58214100 | P153: -13.82%
A154: 144 | B154: Realty | C154: OBEROIRLTY | D154: 2023-04-27 | E154: 835.40 | F154: 833.97 | G154: 828.43 | H154: 821.47 | I154: 815.93 | J154: 840.93 | K154: 846.47 | L154: 853.43 | M154: 839.5 | N154: 827 | O154: 5901700 | P154: -8.03%
A155: 145 | B155: Technology | C155: OFSS | D155: 2023-04-27 | E155: 3254.15 | F155: 3246.03 | G155: 3230.12 | H155: 3206.08 | I155: 3190.17 | J155: 3270.07 | K155: 3285.98 | L155: 3310.02 | M155: 3261.95 | N155: 3222 | O155: 251600 | P155: -5.06%
A156: 146 | B156: Oil_Gas | C156: ONGC | D156: 2023-04-27 | E156: 150.85 | F156: 150.28 | G156: 148.57 | H156: 146.28 | I156: 144.57 | J156: 152.57 | K156: 154.28 | L156: 156.57 | M156: 152 | N156: 148 | O156: 35242900 | P156: 5.12%
A157: 147 | B157: Textile | C157: PAGEIND | D157: 2023-04-27 | E157: 38292.10 | F157: 38177.38 | G157: 37764.77 | H157: 37237.43 | I157: 36824.82 | J157: 38704.72 | K157: 39117.33 | L157: 39644.67 | M157: 38590 | N157: 37650.05 | O157: 112470 | P157: -2.19%
A158: 148 | B158: Pharma | C158: PEL | D158: 2023-04-27 | E158: 668.95 | F158: 661.43 | G158: 650.97 | H158: 632.98 | I158: 622.52 | J158: 679.42 | K158: 689.88 | L158: 707.87 | M158: 671.9 | N158: 643.45 | O158: 9124500 | P158: -11.44%
A159: 149 | B159: Technology | C159: PERSISTENT | D159: 2023-04-27 | E159: 4508.05 | F159: 4464.60 | G159: 4411.20 | H159: 4314.35 | I159: 4260.95 | J159: 4561.45 | K159: 4614.85 | L159: 4711.70 | M159: 4518 | N159: 4367.75 | O159: 959000 | P159: -22.45%
A160: 150 | B160: Oil_Gas | C160: PETRONET | D160: 2023-04-27 | E160: 226.70 | F160: 226.12 | G160: 225.18 | H160: 223.67 | I160: 222.73 | J160: 227.63 | K160: 228.57 | L160: 230.08 | M160: 227.05 | N160: 224.6 | O160: 12408000 | P160: -8.92%
A161: 151 | B161: Finance | C161: PFC | D161: 2023-04-27 | E161: 152.45 | F161: 150.75 | G161: 148.65 | H161: 144.85 | I161: 142.75 | J161: 154.55 | K161: 156.65 | L161: 160.45 | M161: 152.85 | N161: 146.95 | O161: 54417400 | P161: -9.95%
A162: 152 | B162: FMCG | C162: PIDILITIND | D162: 2023-04-27 | E162: 2332.05 | F162: 2339.57 | G162: 2315.98 | H162: 2299.92 | I162: 2276.33 | J162: 2355.63 | K162: 2379.22 | L162: 2395.28 | M162: 2363.15 | N162: 2323.5 | O162: 2534750 | P162: -1.53%
A163: 153 | B163: Chemical | C163: PIIND | D163: 2023-04-27 | E163: 2960.50 | F163: 2945.92 | G163: 2921.58 | H163: 2882.67 | I163: 2858.33 | J163: 2984.83 | K163: 3009.17 | L163: 3048.08 | M163: 2970.25 | N163: 2907 | O163: 2096750 | P163: -9.04%
A164: 154 | B164: Banking | C164: PNB | D164: 2023-04-27 | E164: 46.60 | F164: 46.13 | G164: 45.42 | H164: 44.23 | I164: 43.52 | J164: 47.32 | K164: 48.03 | L164: 49.22 | M164: 46.85 | N164: 44.95 | O164: 203424000 | P164: -18.46%
A165: 155 | B165: Others | C165: POLYCAB | D165: 2023-04-27 | E165: 2863.60 | F165: 2843.00 | G165: 2809.60 | H165: 2755.60 | I165: 2722.20 | J165: 2897.00 | K165: 2930.40 | L165: 2984.40 | M165: 2876.4 | N165: 2789 | O165: 1176600 | P165: -16.20%
A166: 156 | B166: Power | C166: POWERGRID | D166: 2023-04-27 | E166: 224.65 | F166: 224.07 | G166: 222.58 | H166: 220.52 | I166: 219.03 | J166: 226.13 | K166: 227.62 | L166: 229.68 | M166: 225.55 | N166: 222 | O166: 29678400 | P166: 0.04%
A167: 157 | B167: Media | C167: PVR | D167: 2023-04-27 | E167: 1530.75 | F167: 1521.42 | G167: 1506.83 | H167: 1482.92 | I167: 1468.33 | J167: 1545.33 | K167: 1559.92 | L167: 1583.83 | M167: 1536 | N167: 1497.5 | O167: 2157100 | P167: -15.47%
A168: 158 | B168: Others | C168: RAIN | D168: 2023-04-27 | E168: 148.05 | F168: 147.02 | G168: 145.63 | H168: 143.22 | I168: 141.83 | J168: 149.43 | K168: 150.82 | L168: 153.23 | M168: 148.4 | N168: 144.6 | O168: 12236000 | P168: -7.00%
A169: 159 | B169: Cement | C169: RAMCOCEM | D169: 2023-04-27 | E169: 751.00 | F169: 747.98 | G169: 738.27 | H169: 725.53 | I169: 715.82 | J169: 760.72 | K169: 770.43 | L169: 783.17 | M169: 757.7 | N169: 735.25 | O169: 3105900 | P169: -9.80%
A170: 160 | B170: Banking | C170: RBLBANK | D170: 2023-04-27 | E170: 137.15 | F170: 136.65 | G170: 135.40 | H170: 133.65 | I170: 132.40 | J170: 138.40 | K170: 139.65 | L170: 141.40 | M170: 137.9 | N170: 134.9 | O170: 30275000 | P170: -18.46%
A171: 161 | B171: Power | C171: RECLTD | D171: 2023-04-27 | E171: 116.55 | F171: 116.02 | G171: 115.13 | H171: 113.72 | I171: 112.83 | J171: 117.43 | K171: 118.32 | L171: 119.73 | M171: 116.9 | N171: 114.6 | O171: 53680000 | P171: -8.26%
A172: 162 | B172: Oil_Gas | C172: RELIANCE | D172: 2023-04-27 | E172: 2255.15 | F172: 2249.22 | G172: 2235.38 | H172: 2215.62 | I172: 2201.78 | J172: 2268.98 | K172: 2282.82 | L172: 2302.58 | M172: 2263.05 | N172: 2229.45 | O172: 40063250 | P172: -9.10%
A173: 163 | B173: Metals | C173: SAIL | D173: 2023-04-27 | E173: 83.30 | F173: 82.68 | G173: 81.82 | H173: 80.33 | I173: 79.47 | J173: 84.17 | K173: 85.03 | L173: 86.52 | M173: 83.55 | N173: 81.2 | O173: 101344000 | P173: -10.39%
A174: 164 | B174: Banking | C174: SBICARD | D174: 2023-04-27 | E174: 720.95 | F174: 715.92 | G174: 709.43 | H174: 697.92 | I174: 691.43 | J174: 727.43 | K174: 733.92 | L174: 745.43 | M174: 722.4 | N174: 704.4 | O174: 7877600 | P174: -7.83%
A175: 165 | B175: Finance | C175: SBILIFE | D175: 2023-04-27 | E175: 1106.75 | F175: 1103.70 | G175: 1095.50 | H175: 1084.25 | I175: 1076.05 | J175: 1114.95 | K175: 1123.15 | L175: 1134.40 | M175: 1111.9 | N175: 1092.45 | O175: 5697000 | P175: -6.73%
A176: 166 | B176: Banking | C176: SBIN | D176: 2023-04-27 | E176: 519.80 | F176: 517.03 | G176: 512.92 | H176: 506.03 | I176: 501.92 | J176: 523.92 | K176: 528.03 | L176: 534.92 | M176: 521.15 | N176: 510.15 | O176: 82572000 | P176: -8.03%
A177: 167 | B177: Cement | C177: SHREECEM | D177: 2023-04-27 | E177: 25620.85 | F177: 25392.93 | G177: 25043.52 | H177: 24466.18 | I177: 24116.77 | J177: 25970.27 | K177: 26319.68 | L177: 26897.02 | M177: 25742.35 | N177: 24815.6 | O177: 309150 | P177: -8.45%
A178: 168 | B178: Capital_Goods | C178: SIEMENS | D178: 2023-04-27 | E178: 3355.50 | F178: 3340.72 | G178: 3314.43 | H178: 3273.37 | I178: 3247.08 | J178: 3381.78 | K178: 3408.07 | L178: 3449.13 | M178: 3367 | N178: 3299.65 | O178: 1777050 | P178: -1.24%
A179: 169 | B179: Textile | C179: SRF | D179: 2023-04-27 | E179: 2413.90 | F179: 2411.85 | G179: 2397.05 | H179: 2380.20 | I179: 2365.40 | J179: 2428.70 | K179: 2443.50 | L179: 2460.35 | M179: 2426.65 | N179: 2395 | O179: 2797875 | P179: -12.28%
A180: 170 | B180: Finance | C180: SHRIRAMFIN | D180: 2023-04-27 | E180: 1259.05 | F180: 1253.58 | G180: 1241.47 | H180: 1223.88 | I180: 1211.77 | J180: 1271.17 | K180: 1283.28 | L180: 1300.87 | M180: 1265.7 | N180: 1236 | O180: 3757200 | P180: -6.97%
A181: 171 | B181: Pharma | C181: SUNPHARMA | D181: 2023-04-27 | E181: 997.65 | F181: 995.50 | G181: 988.75 | H181: 979.85 | I181: 973.10 | J181: 1004.40 | K181: 1011.15 | L181: 1020.05 | M181: 1002.25 | N181: 986.6 | O181: 17341100 | P181: -4.60%
A182: 172 | B182: Media | C182: SUNTV | D182: 2023-04-27 | E182: 409.95 | F182: 406.45 | G182: 402.05 | H182: 394.15 | I182: 389.75 | J182: 414.35 | K182: 418.75 | L182: 426.65 | M182: 410.85 | N182: 398.55 | O182: 9046500 | P182: -4.35%
A183: 173 | B183: Pharma | C183: SYNGENE | D183: 2023-04-27 | E183: 584.75 | F183: 583.27 | G183: 580.13 | H183: 575.52 | I183: 572.38 | J183: 587.88 | K183: 591.02 | L183: 595.63 | M183: 586.4 | N183: 578.65 | O183: 2430000 | P183: -4.10%
A184: 174 | B184: Chemical | C184: TATACHEM | D184: 2023-04-27 | E184: 960.80 | F184: 958.93 | G184: 952.87 | H184: 944.93 | I184: 938.87 | J184: 966.87 | K184: 972.93 | L184: 980.87 | M184: 965 | N184: 951 | O184: 4529000 | P184: -10.97%
A185: 175 | B185: Telecom | C185: TATACOMM | D185: 2023-04-27 | E185: 1239.00 | F185: 1235.32 | G185: 1225.73 | H185: 1212.47 | I185: 1202.88 | J185: 1248.58 | K185: 1258.17 | L185: 1271.43 | M185: 1244.9 | N185: 1222.05 | O185: 1929500 | P185: -7.30%
A186: 176 | B186: FMCG | C186: TATACONSUM | D186: 2023-04-27 | E186: 704.00 | F186: 704.70 | G186: 700.40 | H186: 696.80 | I186: 692.50 | J186: 708.30 | K186: 712.60 | L186: 716.20 | M186: 709 | N186: 701.1 | O186: 9767700 | P186: -6.30%
A187: 177 | B187: Automobile | C187: TATAMOTORS | D187: 2023-04-27 | E187: 413.00 | F187: 410.70 | G187: 406.95 | H187: 400.90 | I187: 397.15 | J187: 416.75 | K187: 420.50 | L187: 426.55 | M187: 414.45 | N187: 404.65 | O187: 52387275 | P187: -9.62%
A188: 178 | B188: Power | C188: TATAPOWER | D188: 2023-04-27 | E188: 187.40 | F188: 186.95 | G188: 184.90 | H188: 182.40 | I188: 180.35 | J188: 189.45 | K188: 191.50 | L188: 194.00 | M188: 189 | N188: 184.45 | O188: 100170000 | P188: -3.82%
A189: 179 | B189: Metals | C189: TATASTEEL | D189: 2023-04-27 | E189: 104.20 | F189: 103.63 | G189: 102.77 | H189: 101.33 | I189: 100.47 | J189: 105.07 | K189: 105.93 | L189: 107.37 | M189: 104.5 | N189: 102.2 | O189: 182930000 | P189: -13.87%
A190: 180 | B190: Technology | C190: TCS | D190: 2023-04-27 | E190: 3159.15 | F190: 3150.17 | G190: 3131.33 | H190: 3103.52 | I190: 3084.68 | J190: 3177.98 | K190: 3196.82 | L190: 3224.63 | M190: 3169 | N190: 3122.35 | O190: 10593975 | P190: -7.34%
A191: 181 | B191: Technology | C191: TECHM | D191: 2023-04-27 | E191: 1089.60 | F191: 1085.87 | G191: 1076.73 | H191: 1063.87 | I191: 1054.73 | J191: 1098.73 | K191: 1107.87 | L191: 1120.73 | M191: 1095 | N191: 1073 | O191: 10792200 | P191: -6.05%
A192: 182 | B192: FMCG | C192: TITAN | D192: 2023-04-27 | E192: 2530.50 | F192: 2526.57 | G192: 2515.13 | H192: 2499.77 | I192: 2488.33 | J192: 2541.93 | K192: 2553.37 | L192: 2568.73 | M192: 2538 | N192: 2511.2 | O192: 5266875 | P192: -8.21%
A193: 183 | B193: Pharma | C193: TORNTPHARM | D193: 2023-04-27 | E193: 1556.30 | F193: 1551.35 | G193: 1541.45 | H193: 1526.60 | I193: 1516.70 | J193: 1566.20 | K193: 1576.10 | L193: 1590.95 | M193: 1561.25 | N193: 1536.5 | O193: 1672500 | P193: -2.73%
A194: 184 | B194: Others | C194: TRENT | D194: 2023-04-27 | E194: 1345.85 | F194: 1331.67 | G194: 1313.33 | H194: 1280.82 | I194: 1262.48 | J194: 1364.18 | K194: 1382.52 | L194: 1415.03 | M194: 1350 | N194: 1299.15 | O194: 3365600 | P194: -4.09%
A195: 185 | B195: Automobile | C195: TVSMOTOR | D195: 2023-04-27 | E195: 1083.25 | F195: 1070.20 | G195: 1055.35 | H195: 1027.45 | I195: 1012.60 | J195: 1098.10 | K195: 1112.95 | L195: 1140.85 | M195: 1085.05 | N195: 1042.3 | O195: 5503400 | P195: -8.18%
A196: 186 | B196: FMCG | C196: UBL | D196: 2023-04-27 | E196: 1420.60 | F196: 1423.98 | G196: 1411.77 | H196: 1402.93 | I196: 1390.72 | J196: 1432.82 | K196: 1445.03 | L196: 1453.87 | M196: 1436.2 | N196: 1415.15 | O196: 1222000 | P196: -2.99%
A197: 187 | B197: Cement | C197: ULTRACEMCO | D197: 2023-04-27 | E197: 7620.55 | F197: 7571.45 | G197: 7505.85 | H197: 7391.15 | I197: 7325.55 | J197: 7686.15 | K197: 7751.75 | L197: 7866.45 | M197: 7637.05 | N197: 7456.75 | O197: 1733100 | P197: -6.74%
A198: 188 | B198: Chemical | C198: UPL | D198: 2023-04-27 | E198: 713.75 | F198: 711.55 | G198: 703.20 | H198: 692.65 | I198: 684.30 | J198: 722.10 | K198: 730.45 | L198: 741.00 | M198: 719.9 | N198: 701 | O198: 14506700 | P198: -2.86%
A199: 189 | B199: Metals | C199: VEDL | D199: 2023-04-27 | E199: 279.90 | F199: 277.47 | G199: 273.88 | H199: 267.87 | I199: 264.28 | J199: 283.48 | K199: 287.07 | L199: 293.08 | M199: 281.05 | N199: 271.45 | O199: 40114000 | P199: -15.08%
A200: 190 | B200: Capital_Goods | C200: VOLTAS | D200: 2023-04-27 | E200: 819.35 | F200: 817.93 | G200: 813.42 | H200: 807.48 | I200: 802.97 | J200: 823.87 | K200: 828.38 | L200: 834.32 | M200: 822.45 | N200: 812 | O200: 5070000 | P200: -7.15%
A201: 191 | B201: Capital_Goods | C201: WHIRLPOOL | D201: 2023-04-27 | E201: 1298.75 | F201: 1301.03 | G201: 1288.72 | H201: 1278.68 | I201: 1266.37 | J201: 1311.07 | K201: 1323.38 | L201: 1333.42 | M201: 1313.35 | N201: 1291 | O201: 894600 | P201: -12.26%
A202: 192 | B202: Technology | C202: WIPRO | D202: 2023-04-27 | E202: 360.90 | F202: 360.38 | G202: 358.22 | H202: 355.53 | I202: 353.37 | J202: 363.07 | K202: 365.23 | L202: 367.92 | M202: 362.55 | N202: 357.7 | O202: 33961500 | P202: -12.39%
A203: 193 | B203: Media | C203: ZEEL | D203: 2023-04-27 | E203: 217.65 | F203: 216.30 | G203: 211.35 | H203: 205.05 | I203: 200.10 | J203: 222.60 | K203: 227.55 | L203: 233.85 | M203: 221.25 | N203: 210 | O203: 74514000 | P203: 0.27%
A204: 194 | B204: Pharma | C204: ZYDUSLIFE | D204: 2023-04-27 | E204: 492.55 | F204: 491.17 | G204: 487.63 | H204: 482.72 | I204: 479.18 | J204: 496.08 | K204: 499.62 | L204: 504.53 | M204: 494.7 | N204: 486.25 | O204: 6876000 | P204: -2.75%
A221: Pivot Point: This is trigger point for intra day buy/sell based on the price range of the previous day
A222: As per the tool,the trader should take BUY position just above Pivot and keep the stop loss of pivot point and the first target would be Resistance 1(R1)
... 13 more rows

Sheet Cash Intra
M5: Back to Main Page
A6: FOR INTRA DAY TRADING | K6: =Main!B10 -> 2023-03-31
A8: Sr.no | C8: CLOSE RATE | D8: Pivot Point | E8: Supports | H8: Resistances
E9: S1 | F9: S2 | G9: S3 | H9: R1 | I9: R2 | J9: R3 | K9: HIGH | L9: LOW | M9: Total Trade Quanity in Lakhs
A10: 1 | B10: Nifty 50 | C10: 17080.70 | D10: 17049.15 | E10: 16972.15 | F10: 16863.60 | G10: 16786.60 | H10: 17157.70 | I10: 17234.70 | J10: 17343.25 | K10: 17126.15 | L10: 16940.60
A11: 2 | B11: Nifty Bank | C11: 39910.15 | D11: 39858.23 | E11: 39661.47 | F11: 39412.78 | G11: 39216.02 | H11: 40106.92 | I11: 40303.68 | J11: 40552.37 | K11: 40055.00 | L11: 39609.55
A12: 3 | B12: Nifty CPSE | C12: 2880.30 | D12: 2869.40 | E12: 2841.20 | F12: 2802.10 | G12: 2773.90 | H12: 2908.50 | I12: 2936.70 | J12: 2975.80 | K12: 2897.60 | L12: 2830.30
A13: 4 | B13: Nifty Infra | C13: 5013.55 | D13: 5003.53 | E13: 4978.97 | F13: 4944.38 | G13: 4919.82 | H13: 5038.12 | I13: 5062.68 | J13: 5097.27 | K13: 5028.10 | L13: 4968.95
A14: 5 | B14: Nifty IT | C14: 28011.30 | D14: 27921.63 | E14: 27729.32 | F14: 27447.33 | G14: 27255.02 | H14: 28203.62 | I14: 28395.93 | J14: 28677.92 | K14: 28113.95 | L14: 27639.65
A15: 6 | B15: Nifty PSE | C15: 4428.50 | D15: 4415.88 | E15: 4384.72 | F15: 4340.93 | G15: 4309.77 | H15: 4459.67 | I15: 4490.83 | J15: 4534.62 | K15: 4447.05 | L15: 4372.10
A16: 7 | B16: Nifty Midcap 50 | C16: 8373.50 | D16: 8329.67 | E16: 8268.88 | F16: 8164.27 | G16: 8103.48 | H16: 8434.28 | I16: 8495.07 | J16: 8599.68 | K16: 8390.45 | L16: 8225.05
A17: 8 | B17: ABB | C17: 3391.45 | D17: 3380.03 | E17: 3344.42 | F17: 3297.38 | G17: 3261.77 | H17: 3427.07 | I17: 3462.68 | J17: 3509.72 | K17: 3415.65 | L17: 3333 | M17: 10.31003
A18: 9 | B18: ACC | C18: 1625.9 | D18: 1622.42 | E18: 1595.83 | F18: 1565.77 | G18: 1539.18 | H18: 1652.48 | I18: 1679.07 | J18: 1709.13 | K18: 1649 | L18: 1592.35 | M18: 10.12619
A19: 10 | B19: AUBANK | C19: 585.55 | D19: 579.40 | E19: 568.85 | F19: 552.15 | G19: 541.60 | H19: 596.10 | I19: 606.65 | J19: 623.35 | K19: 589.95 | L19: 562.7 | M19: 25.05188
A20: 11 | B20: ABBOTINDIA | C20: 21770.05 | D20: 21748.25 | E20: 21614.65 | F20: 21459.25 | G20: 21325.65 | H20: 21903.65 | I20: 22037.25 | J20: 22192.65 | K20: 21881.85 | L20: 21592.85 | M20: 0.09818
A21: 12 | B21: ADANIENT | C21: 1740.4 | D21: 1695.83 | E21: 1635.67 | F21: 1530.93 | G21: 1470.77 | H21: 1800.57 | I21: 1860.73 | J21: 1965.47 | K21: 1756 | L21: 1591.1 | M21: 93.32702
A22: 13 | B22: ADANIGREEN | C22: 894.35 | D22: 919.07 | E22: 864.18 | F22: 834.02 | G22: 779.13 | H22: 949.23 | I22: 1004.12 | J22: 1034.28 | K22: 973.95 | L22: 888.9 | M22: 89.02722
A23: 14 | B23: ADANIPORTS | C23: 636.65 | D23: 623.10 | E23: 603.65 | F23: 570.65 | G23: 551.20 | H23: 656.10 | I23: 675.55 | J23: 708.55 | K23: 642.55 | L23: 590.1 | M23: 170.57169
A24: 15 | B24: ATGL | C24: 871.7 | D24: 888.70 | E24: 847.45 | F24: 823.20 | G24: 781.95 | H24: 912.95 | I24: 954.20 | J24: 978.45 | K24: 929.95 | L24: 864.45 | M24: 29.97429
A25: 16 | B25: ADANITRANS | C25: 1003.45 | D25: 1004.23 | E25: 963.47 | F25: 923.48 | G25: 882.72 | H25: 1044.22 | I25: 1084.98 | J25: 1124.97 | K25: 1045 | L25: 964.25 | M25: 33.44811
A26: 17 | B26: AWL | C26: 386.55 | D26: 376.83 | E26: 367.12 | F26: 347.68 | G26: 337.97 | H26: 396.27 | I26: 405.98 | J26: 425.42 | K26: 386.55 | L26: 357.4 | M26: 62.23991
A27: 18 | B27: ABCAPITAL | C27: 153.1 | D27: 151.12 | E27: 148.23 | F27: 143.37 | G27: 140.48 | H27: 155.98 | I27: 158.87 | J27: 163.73 | K27: 154 | L27: 146.25 | M27: 60.64506
A28: 19 | B28: ABFRL | C28: 211.15 | D28: 210.20 | E28: 208.50 | F28: 205.85 | G28: 204.15 | H28: 212.85 | I28: 214.55 | J28: 217.20 | K28: 211.9 | L28: 207.55 | M28: 16.92084
A29: 20 | B29: ALKEM | C29: 3300.3 | D29: 3280.48 | E29: 3249.97 | F29: 3199.63 | G29: 3169.12 | H29: 3330.82 | I29: 3361.33 | J29: 3411.67 | K29: 3311 | L29: 3230.15 | M29: 0.71738
A30: 21 | B30: AMBUJACEM | C30: 363.9 | D30: 363.05 | E30: 359.05 | F30: 354.20 | G30: 350.20 | H30: 367.90 | I30: 371.90 | J30: 376.75 | K30: 367.05 | L30: 358.2 | M30: 95.58023
A31: 22 | B31: APOLLOHOSP | C31: 4363 | D31: 4351.37 | E31: 4322.73 | F31: 4282.47 | G31: 4253.83 | H31: 4391.63 | I31: 4420.27 | J31: 4460.53 | K31: 4380 | L31: 4311.1 | M31: 2.5079
A32: 23 | B32: ASHOKLEY | C32: 136.45 | D32: 135.88 | E32: 134.97 | F32: 133.48 | G32: 132.57 | H32: 137.37 | I32: 138.28 | J32: 139.77 | K32: 136.8 | L32: 134.4 | M32: 43.02841
A33: 24 | B33: ASIANPAINT | C33: 2770.5 | D33: 2773.08 | E33: 2752.42 | F33: 2734.33 | G33: 2713.67 | H33: 2791.17 | I33: 2811.83 | J33: 2829.92 | K33: 2793.75 | L33: 2755 | M33: 10.87648
A34: 25 | B34: ASTRAL | C34: 1342.7 | D34: 1330.63 | E34: 1313.37 | F34: 1284.03 | G34: 1266.77 | H34: 1359.97 | I34: 1377.23 | J34: 1406.57 | K34: 1347.9 | L34: 1301.3 | M34: 3.90104
A35: 26 | B35: AUROPHARMA | C35: 509.65 | D35: 509.22 | E35: 505.08 | F35: 500.52 | G35: 496.38 | H35: 513.78 | I35: 517.92 | J35: 522.48 | K35: 513.35 | L35: 504.65 | M35: 13.09603
A36: 27 | B36: DMART | C36: 3325.45 | D36: 3341.82 | E36: 3298.63 | F36: 3271.82 | G36: 3228.63 | H36: 3368.63 | I36: 3411.82 | J36: 3438.63 | K36: 3385 | L36: 3315 | M36: 2.76925
A37: 28 | B37: AXISBANK | C37: 842.6 | D37: 840.35 | E37: 832.25 | F37: 821.90 | G37: 813.80 | H37: 850.70 | I37: 858.80 | J37: 869.15 | K37: 848.45 | L37: 830 | M37: 171.21194
A38: 29 | B38: BAJAJ-AUTO | C38: 3879.3 | D38: 3857.82 | E38: 3821.63 | F38: 3763.97 | G38: 3727.78 | H38: 3915.48 | I38: 3951.67 | J38: 4009.33 | K38: 3894 | L38: 3800.15 | M38: 4.293
A39: 30 | B39: BAJFINANCE | C39: 5625.2 | D39: 5608.73 | E39: 5571.47 | F39: 5517.73 | G39: 5480.47 | H39: 5662.47 | I39: 5699.73 | J39: 5753.47 | K39: 5646 | L39: 5555 | M39: 11.09612
A40: 31 | B40: BAJAJFINSV | C40: 1246.05 | D40: 1241.17 | E40: 1230.33 | F40: 1214.62 | G40: 1203.78 | H40: 1256.88 | I40: 1267.72 | J40: 1283.43 | K40: 1252 | L40: 1225.45 | M40: 16.5742
A41: 32 | B41: BAJAJHLDNG | C41: 5866.75 | D41: 5942.72 | E41: 5744.03 | F41: 5621.32 | G41: 5422.63 | H41: 6065.43 | I41: 6264.12 | J41: 6386.83 | K41: 6141.4 | L41: 5820 | M41: 0.89796
A42: 33 | B42: BALKRISIND | C42: 1964.75 | D42: 1961.23 | E42: 1953.52 | F42: 1942.28 | G42: 1934.57 | H42: 1972.47 | I42: 1980.18 | J42: 1991.42 | K42: 1968.95 | L42: 1950 | M42: 1.65672
A43: 34 | B43: BANDHANBNK | C43: 189.9 | D43: 188.93 | E43: 185.97 | F43: 182.03 | G43: 179.07 | H43: 192.87 | I43: 195.83 | J43: 199.77 | K43: 191.9 | L43: 185 | M43: 263.98887
A44: 35 | B44: BANKBARODA | C44: 164.45 | D44: 163.15 | E44: 161.30 | F44: 158.15 | G44: 156.30 | H44: 166.30 | I44: 168.15 | J44: 171.30 | K44: 165 | L44: 160 | M44: 383.90279
A45: 36 | B45: BANKINDIA | C45: 76.9 | D45: 75.30 | E45: 72.65 | F45: 68.40 | G45: 65.75 | H45: 79.55 | I45: 82.20 | J45: 86.45 | K45: 77.95 | L45: 71.05 | M45: 200.79281
A46: 37 | B46: BATAINDIA | C46: 1406.75 | D46: 1399.30 | E46: 1388.90 | F46: 1371.05 | G46: 1360.65 | H46: 1417.15 | I46: 1427.55 | J46: 1445.40 | K46: 1409.7 | L46: 1381.45 | M46: 2.82259
A47: 38 | B47: BERGEPAINT | C47: 573.25 | D47: 574.97 | E47: 567.93 | F47: 562.62 | G47: 555.58 | H47: 580.28 | I47: 587.32 | J47: 592.63 | K47: 582 | L47: 569.65 | M47: 8.67598
A48: 39 | B48: BEL | C48: 91.55 | D48: 91.17 | E48: 90.28 | F48: 89.02 | G48: 88.13 | H48: 92.43 | I48: 93.32 | J48: 94.58 | K48: 92.05 | L48: 89.9 | M48: 361.03221
A49: 40 | B49: BHARATFORG | C49: 757.3 | D49: 754.23 | E49: 748.47 | F49: 739.63 | G49: 733.87 | H49: 763.07 | I49: 768.83 | J49: 777.67 | K49: 760 | L49: 745.4 | M49: 13.41232
A50: 41 | B50: BHEL | C50: 70.3 | D50: 70.42 | E50: 69.58 | F50: 68.87 | G50: 68.03 | H50: 71.13 | I50: 71.97 | J50: 72.68 | K50: 71.25 | L50: 69.7 | M50: 212.4221
A51: 42 | B51: BPCL | C51: 339.85 | D51: 339.52 | E51: 336.63 | F51: 333.42 | G51: 330.53 | H51: 342.73 | I51: 345.62 | J51: 348.83 | K51: 342.4 | L51: 336.3 | M51: 29.8592
A52: 43 | B52: BHARTIARTL | C52: 743.6 | D52: 745.78 | E52: 736.67 | F52: 729.73 | G52: 720.62 | H52: 752.72 | I52: 761.83 | J52: 768.77 | K52: 754.9 | L52: 738.85 | M52: 48.91868
A53: 44 | B53: BIOCON | C53: 201.6 | D53: 201.75 | E53: 199.50 | F53: 197.40 | G53: 195.15 | H53: 203.85 | I53: 206.10 | J53: 208.20 | K53: 204 | L53: 199.65 | M53: 110.20214
A54: 45 | B54: BOSCHLTD | C54: 18977.15 | D54: 18823.68 | E54: 18607.37 | F54: 18237.58 | G54: 18021.27 | H54: 19193.47 | I54: 19409.78 | J54: 19779.57 | K54: 19040 | L54: 18453.9 | M54: 0.50052
A55: 46 | B55: BRITANNIA | C55: 4276.2 | D55: 4257.70 | E55: 4217.45 | F55: 4158.70 | G55: 4118.45 | H55: 4316.45 | I55: 4356.70 | J55: 4415.45 | K55: 4297.95 | L55: 4198.95 | M55: 3.16461
A56: 47 | B56: CANBK | C56: 281.05 | D56: 279.25 | E56: 275.90 | F56: 270.75 | G56: 267.40 | H56: 284.40 | I56: 287.75 | J56: 292.90 | K56: 282.6 | L56: 274.1 | M56: 156.84111
A57: 48 | B57: CHOLAFIN | C57: 747.85 | D57: 743.35 | E57: 735.20 | F57: 722.55 | G57: 714.40 | H57: 756.00 | I57: 764.15 | J57: 776.80 | K57: 751.5 | L57: 730.7 | M57: 11.43861
A58: 49 | B58: CIPLA | C58: 887.7 | D58: 889.88 | E58: 883.17 | F58: 878.63 | G58: 871.92 | H58: 894.42 | I58: 901.13 | J58: 905.67 | K58: 896.6 | L58: 885.35 | M58: 30.49688
A59: 50 | B59: CLEAN | C59: 1238.8 | D59: 1249.25 | E59: 1224.55 | F59: 1210.30 | G59: 1185.60 | H59: 1263.50 | I59: 1288.20 | J59: 1302.45 | K59: 1273.95 | L59: 1235 | M59: 0.90965
A60: 51 | B60: COALINDIA | C60: 212.95 | D60: 212.08 | E60: 209.27 | F60: 205.58 | G60: 202.77 | H60: 215.77 | I60: 218.58 | J60: 222.27 | K60: 214.9 | L60: 208.4 | M60: 167.34166
A61: 52 | B61: COFORGE | C61: 3660.35 | D61: 3633.03 | E61: 3592.07 | F61: 3523.78 | G61: 3482.82 | H61: 3701.32 | I61: 3742.28 | J61: 3810.57 | K61: 3674 | L61: 3564.75 | M61: 3.48819
A62: 53 | B62: COLPAL | C62: 1495.45 | D62: 1499.63 | E62: 1485.92 | F62: 1476.38 | G62: 1462.67 | H62: 1509.17 | I62: 1522.88 | J62: 1532.42 | K62: 1513.35 | L62: 1490.1 | M62: 2.57945
A63: 54 | B63: CONCOR | C63: 569.7 | D63: 565.73 | E63: 558.97 | F63: 548.23 | G63: 541.47 | H63: 576.47 | I63: 583.23 | J63: 593.97 | K63: 572.5 | L63: 555 | M63: 13.09935
A64: 55 | B64: COROMANDEL | C64: 857.65 | D64: 858.05 | E64: 848.15 | F64: 838.65 | G64: 828.75 | H64: 867.55 | I64: 877.45 | J64: 886.95 | K64: 867.95 | L64: 848.55 | M64: 3.51954
A65: 56 | B65: CROMPTON | C65: 292.3 | D65: 293.18 | E65: 289.27 | F65: 286.23 | G65: 282.32 | H65: 296.22 | I65: 300.13 | J65: 303.17 | K65: 297.1 | L65: 290.15 | M65: 8.22474
A66: 57 | B66: CUMMINSIND | C66: 1639.85 | D66: 1632.13 | E66: 1617.27 | F66: 1594.68 | G66: 1579.82 | H66: 1654.72 | I66: 1669.58 | J66: 1692.17 | K66: 1647 | L66: 1609.55 | M66: 4.93564
A67: 58 | B67: DLF | C67: 352.55 | D67: 351.02 | E67: 348.03 | F67: 343.52 | G67: 340.53 | H67: 355.53 | I67: 358.52 | J67: 363.03 | K67: 354 | L67: 346.5 | M67: 26.2428
A68: 59 | B68: DABUR | C68: 535.65 | D68: 534.12 | E68: 530.73 | F68: 525.82 | G68: 522.43 | H68: 539.03 | I68: 542.42 | J68: 547.33 | K68: 537.5 | L68: 529.2 | M68: 18.04819
A69: 60 | B69: DALBHARAT | C69: 1928.75 | D69: 1903.22 | E69: 1869.98 | F69: 1811.22 | G69: 1777.98 | H69: 1961.98 | I69: 1995.22 | J69: 2053.98 | K69: 1936.45 | L69: 1844.45 | M69: 4.79011
A70: 61 | B70: DEEPAKNTR | C70: 1801.95 | D70: 1803.03 | E70: 1787.07 | F70: 1772.18 | G70: 1756.22 | H70: 1817.92 | I70: 1833.88 | J70: 1848.77 | K70: 1819 | L70: 1788.15 | M70: 3.75933
A71: 62 | B71: DELHIVERY | C71: 326.95 | D71: 323.92 | E71: 317.13 | F71: 307.32 | G71: 300.53 | H71: 333.73 | I71: 340.52 | J71: 350.33 | K71: 330.7 | L71: 314.1 | M71: 6.91667
A72: 63 | B72: DIVISLAB | C72: 2820.25 | D72: 2817.65 | E72: 2795.30 | F72: 2770.35 | G72: 2748.00 | H72: 2842.60 | I72: 2864.95 | J72: 2889.90 | K72: 2840 | L72: 2792.7 | M72: 3.70527
A73: 64 | B73: DIXON | C73: 2793.55 | D73: 2803.88 | E73: 2749.77 | F73: 2705.98 | G73: 2651.87 | H73: 2847.67 | I73: 2901.78 | J73: 2945.57 | K73: 2858 | L73: 2760.1 | M73: 4.12376
A74: 65 | B74: LALPATHLAB | C74: 1800.05 | D74: 1804.45 | E74: 1790.35 | F74: 1780.65 | G74: 1766.55 | H74: 1814.15 | I74: 1828.25 | J74: 1837.95 | K74: 1818.55 | L74: 1794.75 | M74: 1.38542
A75: 66 | B75: DRREDDY | C75: 4567.8 | D75: 4554.98 | E75: 4534.97 | F75: 4502.13 | G75: 4482.12 | H75: 4587.82 | I75: 4607.83 | J75: 4640.67 | K75: 4575 | L75: 4522.15 | M75: 4.16707
A76: 67 | B76: EICHERMOT | C76: 2933.7 | D76: 2910.50 | E76: 2873.20 | F76: 2812.70 | G76: 2775.40 | H76: 2971.00 | I76: 3008.30 | J76: 3068.80 | K76: 2947.8 | L76: 2850 | M76: 7.65293
A77: 68 | B77: EMAMILTD | C77: 360.35 | D77: 359.02 | E77: 354.63 | F77: 348.92 | G77: 344.53 | H77: 364.73 | I77: 369.12 | J77: 374.83 | K77: 363.4 | L77: 353.3 | M77: 8.22366
A78: 69 | B78: ESCORTS | C78: 1874.9 | D78: 1881.85 | E78: 1859.05 | F78: 1843.20 | G78: 1820.40 | H78: 1897.70 | I78: 1920.50 | J78: 1936.35 | K78: 1904.65 | L78: 1866 | M78: 2.36093
A79: 70 | B79: NYKAA | C79: 126.7 | D79: 127.07 | E79: 124.63 | F79: 122.57 | G79: 120.13 | H79: 129.13 | I79: 131.57 | J79: 133.63 | K79: 129.5 | L79: 125 | M79: 234.66327
A80: 71 | B80: FEDERALBNK | C80: 129.1 | D80: 128.20 | E80: 126.40 | F80: 123.70 | G80: 121.90 | H80: 130.90 | I80: 132.70 | J80: 135.40 | K80: 130 | L80: 125.5 | M80: 116.95672
A81: 72 | B81: FORTIS | C81: 262.15 | D81: 261.50 | E81: 258.30 | F81: 254.45 | G81: 251.25 | H81: 265.35 | I81: 268.55 | J81: 272.40 | K81: 264.7 | L81: 257.65 | M81: 4.5234
A82: 73 | B82: GAIL | C82: 105.5 | D82: 105.23 | E82: 104.27 | F82: 103.03 | G82: 102.07 | H82: 106.47 | I82: 107.43 | J82: 108.67 | K82: 106.2 | L82: 104 | M82: 107.45581
A83: 74 | B83: GLAND | C83: 1257.8 | D83: 1257.07 | E83: 1233.68 | F83: 1209.57 | G83: 1186.18 | H83: 1281.18 | I83: 1304.57 | J83: 1328.68 | K83: 1280.45 | L83: 1232.95 | M83: 7.73942
A84: 75 | B84: GODREJCP | C84: 966.3 | D84: 962.78 | E84: 956.52 | F84: 946.73 | G84: 940.47 | H84: 972.57 | I84: 978.83 | J84: 988.62 | K84: 969.05 | L84: 953 | M84: 12.82377
A85: 76 | B85: GODREJPROP | C85: 1021.7 | D85: 1018.10 | E85: 1008.60 | F85: 995.50 | G85: 986.00 | H85: 1031.20 | I85: 1040.70 | J85: 1053.80 | K85: 1027.6 | L85: 1005 | M85: 5.01795
A86: 77 | B86: GRASIM | C86: 1631.7 | D86: 1626.88 | E86: 1615.92 | F86: 1600.13 | G86: 1589.17 | H86: 1642.67 | I86: 1653.63 | J86: 1669.42 | K86: 1637.85 | L86: 1611.1 | M86: 5.7547
A87: 78 | B87: GUJGASLTD | C87: 469.65 | D87: 470.72 | E87: 466.03 | F87: 462.42 | G87: 457.73 | H87: 474.33 | I87: 479.02 | J87: 482.63 | K87: 475.4 | L87: 467.1 | M87: 5.24679
A88: 79 | B88: GSPL | C88: 265.25 | D88: 266.25 | E88: 260.15 | F88: 255.05 | G88: 248.95 | H88: 271.35 | I88: 277.45 | J88: 282.55 | K88: 272.35 | L88: 261.15 | M88: 12.03287
A89: 80 | B89: HCLTECH | C89: 1067.5 | D89: 1059.87 | E89: 1049.73 | F89: 1031.97 | G89: 1021.83 | H89: 1077.63 | I89: 1087.77 | J89: 1105.53 | K89: 1070 | L89: 1042.1 | M89: 24.78745
A90: 81 | B90: HDFCAMC | C90: 1678.05 | D90: 1679.67 | E90: 1664.93 | F90: 1651.82 | G90: 1637.08 | H90: 1692.78 | I90: 1707.52 | J90: 1720.63 | K90: 1694.4 | L90: 1666.55 | M90: 3.09356
A91: 82 | B91: HDFCBANK | C91: 1587.8 | D91: 1590.57 | E91: 1579.13 | F91: 1570.47 | G91: 1559.03 | H91: 1599.23 | I91: 1610.67 | J91: 1619.33 | K91: 1602 | L91: 1581.9 | M91: 198.81806
A92: 83 | B92: HDFCLIFE | C92: 495.95 | D92: 493.55 | E92: 489.10 | F92: 482.25 | G92: 477.80 | H92: 500.40 | I92: 504.85 | J92: 511.70 | K92: 498 | L92: 486.7 | M92: 31.3701
A93: 84 | B93: HAVELLS | C93: 1179.6 | D93: 1166.40 | E93: 1149.25 | F93: 1118.90 | G93: 1101.75 | H93: 1196.75 | I93: 1213.90 | J93: 1244.25 | K93: 1183.55 | L93: 1136.05 | M93: 6.07826
A94: 85 | B94: HEROMOTOCO | C94: 2304.15 | D94: 2289.88 | E94: 2264.27 | F94: 2224.38 | G94: 2198.77 | H94: 2329.77 | I94: 2355.38 | J94: 2395.27 | K94: 2315.5 | L94: 2250 | M94: 7.12847
A95: 86 | B95: HINDALCO | C95: 399.05 | D95: 396.62 | E95: 392.33 | F95: 385.62 | G95: 381.33 | H95: 403.33 | I95: 407.62 | J95: 414.33 | K95: 400.9 | L95: 389.9 | M95: 69.59623
A96: 87 | B96: HAL | C96: 2706.75 | D96: 2680.38 | E96: 2644.27 | F96: 2581.78 | G96: 2545.67 | H96: 2742.87 | I96: 2778.98 | J96: 2841.47 | K96: 2716.5 | L96: 2617.9 | M96: 15.91122
A97: 88 | B97: HINDPETRO | C97: 234.05 | D97: 233.97 | E97: 231.63 | F97: 229.22 | G97: 226.88 | H97: 236.38 | I97: 238.72 | J97: 241.13 | K97: 236.3 | L97: 231.55 | M97: 43.12592
A98: 89 | B98: HINDUNILVR | C98: 2530.85 | D98: 2516.90 | E98: 2494.00 | F98: 2457.15 | G98: 2434.25 | H98: 2553.75 | I98: 2576.65 | J98: 2613.50 | K98: 2539.8 | L98: 2480.05 | M98: 26.13254
A99: 90 | B99: HINDZINC | C99: 299 | D99: 298.97 | E99: 295.03 | F99: 291.07 | G99: 287.13 | H99: 302.93 | I99: 306.87 | J99: 310.83 | K99: 302.9 | L99: 295 | M99: 27.29086
A100: 91 | B100: HONAUT | C100: 35236.55 | D100: 35382.00 | E100: 34947.55 | F100: 34658.55 | G100: 34224.10 | H100: 35671.00 | I100: 36105.45 | J100: 36394.45 | K100: 35816.45 | L100: 35093 | M100: 0.06481
A101: 92 | B101: HDFC | C101: 2603.05 | D101: 2598.67 | E101: 2583.33 | F101: 2563.62 | G101: 2548.28 | H101: 2618.38 | I101: 2633.72 | J101: 2653.43 | K101: 2614 | L101: 2578.95 | M101: 39.30726
A102: 93 | B102: ICICIBANK | C102: 851 | D102: 853.70 | E102: 845.30 | F102: 839.60 | G102: 831.20 | H102: 859.40 | I102: 867.80 | J102: 873.50 | K102: 862.1 | L102: 848 | M102: 348.81515
A103: 94 | B103: ICICIGI | C103: 1073.2 | D103: 1071.65 | E103: 1063.30 | F103: 1053.40 | G103: 1045.05 | H103: 1081.55 | I103: 1089.90 | J103: 1099.80 | K103: 1080 | L103: 1061.75 | M103: 3.76572
A104: 95 | B104: ICICIPRULI | C104: 426.5 | D104: 424.47 | E104: 420.93 | F104: 415.37 | G104: 411.83 | H104: 430.03 | I104: 433.57 | J104: 439.13 | K104: 428 | L104: 418.9 | M104: 14.74965
A105: 96 | B105: ISEC | C105: 422.3 | D105: 422.87 | E105: 415.73 | F105: 409.17 | G105: 402.03 | H105: 429.43 | I105: 436.57 | J105: 443.13 | K105: 430 | L105: 416.3 | M105: 1.59792
A106: 97 | B106: IDFCFIRSTB | C106: 54.5 | D106: 53.97 | E106: 52.98 | F106: 51.47 | G106: 50.48 | H106: 55.48 | I106: 56.47 | J106: 57.98 | K106: 54.95 | L106: 52.45 | M106: 267.09018
A107: 98 | B107: ITC | C107: 382.75 | D107: 381.30 | E107: 378.60 | F107: 374.45 | G107: 371.75 | H107: 385.45 | I107: 388.15 | J107: 392.30 | K107: 384 | L107: 377.15 | M107: 101.60322
A108: 99 | B108: INDIAMART | C108: 5006.45 | D108: 5005.08 | E108: 4960.17 | F108: 4913.88 | G108: 4868.97 | H108: 5051.37 | I108: 5096.28 | J108: 5142.57 | K108: 5050 | L108: 4958.8 | M108: 1.47001
A109: 100 | B109: INDIANB | C109: 291.1 | D109: 286.53 | E109: 280.07 | F109: 269.03 | G109: 262.57 | H109: 297.57 | I109: 304.03 | J109: 315.07 | K109: 293 | L109: 275.5 | M109: 17.412
A110: 101 | B110: IEX | C110: 128.6 | D110: 128.30 | E110: 126.10 | F110: 123.60 | G110: 121.40 | H110: 130.80 | I110: 133.00 | J110: 135.50 | K110: 130.5 | L110: 125.8 | M110: 107.20997
A111: 102 | B111: INDHOTEL | C111: 319.05 | D111: 316.28 | E111: 312.77 | F111: 306.48 | G111: 302.97 | H111: 322.57 | I111: 326.08 | J111: 332.37 | K111: 319.8 | L111: 310 | M111: 31.93116
A112: 103 | B112: IOC | C112: 76.9 | D112: 77.03 | E112: 76.52 | F112: 76.13 | G112: 75.62 | H112: 77.42 | I112: 77.93 | J112: 78.32 | K112: 77.55 | L112: 76.65 | M112: 99.21198
A113: 104 | B113: IRCTC | C113: 564.5 | D113: 563.43 | E113: 558.17 | F113: 551.83 | G113: 546.57 | H113: 569.77 | I113: 575.03 | J113: 581.37 | K113: 568.7 | L113: 557.1 | M113: 20.17776
A114: 105 | B114: IGL | C114: 437.8 | D114: 437.53 | E114: 435.17 | F114: 432.53 | G114: 430.17 | H114: 440.17 | I114: 442.53 | J114: 445.17 | K114: 439.9 | L114: 434.9 | M114: 8.45707
A115: 106 | B115: INDUSTOWER | C115: 142.25 | D115: 143.13 | E115: 140.17 | F115: 138.08 | G115: 135.12 | H115: 145.22 | I115: 148.18 | J115: 150.27 | K115: 146.1 | L115: 141.05 | M115: 41.06922
A116: 107 | B116: INDUSINDBK | C116: 1057.1 | D116: 1048.68 | E116: 1033.42 | F116: 1009.73 | G116: 994.47 | H116: 1072.37 | I116: 1087.63 | J116: 1111.32 | K116: 1063.95 | L116: 1025 | M116: 58.03091
A117: 108 | B117: NAUKRI | C117: 3602.1 | D117: 3591.72 | E117: 3565.43 | F117: 3528.77 | G117: 3502.48 | H117: 3628.38 | I117: 3654.67 | J117: 3691.33 | K117: 3618 | L117: 3555.05 | M117: 2.57832
A118: 109 | B118: INFY | C118: 1383.55 | D118: 1379.33 | E118: 1368.77 | F118: 1353.98 | G118: 1343.42 | H118: 1394.12 | I118: 1404.68 | J118: 1419.47 | K118: 1389.9 | L118: 1364.55 | M118: 88.13966
A119: 110 | B119: INDIGO | C119: 1825.35 | D119: 1825.38 | E119: 1810.77 | F119: 1796.18 | G119: 1781.57 | H119: 1839.97 | I119: 1854.58 | J119: 1869.17 | K119: 1840 | L119: 1810.8 | M119: 6.33537
A120: 111 | B120: IPCALAB | C120: 786.45 | D120: 787.68 | E120: 780.52 | F120: 774.58 | G120: 767.42 | H120: 793.62 | I120: 800.78 | J120: 806.72 | K120: 794.85 | L120: 781.75 | M120: 3.65256
A121: 112 | B121: JSWENERGY | C121: 236.65 | D121: 233.22 | E121: 226.43 | F121: 216.22 | G121: 209.43 | H121: 243.43 | I121: 250.22 | J121: 260.43 | K121: 240 | L121: 223 | M121: 27.32107
A122: 113 | B122: JSWSTEEL | C122: 678.9 | D122: 674.32 | E122: 663.18 | F122: 647.47 | G122: 636.33 | H122: 690.03 | I122: 701.17 | J122: 716.88 | K122: 685.45 | L122: 658.6 | M122: 22.08428
A123: 114 | B123: JINDALSTEL | C123: 546.4 | D123: 543.00 | E123: 536.80 | F123: 527.20 | G123: 521.00 | H123: 552.60 | I123: 558.80 | J123: 568.40 | K123: 549.2 | L123: 533.4 | M123: 14.02975
A124: 115 | B124: JUBLFOOD | C124: 430.05 | D124: 432.55 | E124: 425.90 | F124: 421.75 | G124: 415.10 | H124: 436.70 | I124: 443.35 | J124: 447.50 | K124: 439.2 | L124: 428.4 | M124: 14.19105
A125: 116 | B125: KOTAKBANK | C125: 1721.05 | D125: 1714.35 | E125: 1701.70 | F125: 1682.35 | G125: 1669.70 | H125: 1733.70 | I125: 1746.35 | J125: 1765.70 | K125: 1727 | L125: 1695 | M125: 28.21
A126: 117 | B126: L&TFH | C126: 80.8 | D126: 80.48 | E126: 79.62 | F126: 78.43 | G126: 77.57 | H126: 81.67 | I126: 82.53 | J126: 83.72 | K126: 81.35 | L126: 79.3 | M126: 37.38119
A127: 118 | B127: LTTS | C127: 3357.3 | D127: 3349.45 | E127: 3304.90 | F127: 3252.50 | G127: 3207.95 | H127: 3401.85 | I127: 3446.40 | J127: 3498.80 | K127: 3394 | L127: 3297.05 | M127: 3.00649
A128: 119 | B128: LICHSGFIN | C128: 322.55 | D128: 321.13 | E128: 317.82 | F128: 313.08 | G128: 309.77 | H128: 325.87 | I128: 329.18 | J128: 333.92 | K128: 324.45 | L128: 316.4 | M128: 13.16515
A129: 120 | B129: LTIM | C129: 4620.55 | D129: 4610.78 | E129: 4558.62 | F129: 4496.68 | G129: 4444.52 | H129: 4672.72 | I129: 4724.88 | J129: 4786.82 | K129: 4662.95 | L129: 4548.85 | M129: 3.33288
A130: 121 | B130: LT | C130: 2147.45 | D130: 2142.58 | E130: 2125.87 | F130: 2104.28 | G130: 2087.57 | H130: 2164.17 | I130: 2180.88 | J130: 2202.47 | K130: 2159.3 | L130: 2121 | M130: 23.72385
A131: 122 | B131: LAURUSLABS | C131: 297.05 | D131: 293.65 | E131: 289.40 | F131: 281.75 | G131: 277.50 | H131: 301.30 | I131: 305.55 | J131: 313.20 | K131: 297.9 | L131: 286 | M131: 20.51696
A132: 123 | B132: LICI | C132: 531.85 | D132: 534.87 | E132: 527.03 | F132: 522.22 | G132: 514.38 | H132: 539.68 | I132: 547.52 | J132: 552.33 | K132: 542.7 | L132: 530.05 | M132: 22.45923
A133: 124 | B133: LINDEINDIA | C133: 3903.85 | D133: 3894.18 | E133: 3852.37 | F133: 3800.88 | G133: 3759.07 | H133: 3945.67 | I133: 3987.48 | J133: 4038.97 | K133: 3936 | L133: 3842.7 | M133: 0.37328
A134: 125 | B134: LUPIN | C134: 652.4 | D134: 651.53 | E134: 644.07 | F134: 635.73 | G134: 628.27 | H134: 659.87 | I134: 667.33 | J134: 675.67 | K134: 659 | L134: 643.2 | M134: 9.46826
A135: 126 | B135: MRF | C135: 82012 | D135: 82166.67 | E135: 81631.83 | F135: 81251.67 | G135: 80716.83 | H135: 82546.83 | I135: 83081.67 | J135: 83461.83 | K135: 82701.5 | L135: 81786.5 | M135: 0.05133
A136: 127 | B136: M&MFIN | C136: 226.7 | D136: 226.38 | E136: 222.02 | F136: 217.33 | G136: 212.97 | H136: 231.07 | I136: 235.43 | J136: 240.12 | K136: 230.75 | L136: 221.7 | M136: 43.63754
A137: 128 | B137: M&M | C137: 1144.3 | D137: 1142.92 | E137: 1133.38 | F137: 1122.47 | G137: 1112.93 | H137: 1153.83 | I137: 1163.37 | J137: 1174.28 | K137: 1152.45 | L137: 1132 | M137: 40.03003
A138: 129 | B138: MARICO | C138: 472.25 | D138: 474.20 | E138: 468.05 | F138: 463.85 | G138: 457.70 | H138: 478.40 | I138: 484.55 | J138: 488.75 | K138: 480.35 | L138: 470 | M138: 14.89592
A139: 130 | B139: MARUTI | C139: 8295.3 | D139: 8267.30 | E139: 8215.50 | F139: 8135.70 | G139: 8083.90 | H139: 8347.10 | I139: 8398.90 | J139: 8478.70 | K139: 8319.1 | L139: 8187.5 | M139: 3.39851
A140: 131 | B140: MFSL | C140: 627.5 | D140: 622.37 | E140: 612.83 | F140: 598.17 | G140: 588.63 | H140: 637.03 | I140: 646.57 | J140: 661.23 | K140: 631.9 | L140: 607.7 | M140: 6.47762
A141: 132 | B141: MAXHEALTH | C141: 451.7 | D141: 451.17 | E141: 444.33 | F141: 436.97 | G141: 430.13 | H141: 458.53 | I141: 465.37 | J141: 472.73 | K141: 458 | L141: 443.8 | M141: 11.58628
A142: 133 | B142: MSUMI | C142: 47.35 | D142: 46.97 | E142: 46.38 | F142: 45.42 | G142: 44.83 | H142: 47.93 | I142: 48.52 | J142: 49.48 | K142: 47.55 | L142: 46 | M142: 41.75334
A143: 134 | B143: MPHASIS | C143: 1718.2 | D143: 1712.58 | E143: 1675.62 | F143: 1633.03 | G143: 1596.07 | H143: 1755.17 | I143: 1792.13 | J143: 1834.72 | K143: 1749.55 | L143: 1670 | M143: 30.01937
A144: 135 | B144: MUTHOOTFIN | C144: 974.7 | D144: 970.23 | E144: 964.47 | F144: 954.23 | G144: 948.47 | H144: 980.47 | I144: 986.23 | J144: 996.47 | K144: 976 | L144: 960 | M144: 5.34469
A145: 136 | B145: NTPC | C145: 174 | D145: 173.70 | E145: 172.00 | F145: 170.00 | G145: 168.30 | H145: 175.70 | I145: 177.40 | J145: 179.40 | K145: 175.4 | L145: 171.7 | M145: 202.7207
A146: 137 | B146: NATIONALUM | C146: 77.15 | D146: 76.87 | E146: 75.98 | F146: 74.82 | G146: 73.93 | H146: 78.03 | I146: 78.92 | J146: 80.08 | K146: 77.75 | L146: 75.7 | M146: 127.44445
A147: 138 | B147: NAVINFLUOR | C147: 4197.9 | D147: 4182.62 | E147: 4145.48 | F147: 4093.07 | G147: 4055.93 | H147: 4235.03 | I147: 4272.17 | J147: 4324.58 | K147: 4219.75 | L147: 4130.2 | M147: 0.84199
A148: 139 | B148: NESTLEIND | C148: 19052.95 | D148: 19018.05 | E148: 18911.10 | F148: 18769.25 | G148: 18662.30 | H148: 19159.90 | I148: 19266.85 | J148: 19408.70 | K148: 19125 | L148: 18876.2 | M148: 0.48606
A149: 140 | B149: NAM-INDIA | C149: 204.15 | D149: 203.22 | E149: 201.58 | F149: 199.02 | G149: 197.38 | H149: 205.78 | I149: 207.42 | J149: 209.98 | K149: 204.85 | L149: 200.65 | M149: 4.96738
A150: 141 | B150: OBEROIRLTY | C150: 826.95 | D150: 826.37 | E150: 821.13 | F150: 815.32 | G150: 810.08 | H150: 832.18 | I150: 837.42 | J150: 843.23 | K150: 831.6 | L150: 820.55 | M150: 5.40246
A151: 142 | B151: ONGC | C151: 149.35 | D151: 148.90 | E151: 146.95 | F151: 144.55 | G151: 142.60 | H151: 151.30 | I151: 153.25 | J151: 155.65 | K151: 150.85 | L151: 146.5 | M151: 240.12834
A152: 143 | B152: OIL | C152: 262.95 | D152: 261.02 | E152: 252.03 | F152: 241.12 | G152: 232.13 | H152: 271.93 | I152: 280.92 | J152: 291.83 | K152: 270 | L152: 250.1 | M152: 38.21644
A153: 144 | B153: PAYTM | C153: 629.35 | D153: 625.52 | E153: 615.03 | F153: 600.72 | G153: 590.23 | H153: 639.83 | I153: 650.32 | J153: 664.63 | K153: 636 | L153: 611.2 | M153: 46.65727
A154: 145 | B154: OFSS | C154: 3232.9 | D154: 3225.35 | E154: 3210.80 | F154: 3188.70 | G154: 3174.15 | H154: 3247.45 | I154: 3262.00 | J154: 3284.10 | K154: 3239.9 | L154: 3203.25 | M154: 0.36645
A155: 146 | B155: POLICYBZR | C155: 623.85 | D155: 613.38 | E155: 596.97 | F155: 570.08 | G155: 553.67 | H155: 640.27 | I155: 656.68 | J155: 683.57 | K155: 629.8 | L155: 586.5 | M155: 22.10413
A156: 147 | B156: PIIND | C156: 2937.9 | D156: 2926.78 | E156: 2896.57 | F156: 2855.23 | G156: 2825.02 | H156: 2968.12 | I156: 2998.33 | J156: 3039.67 | K156: 2957 | L156: 2885.45 | M156: 2.69861
A157: 148 | B157: PAGEIND | C157: 38171.8 | D157: 38073.68 | E157: 37657.17 | F157: 37142.53 | G157: 36726.02 | H157: 38588.32 | I157: 39004.83 | J157: 39519.47 | K157: 38490.2 | L157: 37559.05 | M157: 1.29944
A158: 149 | B158: PATANJALI | C158: 925.4 | D158: 909.10 | E158: 892.40 | F158: 859.40 | G158: 842.70 | H158: 942.10 | I158: 958.80 | J158: 991.80 | K158: 925.8 | L158: 876.1 | M158: 8.4253
A159: 150 | B159: PERSISTENT | C159: 4541.8 | D159: 4494.80 | E159: 4434.10 | F159: 4326.40 | G159: 4265.70 | H159: 4602.50 | I159: 4663.20 | J159: 4770.90 | K159: 4555.5 | L159: 4387.1 | M159: 3.94439
A160: 151 | B160: PETRONET | C160: 224.55 | D160: 224.55 | E160: 223.00 | F160: 221.45 | G160: 219.90 | H160: 226.10 | I160: 227.65 | J160: 229.20 | K160: 226.1 | L160: 223 | M160: 17.59982
A161: 152 | B161: PIDILITIND | C161: 2315.2 | D161: 2322.07 | E161: 2298.13 | F161: 2281.07 | G161: 2257.13 | H161: 2339.13 | I161: 2363.07 | J161: 2380.13 | K161: 2346 | L161: 2305 | M161: 3.3067
A162: 153 | B162: POLYCAB | C162: 2856.45 | D162: 2837.97 | E162: 2801.93 | F162: 2747.42 | G162: 2711.38 | H162: 2892.48 | I162: 2928.52 | J162: 2983.03 | K162: 2874 | L162: 2783.45 | M162: 2.45686
A163: 154 | B163: POONAWALLA | C163: 288.55 | D163: 286.28 | E163: 281.82 | F163: 275.08 | G163: 270.62 | H163: 293.02 | I163: 297.48 | J163: 304.22 | K163: 290.75 | L163: 279.55 | M163: 20.37802
A164: 155 | B164: PFC | C164: 151.15 | D164: 149.47 | E164: 147.38 | F164: 143.62 | G164: 141.53 | H164: 153.23 | I164: 155.32 | J164: 159.08 | K164: 151.55 | L164: 145.7 | M164: 45.03118
A165: 156 | B165: POWERGRID | C165: 222.45 | D165: 222.23 | E165: 220.77 | F165: 219.08 | G165: 217.62 | H165: 223.92 | I165: 225.38 | J165: 227.07 | K165: 223.7 | L165: 220.55 | M165: 148.07444
A166: 157 | B166: PRESTIGE | C166: 400.6 | D166: 402.35 | E166: 395.20 | F166: 389.80 | G166: 382.65 | H166: 407.75 | I166: 414.90 | J166: 420.30 | K166: 409.5 | L166: 396.95 | M166: 1.64188
A167: 158 | B167: PGHH | C167: 13311.2 | D167: 13367.58 | E167: 13083.72 | F167: 12856.23 | G167: 12572.37 | H167: 13595.07 | I167: 13878.93 | J167: 14106.42 | K167: 13651.45 | L167: 13140.1 | M167: 0.10952
A168: 159 | B168: PNB | C168: 46.3 | D168: 45.85 | E168: 45.05 | F168: 43.80 | G168: 43.00 | H168: 47.10 | I168: 47.90 | J168: 49.15 | K168: 46.65 | L168: 44.6 | M168: 492.29088
A169: 160 | B169: RECLTD | C169: 115.75 | D169: 115.18 | E169: 114.37 | F169: 112.98 | G169: 112.17 | H169: 116.57 | I169: 117.38 | J169: 118.77 | K169: 116 | L169: 113.8 | M169: 32.40893
A170: 161 | B170: RELIANCE | C170: 2234.7 | D170: 2230.20 | E170: 2215.60 | F170: 2196.50 | G170: 2181.90 | H170: 2249.30 | I170: 2263.90 | J170: 2283.00 | K170: 2244.8 | L170: 2211.1 | M170: 86.78073
A171: 162 | B171: SBICARD | C171: 720.15 | D171: 719.15 | E171: 712.30 | F171: 704.45 | G171: 697.60 | H171: 727.00 | I171: 733.85 | J171: 741.70 | K171: 726 | L171: 711.3 | M171: 8.87093
A172: 163 | B172: SBILIFE | C172: 1098.7 | D172: 1095.98 | E172: 1085.97 | F172: 1073.23 | G172: 1063.22 | H172: 1108.72 | I172: 1118.73 | J172: 1131.47 | K172: 1106 | L172: 1083.25 | M172: 8.90212
A173: 164 | B173: SRF | C173: 2399.1 | D173: 2393.72 | E173: 2375.43 | F173: 2351.77 | G173: 2333.48 | H173: 2417.38 | I173: 2435.67 | J173: 2459.33 | K173: 2412 | L173: 2370.05 | M173: 3.13006
A174: 165 | B174: MOTHERSON | C174: 64.55 | D174: 64.07 | E174: 63.13 | F174: 61.72 | G174: 60.78 | H174: 65.48 | I174: 66.42 | J174: 67.83 | K174: 65 | L174: 62.65 | M174: 201.79302
A175: 166 | B175: SHREECEM | C175: 25804.7 | D175: 25616.63 | E175: 25219.07 | F175: 24633.43 | G175: 24235.87 | H175: 26202.27 | I175: 26599.83 | J175: 27185.47 | K175: 26014.2 | L175: 25031 | M175: 0.41315
A176: 167 | B176: SHRIRAMFIN | C176: 1251.8 | D176: 1244.43 | E176: 1228.87 | F176: 1205.93 | G176: 1190.37 | H176: 1267.37 | I176: 1282.93 | J176: 1305.87 | K176: 1260 | L176: 1221.5 | M176: 3.29827
A177: 168 | B177: SIEMENS | C177: 3325.85 | D177: 3316.93 | E177: 3284.87 | F177: 3243.88 | G177: 3211.82 | H177: 3357.92 | I177: 3389.98 | J177: 3430.97 | K177: 3349 | L177: 3275.95 | M177: 3.55763
A178: 169 | B178: SONACOMS | C178: 414.75 | D178: 411.92 | E178: 407.83 | F178: 400.92 | G178: 396.83 | H178: 418.83 | I178: 422.92 | J178: 429.83 | K178: 416 | L178: 405 | M178: 17.81834
A179: 170 | B179: SBIN | C179: 516.5 | D179: 513.60 | E179: 509.20 | F179: 501.90 | G179: 497.50 | H179: 520.90 | I179: 525.30 | J179: 532.60 | K179: 518 | L179: 506.3 | M179: 242.03789
A180: 171 | B180: SAIL | C180: 82.55 | D180: 82.03 | E180: 81.12 | F180: 79.68 | G180: 78.77 | H180: 83.47 | I180: 84.38 | J180: 85.82 | K180: 82.95 | L180: 80.6 | M180: 136.16947
A181: 172 | B181: SUNPHARMA | C181: 991.9 | D181: 989.13 | E181: 981.77 | F181: 971.63 | G181: 964.27 | H181: 999.27 | I181: 1006.63 | J181: 1016.77 | K181: 996.5 | L181: 979 | M181: 30.45795
A182: 173 | B182: SUNTV | C182: 406.15 | D182: 403.27 | E182: 399.53 | F182: 392.92 | G182: 389.18 | H182: 409.88 | I182: 413.62 | J182: 420.23 | K182: 407 | L182: 396.65 | M182: 4.9554
A183: 174 | B183: SYNGENE | C183: 578.95 | D183: 577.68 | E183: 574.87 | F183: 570.78 | G183: 567.97 | H183: 581.77 | I183: 584.58 | J183: 588.67 | K183: 580.5 | L183: 573.6 | M183: 2.27435
A184: 175 | B184: TVSMOTOR | C184: 1079.2 | D184: 1063.57 | E184: 1045.63 | F184: 1012.07 | G184: 994.13 | H184: 1097.13 | I184: 1115.07 | J184: 1148.63 | K184: 1081.5 | L184: 1030 | M184: 9.77216
A185: 176 | B185: TATACHEM | C185: 954.75 | D185: 953.58 | E185: 946.17 | F185: 937.58 | G185: 930.17 | H185: 962.17 | I185: 969.58 | J185: 978.17 | K185: 961 | L185: 945 | M185: 6.08017
A186: 177 | B186: TATACOMM | C186: 1229.15 | D186: 1224.38 | E186: 1214.77 | F186: 1200.38 | G186: 1190.77 | H186: 1238.77 | I186: 1248.38 | J186: 1262.77 | K186: 1234 | L186: 1210 | M186: 1.92892
A187: 178 | B187: TCS | C187: 3138.9 | D187: 3131.00 | E187: 3112.00 | F187: 3085.10 | G187: 3066.10 | H187: 3157.90 | I187: 3176.90 | J187: 3203.80 | K187: 3150 | L187: 3104.1 | M187: 17.40616
A188: 179 | B188: TATACONSUM | C188: 697.55 | D188: 698.45 | E188: 693.90 | F188: 690.25 | G188: 685.70 | H188: 702.10 | I188: 706.65 | J188: 710.30 | K188: 703 | L188: 694.8 | M188: 11.60832
A189: 180 | B189: TATAELXSI | C189: 5956.05 | D189: 5944.03 | E189: 5912.07 | F189: 5868.08 | G189: 5836.12 | H189: 5988.02 | I189: 6019.98 | J189: 6063.97 | K189: 5976 | L189: 5900.05 | M189: 0.98539
A190: 181 | B190: TATAMOTORS | C190: 409.2 | D190: 407.13 | E190: 403.67 | F190: 398.13 | G190: 394.67 | H190: 412.67 | I190: 416.13 | J190: 421.67 | K190: 410.6 | L190: 401.6 | M190: 104.78506
A191: 182 | B191: TATAPOWER | C191: 185.5 | D191: 185.50 | E191: 183.30 | F191: 181.10 | G191: 178.90 | H191: 187.70 | I191: 189.90 | J191: 192.10 | K191: 187.7 | L191: 183.3 | M191: 174.80941
A192: 183 | B192: TATASTEEL | C192: 103.6 | D192: 103.25 | E192: 102.00 | F192: 100.40 | G192: 99.15 | H192: 104.85 | I192: 106.10 | J192: 107.70 | K192: 104.5 | L192: 101.65 | M192: 372.21124
A193: 184 | B193: TTML | C193: 52.85 | D193: 51.78 | E193: 50.72 | F193: 48.58 | G193: 47.52 | H193: 53.92 | I193: 54.98 | J193: 57.12 | K193: 52.85 | L193: 49.65 | M193: 20.41879
A194: 185 | B194: TECHM | C194: 1081.1 | D194: 1077.87 | E194: 1068.33 | F194: 1055.57 | G194: 1046.03 | H194: 1090.63 | I194: 1100.17 | J194: 1112.93 | K194: 1087.4 | L194: 1065.1 | M194: 16.42278
A195: 186 | B195: RAMCOCEM | C195: 749.65 | D195: 748.48 | E195: 741.17 | F195: 732.68 | G195: 725.37 | H195: 756.97 | I195: 764.28 | J195: 772.77 | K195: 755.8 | L195: 740 | M195: 7.49652
A196: 187 | B196: TITAN | C196: 2515.05 | D196: 2511.35 | E196: 2497.70 | F196: 2480.35 | G196: 2466.70 | H196: 2528.70 | I196: 2542.35 | J196: 2559.70 | K196: 2525 | L196: 2494 | M196: 7.10603
A197: 188 | B197: TORNTPHARM | C197: 1539.5 | D197: 1540.85 | E197: 1521.70 | F197: 1503.90 | G197: 1484.75 | H197: 1558.65 | I197: 1577.80 | J197: 1595.60 | K197: 1560 | L197: 1523.05 | M197: 1.85137
A198: 189 | B198: TORNTPOWER | C198: 530.25 | D198: 524.05 | E198: 513.60 | F198: 496.95 | G198: 486.50 | H198: 540.70 | I198: 551.15 | J198: 567.80 | K198: 534.5 | L198: 507.4 | M198: 23.90188
A199: 190 | B199: TRENT | C199: 1335.85 | D199: 1321.62 | E199: 1302.23 | F199: 1268.62 | G199: 1249.23 | H199: 1355.23 | I199: 1374.62 | J199: 1408.23 | K199: 1341 | L199: 1288 | M199: 5.08829
A200: 191 | B200: TRIDENT | C200: 26.25 | D200: 26.12 | E200: 25.68 | F200: 25.12 | G200: 24.68 | H200: 26.68 | I200: 27.12 | J200: 27.68 | K200: 26.55 | L200: 25.55 | M200: 113.40718
A201: 192 | B201: TIINDIA | C201: 2570.65 | D201: 2563.47 | E201: 2545.93 | F201: 2521.22 | G201: 2503.68 | H201: 2588.18 | I201: 2605.72 | J201: 2630.43 | K201: 2581 | L201: 2538.75 | M201: 4.84967
A202: 193 | B202: UPL | C202: 707.4 | D202: 707.93 | E202: 697.87 | F202: 688.33 | G202: 678.27 | H202: 717.47 | I202: 727.53 | J202: 737.07 | K202: 718 | L202: 698.4 | M202: 28.71532
A203: 194 | B203: ULTRACEMCO | C203: 7570.75 | D203: 7523.58 | E203: 7447.17 | F203: 7323.58 | G203: 7247.17 | H203: 7647.17 | I203: 7723.58 | J203: 7847.17 | K203: 7600 | L203: 7400 | M203: 4.45346
A204: 195 | B204: UNIONBANK | C204: 66.4 | D204: 65.15 | E204: 62.55 | F204: 58.70 | G204: 56.10 | H204: 69.00 | I204: 71.60 | J204: 75.45 | K204: 67.75 | L204: 61.3 | M204: 144.62638
A205: 196 | B205: UBL | C205: 1406.7 | D205: 1410.52 | E205: 1398.18 | F205: 1389.67 | G205: 1377.33 | H205: 1419.03 | I205: 1431.37 | J205: 1439.88 | K205: 1422.85 | L205: 1402 | M205: 3.43617
... 29 more rows

Sheet MidCap Intra
L5: Back To Main Page
A6: FOR INTRA DAY TRADING | K6: =Main!B10 -> 2023-03-31
A9: Sr.no | B9: Scrip | C9: CLOSE RATE | D9: Pivot Point | E9: Supports | H9: Resistances
E10: S1 | F10: S2 | G10: S3 | H10: R1 | I10: R2 | J10: R3 | K10: HIGH | L10: LOW | M10: Total Trade Quanity in Lakhs
A11: 1 | B11: 360ONE | C11: 438.6 | D11: 434.57 | E11: 429.13 | F11: 419.67 | G11: 414.23 | H11: 444.03 | I11: 449.47 | J11: 458.93 | K11: 440 | L11: 425.1 | M11: 1.57615
A12: 2 | B12: 3MINDIA | C12: 23095 | D12: 22978.00 | E12: 22706.00 | F12: 22317.00 | G12: 22045.00 | H12: 23367.00 | I12: 23639.00 | J12: 24028.00 | K12: 23250 | L12: 22589 | M12: 0.01977
A13: 3 | B13: ABB | C13: 3391.45 | D13: 3380.03 | E13: 3344.42 | F13: 3297.38 | G13: 3261.77 | H13: 3427.07 | I13: 3462.68 | J13: 3509.72 | K13: 3415.65 | L13: 3333 | M13: 10.31003
A14: 4 | B14: ACC | C14: 1625.9 | D14: 1622.42 | E14: 1595.83 | F14: 1565.77 | G14: 1539.18 | H14: 1652.48 | I14: 1679.07 | J14: 1709.13 | K14: 1649 | L14: 1592.35 | M14: 10.12619
A15: 5 | B15: AIAENG | C15: 2905.4 | D15: 2900.80 | E15: 2865.60 | F15: 2825.80 | G15: 2790.60 | H15: 2940.60 | I15: 2975.80 | J15: 3015.60 | K15: 2936 | L15: 2861 | M15: 0.9209
A16: 6 | B16: APLAPOLLO | C16: 1200.05 | D16: 1202.10 | E16: 1188.95 | F16: 1177.85 | G16: 1164.70 | H16: 1213.20 | I16: 1226.35 | J16: 1237.45 | K16: 1215.25 | L16: 1191 | M16: 4.03616
A17: 7 | B17: AUBANK | C17: 585.55 | D17: 579.40 | E17: 568.85 | F17: 552.15 | G17: 541.60 | H17: 596.10 | I17: 606.65 | J17: 623.35 | K17: 589.95 | L17: 562.7 | M17: 25.05188
A18: 8 | B18: AARTIDRUGS | C18: 337.5 | D18: 340.78 | E18: 328.77 | F18: 320.03 | G18: 308.02 | H18: 349.52 | I18: 361.53 | J18: 370.27 | K18: 352.8 | L18: 332.05 | M18: 11.31381
A19: 9 | B19: AAVAS | C19: 1606.4 | D19: 1611.63 | E19: 1584.47 | F19: 1562.53 | G19: 1535.37 | H19: 1633.57 | I19: 1660.73 | J19: 1682.67 | K19: 1638.8 | L19: 1589.7 | M19: 1.13298
A20: 10 | B20: ABBOTINDIA | C20: 21770.05 | D20: 21748.25 | E20: 21614.65 | F20: 21459.25 | G20: 21325.65 | H20: 21903.65 | I20: 22037.25 | J20: 22192.65 | K20: 21881.85 | L20: 21592.85 | M20: 0.09818
A21: 11 | B21: ADANIENT | C21: 1740.4 | D21: 1695.83 | E21: 1635.67 | F21: 1530.93 | G21: 1470.77 | H21: 1800.57 | I21: 1860.73 | J21: 1965.47 | K21: 1756 | L21: 1591.1 | M21: 93.32702
A22: 12 | B22: ADANIGREEN | C22: 894.35 | D22: 919.07 | E22: 864.18 | F22: 834.02 | G22: 779.13 | H22: 949.23 | I22: 1004.12 | J22: 1034.28 | K22: 973.95 | L22: 888.9 | M22: 89.02722
A23: 13 | B23: ADANIPORTS | C23: 636.65 | D23: 623.10 | E23: 603.65 | F23: 570.65 | G23: 551.20 | H23: 656.10 | I23: 675.55 | J23: 708.55 | K23: 642.55 | L23: 590.1 | M23: 170.57169
A24: 14 | B24: ATGL | C24: 871.7 | D24: 888.70 | E24: 847.45 | F24: 823.20 | G24: 781.95 | H24: 912.95 | I24: 954.20 | J24: 978.45 | K24: 929.95 | L24: 864.45 | M24: 29.97429
A25: 15 | B25: ADANITRANS | C25: 1003.45 | D25: 1004.23 | E25: 963.47 | F25: 923.48 | G25: 882.72 | H25: 1044.22 | I25: 1084.98 | J25: 1124.97 | K25: 1045 | L25: 964.25 | M25: 33.44811
A26: 16 | B26: AWL | C26: 386.55 | D26: 376.83 | E26: 367.12 | F26: 347.68 | G26: 337.97 | H26: 396.27 | I26: 405.98 | J26: 425.42 | K26: 386.55 | L26: 357.4 | M26: 62.23991
A27: 17 | B27: ABCAPITAL | C27: 153.1 | D27: 151.12 | E27: 148.23 | F27: 143.37 | G27: 140.48 | H27: 155.98 | I27: 158.87 | J27: 163.73 | K27: 154 | L27: 146.25 | M27: 60.64506
A28: 18 | B28: ABFRL | C28: 211.15 | D28: 210.20 | E28: 208.50 | F28: 205.85 | G28: 204.15 | H28: 212.85 | I28: 214.55 | J28: 217.20 | K28: 211.9 | L28: 207.55 | M28: 16.92084
A29: 19 | B29: ABSLAMC | C29: 316.65 | D29: 317.03 | E29: 308.62 | F29: 300.58 | G29: 292.17 | H29: 325.07 | I29: 333.48 | J29: 341.52 | K29: 325.45 | L29: 309 | M29: 2.80552
A30: 20 | B30: AEGISCHEM | C30: 376.3 | D30: 377.80 | E30: 371.30 | F30: 366.30 | G30: 359.80 | H30: 382.80 | I30: 389.30 | J30: 394.30 | K30: 384.3 | L30: 372.8 | M30: 4.77939
A31: 21 | B31: AETHER | C31: 905.2 | D31: 893.72 | E31: 877.43 | F31: 849.67 | G31: 833.38 | H31: 921.48 | I31: 937.77 | J31: 965.53 | K31: 910 | L31: 865.95 | M31: 0.61148
A32: 22 | B32: AFFLE | C32: 960.4 | D32: 960.80 | E32: 947.60 | F32: 934.80 | G32: 921.60 | H32: 973.60 | I32: 986.80 | J32: 999.60 | K32: 974 | L32: 948 | M32: 1.40917
A33: 23 | B33: AJANTPHARM | C33: 1209 | D33: 1195.35 | E33: 1168.75 | F33: 1128.50 | G33: 1101.90 | H33: 1235.60 | I33: 1262.20 | J33: 1302.45 | K33: 1221.95 | L33: 1155.1 | M33: 1.37024
A34: 24 | B34: APLLTD | C34: 468.65 | D34: 471.25 | E34: 459.70 | F34: 450.75 | G34: 439.20 | H34: 480.20 | I34: 491.75 | J34: 500.70 | K34: 482.8 | L34: 462.3 | M34: 2.42515
A35: 25 | B35: ALKEM | C35: 3300.3 | D35: 3280.48 | E35: 3249.97 | F35: 3199.63 | G35: 3169.12 | H35: 3330.82 | I35: 3361.33 | J35: 3411.67 | K35: 3311 | L35: 3230.15 | M35: 0.71738
A36: 26 | B36: ALKYLAMINE | C36: 2172.25 | D36: 2169.08 | E36: 2153.17 | F36: 2134.08 | G36: 2118.17 | H36: 2188.17 | I36: 2204.08 | J36: 2223.17 | K36: 2185 | L36: 2150 | M36: 0.33477
A37: 27 | B37: ALOKINDS | C37: 11.1 | D37: 11.32 | E37: 10.68 | F37: 10.27 | G37: 9.63 | H37: 11.73 | I37: 12.37 | J37: 12.78 | K37: 11.95 | L37: 10.9 | M37: 139.33193
A38: 28 | B38: AMARAJABAT | C38: 570.8 | D38: 569.33 | E38: 564.77 | F38: 558.73 | G38: 554.17 | H38: 575.37 | I38: 579.93 | J38: 585.97 | K38: 573.9 | L38: 563.3 | M38: 2.5066
A39: 29 | B39: AMBER | C39: 1823.55 | D39: 1812.08 | E39: 1791.47 | F39: 1759.38 | G39: 1738.77 | H39: 1844.17 | I39: 1864.78 | J39: 1896.87 | K39: 1832.7 | L39: 1780 | M39: 0.78735
A40: 30 | B40: AMBUJACEM | C40: 363.9 | D40: 363.05 | E40: 359.05 | F40: 354.20 | G40: 350.20 | H40: 367.90 | I40: 371.90 | J40: 376.75 | K40: 367.05 | L40: 358.2 | M40: 95.58023
A41: 31 | B41: ANGELONE | C41: 1163.25 | D41: 1157.68 | E41: 1138.67 | F41: 1114.08 | G41: 1095.07 | H41: 1182.27 | I41: 1201.28 | J41: 1225.87 | K41: 1176.7 | L41: 1133.1 | M41: 4.68477
A42: 32 | B42: ANURAS | C42: 832.9 | D42: 831.58 | E42: 828.37 | F42: 823.83 | G42: 820.62 | H42: 836.12 | I42: 839.33 | J42: 843.87 | K42: 834.8 | L42: 827.05 | M42: 0.8297
A43: 33 | B43: APOLLOHOSP | C43: 4363 | D43: 4351.37 | E43: 4322.73 | F43: 4282.47 | G43: 4253.83 | H43: 4391.63 | I43: 4420.27 | J43: 4460.53 | K43: 4380 | L43: 4311.1 | M43: 2.5079
A44: 34 | B44: APOLLOTYRE | C44: 311.5 | D44: 310.17 | E44: 306.58 | F44: 301.67 | G44: 298.08 | H44: 315.08 | I44: 318.67 | J44: 323.58 | K44: 313.75 | L44: 305.25 | M44: 28.79575
A45: 35 | B45: APTUS | C45: 241.05 | D45: 240.40 | E45: 235.70 | F45: 230.35 | G45: 225.65 | H45: 245.75 | I45: 250.45 | J45: 255.80 | K45: 245.1 | L45: 235.05 | M45: 3.08142
A46: 36 | B46: ASAHIINDIA | C46: 455.3 | D46: 451.57 | E46: 442.73 | F46: 430.17 | G46: 421.33 | H46: 464.13 | I46: 472.97 | J46: 485.53 | K46: 460.4 | L46: 439 | M46: 1.06235
A47: 37 | B47: ASHOKLEY | C47: 136.45 | D47: 135.88 | E47: 134.97 | F47: 133.48 | G47: 132.57 | H47: 137.37 | I47: 138.28 | J47: 139.77 | K47: 136.8 | L47: 134.4 | M47: 43.02841
A48: 38 | B48: ASIANPAINT | C48: 2770.5 | D48: 2773.08 | E48: 2752.42 | F48: 2734.33 | G48: 2713.67 | H48: 2791.17 | I48: 2811.83 | J48: 2829.92 | K48: 2793.75 | L48: 2755 | M48: 10.87648
A49: 39 | B49: ASTERDM | C49: 241.25 | D49: 240.88 | E49: 238.77 | F49: 236.28 | G49: 234.17 | H49: 243.37 | I49: 245.48 | J49: 247.97 | K49: 243 | L49: 238.4 | M49: 7.17218
A50: 40 | B50: ASTRAZEN | C50: 3187.45 | D50: 3250.35 | E50: 3040.70 | F50: 2893.95 | G50: 2684.30 | H50: 3397.10 | I50: 3606.75 | J50: 3753.50 | K50: 3460 | L50: 3103.6 | M50: 0.27224
A51: 41 | B51: ASTRAL | C51: 1342.7 | D51: 1330.63 | E51: 1313.37 | F51: 1284.03 | G51: 1266.77 | H51: 1359.97 | I51: 1377.23 | J51: 1406.57 | K51: 1347.9 | L51: 1301.3 | M51: 3.90104
A52: 42 | B52: ATUL | C52: 7009.5 | D52: 6989.03 | E52: 6952.52 | F52: 6895.53 | G52: 6859.02 | H52: 7046.02 | I52: 7082.53 | J52: 7139.52 | K52: 7025.55 | L52: 6932.05 | M52: 0.2635
A53: 43 | B53: AUROPHARMA | C53: 509.65 | D53: 509.22 | E53: 505.08 | F53: 500.52 | G53: 496.38 | H53: 513.78 | I53: 517.92 | J53: 522.48 | K53: 513.35 | L53: 504.65 | M53: 13.09603
A54: 44 | B54: AVANTIFEED | C54: 332.2 | D54: 330.07 | E54: 325.13 | F54: 318.07 | G54: 313.13 | H54: 337.13 | I54: 342.07 | J54: 349.13 | K54: 335 | L54: 323 | M54: 2.33228
A55: 45 | B55: DMART | C55: 3325.45 | D55: 3341.82 | E55: 3298.63 | F55: 3271.82 | G55: 3228.63 | H55: 3368.63 | I55: 3411.82 | J55: 3438.63 | K55: 3385 | L55: 3315 | M55: 2.76925
A56: 46 | B56: AXISBANK | C56: 842.6 | D56: 840.35 | E56: 832.25 | F56: 821.90 | G56: 813.80 | H56: 850.70 | I56: 858.80 | J56: 869.15 | K56: 848.45 | L56: 830 | M56: 171.21194
A57: 47 | B57: BASF | C57: 2236.85 | D57: 2238.75 | E57: 2228.10 | F57: 2219.35 | G57: 2208.70 | H57: 2247.50 | I57: 2258.15 | J57: 2266.90 | K57: 2249.4 | L57: 2230 | M57: 0.12868
A58: 48 | B58: BEML | C58: 1247 | D58: 1251.57 | E58: 1238.08 | F58: 1229.17 | G58: 1215.68 | H58: 1260.48 | I58: 1273.97 | J58: 1282.88 | K58: 1265.05 | L58: 1242.65 | M58: 0.86305
A59: 49 | B59: BSE | C59: 415.85 | D59: 414.48 | E59: 408.97 | F59: 402.08 | G59: 396.57 | H59: 421.37 | I59: 426.88 | J59: 433.77 | K59: 420 | L59: 407.6 | M59: 9.73328
A60: 50 | B60: BAJAJ-AUTO | C60: 3879.3 | D60: 3857.82 | E60: 3821.63 | F60: 3763.97 | G60: 3727.78 | H60: 3915.48 | I60: 3951.67 | J60: 4009.33 | K60: 3894 | L60: 3800.15 | M60: 4.293
A61: 51 | B61: BAJAJELEC | C61: 1098.9 | D61: 1097.83 | E61: 1082.67 | F61: 1066.43 | G61: 1051.27 | H61: 1114.07 | I61: 1129.23 | J61: 1145.47 | K61: 1113 | L61: 1081.6 | M61: 0.28813
A62: 52 | B62: BAJFINANCE | C62: 5625.2 | D62: 5608.73 | E62: 5571.47 | F62: 5517.73 | G62: 5480.47 | H62: 5662.47 | I62: 5699.73 | J62: 5753.47 | K62: 5646 | L62: 5555 | M62: 11.09612
A63: 53 | B63: BAJAJFINSV | C63: 1246.05 | D63: 1241.17 | E63: 1230.33 | F63: 1214.62 | G63: 1203.78 | H63: 1256.88 | I63: 1267.72 | J63: 1283.43 | K63: 1252 | L63: 1225.45 | M63: 16.5742
A64: 54 | B64: BAJAJHLDNG | C64: 5866.75 | D64: 5942.72 | E64: 5744.03 | F64: 5621.32 | G64: 5422.63 | H64: 6065.43 | I64: 6264.12 | J64: 6386.83 | K64: 6141.4 | L64: 5820 | M64: 0.89796
A65: 55 | B65: BALAMINES | C65: 1942.4 | D65: 1949.08 | E65: 1925.42 | F65: 1908.43 | G65: 1884.77 | H65: 1966.07 | I65: 1989.73 | J65: 2006.72 | K65: 1972.75 | L65: 1932.1 | M65: 0.54995
A66: 56 | B66: BALKRISIND | C66: 1964.75 | D66: 1961.23 | E66: 1953.52 | F66: 1942.28 | G66: 1934.57 | H66: 1972.47 | I66: 1980.18 | J66: 1991.42 | K66: 1968.95 | L66: 1950 | M66: 1.65672
A67: 57 | B67: BALRAMCHIN | C67: 375.55 | D67: 371.45 | E67: 364.40 | F67: 353.25 | G67: 346.20 | H67: 382.60 | I67: 389.65 | J67: 400.80 | K67: 378.5 | L67: 360.3 | M67: 22.32599
A68: 58 | B68: BANDHANBNK | C68: 189.9 | D68: 188.93 | E68: 185.97 | F68: 182.03 | G68: 179.07 | H68: 192.87 | I68: 195.83 | J68: 199.77 | K68: 191.9 | L68: 185 | M68: 263.98887
A69: 59 | B69: BANKBARODA | C69: 164.45 | D69: 163.15 | E69: 161.30 | F69: 158.15 | G69: 156.30 | H69: 166.30 | I69: 168.15 | J69: 171.30 | K69: 165 | L69: 160 | M69: 383.90279
A70: 60 | B70: BANKINDIA | C70: 76.9 | D70: 75.30 | E70: 72.65 | F70: 68.40 | G70: 65.75 | H70: 79.55 | I70: 82.20 | J70: 86.45 | K70: 77.95 | L70: 71.05 | M70: 200.79281
A71: 61 | B71: MAHABANK | C71: 24.65 | D71: 24.12 | E71: 23.38 | F71: 22.12 | G71: 21.38 | H71: 25.38 | I71: 26.12 | J71: 27.38 | K71: 24.85 | L71: 22.85 | M71: 172.63411
A72: 62 | B72: BATAINDIA | C72: 1406.75 | D72: 1399.30 | E72: 1388.90 | F72: 1371.05 | G72: 1360.65 | H72: 1417.15 | I72: 1427.55 | J72: 1445.40 | K72: 1409.7 | L72: 1381.45 | M72: 2.82259
A73: 63 | B73: BAYERCROP | C73: 3996.8 | D73: 3989.25 | E73: 3948.55 | F73: 3900.30 | G73: 3859.60 | H73: 4037.50 | I73: 4078.20 | J73: 4126.45 | K73: 4029.95 | L73: 3941 | M73: 0.73957
A74: 64 | B74: BERGEPAINT | C74: 573.25 | D74: 574.97 | E74: 567.93 | F74: 562.62 | G74: 555.58 | H74: 580.28 | I74: 587.32 | J74: 592.63 | K74: 582 | L74: 569.65 | M74: 8.67598
A75: 65 | B75: BDL | C75: 954.9 | D75: 938.10 | E75: 915.05 | F75: 875.20 | G75: 852.15 | H75: 977.95 | I75: 1001.00 | J75: 1040.85 | K75: 961.15 | L75: 898.25 | M75: 7.77479
A76: 66 | B76: BEL | C76: 91.55 | D76: 91.17 | E76: 90.28 | F76: 89.02 | G76: 88.13 | H76: 92.43 | I76: 93.32 | J76: 94.58 | K76: 92.05 | L76: 89.9 | M76: 361.03221
A77: 67 | B77: BHARATFORG | C77: 757.3 | D77: 754.23 | E77: 748.47 | F77: 739.63 | G77: 733.87 | H77: 763.07 | I77: 768.83 | J77: 777.67 | K77: 760 | L77: 745.4 | M77: 13.41232
A78: 68 | B78: BHEL | C78: 70.3 | D78: 70.42 | E78: 69.58 | F78: 68.87 | G78: 68.03 | H78: 71.13 | I78: 71.97 | J78: 72.68 | K78: 71.25 | L78: 69.7 | M78: 212.4221
A79: 69 | B79: BPCL | C79: 339.85 | D79: 339.52 | E79: 336.63 | F79: 333.42 | G79: 330.53 | H79: 342.73 | I79: 345.62 | J79: 348.83 | K79: 342.4 | L79: 336.3 | M79: 29.8592
A80: 70 | B80: BHARATRAS | C80: 8989.2 | D80: 9040.08 | E80: 8780.22 | F80: 8571.23 | G80: 8311.37 | H80: 9249.07 | I80: 9508.93 | J80: 9717.92 | K80: 9299.95 | L80: 8831.1 | M80: 0.04792
A81: 71 | B81: BHARTIARTL | C81: 743.6 | D81: 745.78 | E81: 736.67 | F81: 729.73 | G81: 720.62 | H81: 752.72 | I81: 761.83 | J81: 768.77 | K81: 754.9 | L81: 738.85 | M81: 48.91868
A82: 72 | B82: BIOCON | C82: 201.6 | D82: 201.75 | E82: 199.50 | F82: 197.40 | G82: 195.15 | H82: 203.85 | I82: 206.10 | J82: 208.20 | K82: 204 | L82: 199.65 | M82: 110.20214
A83: 73 | B83: BIRLACORPN | C83: 884.4 | D83: 879.63 | E83: 870.27 | F83: 856.13 | G83: 846.77 | H83: 893.77 | I83: 903.13 | J83: 917.27 | K83: 889 | L83: 865.5 | M83: 3.76621
A84: 74 | B84: BSOFT | C84: 255.5 | D84: 254.23 | E84: 251.77 | F84: 248.03 | G84: 245.57 | H84: 257.97 | I84: 260.43 | J84: 264.17 | K84: 256.7 | L84: 250.5 | M84: 12.92904
A85: 75 | B85: BLUEDART | C85: 6080.65 | D85: 6017.57 | E85: 5906.23 | F85: 5731.82 | G85: 5620.48 | H85: 6191.98 | I85: 6303.32 | J85: 6477.73 | K85: 6128.9 | L85: 5843.15 | M85: 0.31479
A86: 76 | B86: BLUESTARCO | C86: 1373.25 | D86: 1370.17 | E86: 1355.08 | F86: 1336.92 | G86: 1321.83 | H86: 1388.33 | I86: 1403.42 | J86: 1421.58 | K86: 1385.25 | L86: 1352 | M86: 1.08184
A87: 77 | B87: BBTC | C87: 795.75 | D87: 797.28 | E87: 783.57 | F87: 771.38 | G87: 757.67 | H87: 809.47 | I87: 823.18 | J87: 835.37 | K87: 811 | L87: 785.1 | M87: 0.80363
A88: 78 | B88: BORORENEW | C88: 414.65 | D88: 410.15 | E88: 396.30 | F88: 377.95 | G88: 364.10 | H88: 428.50 | I88: 442.35 | J88: 460.70 | K88: 424 | L88: 391.8 | M88: 18.40204
A89: 79 | B89: BOSCHLTD | C89: 18977.15 | D89: 18823.68 | E89: 18607.37 | F89: 18237.58 | G89: 18021.27 | H89: 19193.47 | I89: 19409.78 | J89: 19779.57 | K89: 19040 | L89: 18453.9 | M89: 0.50052
A90: 80 | B90: BRIGADE | C90: 460.2 | D90: 460.25 | E90: 450.50 | F90: 440.80 | G90: 431.05 | H90: 469.95 | I90: 479.70 | J90: 489.40 | K90: 470 | L90: 450.55 | M90: 1.05914
A91: 81 | B91: BCG | C91: 13.3 | D91: 14.33 | E91: 12.27 | F91: 11.23 | G91: 9.17 | H91: 15.37 | I91: 17.43 | J91: 18.47 | K91: 16.4 | L91: 13.3 | M91: 777.72217
A92: 82 | B92: BRITANNIA | C92: 4276.2 | D92: 4257.70 | E92: 4217.45 | F92: 4158.70 | G92: 4118.45 | H92: 4316.45 | I92: 4356.70 | J92: 4415.45 | K92: 4297.95 | L92: 4198.95 | M92: 3.16461
A93: 83 | B93: MAPMYINDIA | C93: 995.35 | D93: 998.78 | E93: 986.57 | F93: 977.78 | G93: 965.57 | H93: 1007.57 | I93: 1019.78 | J93: 1028.57 | K93: 1011 | L93: 990 | M93: 1.09515
A94: 84 | B94: CCL | C94: 565.4 | D94: 562.58 | E94: 556.17 | F94: 546.93 | G94: 540.52 | H94: 571.82 | I94: 578.23 | J94: 587.47 | K94: 569 | L94: 553.35 | M94: 1.21935
A95: 85 | B95: CESC | C95: 65.8 | D95: 65.27 | E95: 63.33 | F95: 60.87 | G95: 58.93 | H95: 67.73 | I95: 69.67 | J95: 72.13 | K95: 67.2 | L95: 62.8 | M95: 28.32316
A96: 86 | B96: CGPOWER | C96: 305.05 | D96: 300.17 | E96: 292.28 | F96: 279.52 | G96: 271.63 | H96: 312.93 | I96: 320.82 | J96: 333.58 | K96: 308.05 | L96: 287.4 | M96: 29.2512
A97: 87 | B97: CRISIL | C97: 3262.85 | D97: 3224.97 | E97: 3139.93 | F97: 3017.02 | G97: 2931.98 | H97: 3347.88 | I97: 3432.92 | J97: 3555.83 | K97: 3310 | L97: 3102.05 | M97: 0.39405
A98: 88 | B98: CSBBANK | C98: 251.4 | D98: 246.82 | E98: 241.63 | F98: 231.87 | G98: 226.68 | H98: 256.58 | I98: 261.77 | J98: 271.53 | K98: 252 | L98: 237.05 | M98: 7.91374
A99: 89 | B99: CAMPUS | C99: 326.25 | D99: 322.12 | E99: 315.08 | F99: 303.92 | G99: 296.88 | H99: 333.28 | I99: 340.32 | J99: 351.48 | K99: 329.15 | L99: 310.95 | M99: 13.30674
A100: 90 | B100: CANFINHOME | C100: 515.4 | D100: 516.92 | E100: 510.48 | F100: 505.57 | G100: 499.13 | H100: 521.83 | I100: 528.27 | J100: 533.18 | K100: 523.35 | L100: 512 | M100: 8.46192
A101: 91 | B101: CANBK | C101: 281.05 | D101: 279.25 | E101: 275.90 | F101: 270.75 | G101: 267.40 | H101: 284.40 | I101: 287.75 | J101: 292.90 | K101: 282.6 | L101: 274.1 | M101: 156.84111
A102: 92 | B102: CAPLIPOINT | C102: 592.5 | D102: 589.17 | E102: 578.33 | F102: 564.17 | G102: 553.33 | H102: 603.33 | I102: 614.17 | J102: 628.33 | K102: 600 | L102: 575 | M102: 1.56855
A103: 93 | B103: CGCL | C103: 601.55 | D103: 596.52 | E103: 576.03 | F103: 550.52 | G103: 530.03 | H103: 622.03 | I103: 642.52 | J103: 668.03 | K103: 617 | L103: 571 | M103: 0.61464
A104: 94 | B104: CARBORUNIV | C104: 964.75 | D104: 957.42 | E104: 941.83 | F104: 918.92 | G104: 903.33 | H104: 980.33 | I104: 995.92 | J104: 1018.83 | K104: 973 | L104: 934.5 | M104: 0.69833
A105: 95 | B105: CASTROLIND | C105: 111.25 | D105: 111.07 | E105: 109.53 | F105: 107.82 | G105: 106.28 | H105: 112.78 | I105: 114.32 | J105: 116.03 | K105: 112.6 | L105: 109.35 | M105: 6.39951
A106: 96 | B106: CEATLTD | C106: 1440 | D106: 1421.68 | E106: 1395.37 | F106: 1350.73 | G106: 1324.42 | H106: 1466.32 | I106: 1492.63 | J106: 1537.27 | K106: 1448 | L106: 1377.05 | M106: 0.84011
A107: 97 | B107: CENTRALBK | C107: 24.25 | D107: 23.70 | E107: 22.95 | F107: 21.65 | G107: 20.90 | H107: 25.00 | I107: 25.75 | J107: 27.05 | K107: 24.45 | L107: 22.4 | M107: 102.01189
A108: 98 | B108: CDSL | C108: 891.1 | D108: 896.02 | E108: 882.08 | F108: 873.07 | G108: 859.13 | H108: 905.03 | I108: 918.97 | J108: 927.98 | K108: 909.95 | L108: 887 | M108: 4.83883
A109: 99 | B109: CENTURYPLY | C109: 456.7 | D109: 451.37 | E109: 441.33 | F109: 425.97 | G109: 415.93 | H109: 466.73 | I109: 476.77 | J109: 492.13 | K109: 461.4 | L109: 436 | M109: 1.50903
A110: 100 | B110: CENTURYTEX | C110: 645.5 | D110: 641.18 | E110: 625.32 | F110: 605.13 | G110: 589.27 | H110: 661.37 | I110: 677.23 | J110: 697.42 | K110: 657.05 | L110: 621 | M110: 2.18673
A111: 101 | B111: CERA | C111: 6463.7 | D111: 6443.50 | E111: 6257.00 | F111: 6050.30 | G111: 5863.80 | H111: 6650.20 | I111: 6836.70 | J111: 7043.40 | K111: 6630 | L111: 6236.8 | M111: 0.40152
A112: 102 | B112: CHALET | C112: 359.55 | D112: 359.80 | E112: 356.90 | F112: 354.25 | G112: 351.35 | H112: 362.45 | I112: 365.35 | J112: 368.00 | K112: 362.7 | L112: 357.15 | M112: 1.90389
A113: 103 | B113: CHAMBLFERT | C113: 259.1 | D113: 255.70 | E113: 251.80 | F113: 244.50 | G113: 240.60 | H113: 263.00 | I113: 266.90 | J113: 274.20 | K113: 259.6 | L113: 248.4 | M113: 13.03833
A114: 104 | B114: CHEMPLASTS | C114: 345.25 | D114: 347.92 | E114: 340.33 | F114: 335.42 | G114: 327.83 | H114: 352.83 | I114: 360.42 | J114: 365.33 | K114: 355.5 | L114: 343 | M114: 1.69149
A115: 105 | B115: CHOLAHLDNG | C115: 523.65 | D115: 524.43 | E115: 519.22 | F115: 514.78 | G115: 509.57 | H115: 528.87 | I115: 534.08 | J115: 538.52 | K115: 529.65 | L115: 520 | M115: 5.53139
A116: 106 | B116: CHOLAFIN | C116: 747.85 | D116: 743.35 | E116: 735.20 | F116: 722.55 | G116: 714.40 | H116: 756.00 | I116: 764.15 | J116: 776.80 | K116: 751.5 | L116: 730.7 | M116: 11.43861
A117: 107 | B117: CIPLA | C117: 887.7 | D117: 889.88 | E117: 883.17 | F117: 878.63 | G117: 871.92 | H117: 894.42 | I117: 901.13 | J117: 905.67 | K117: 896.6 | L117: 885.35 | M117: 30.49688
A118: 108 | B118: CUB | C118: 122.5 | D118: 121.98 | E118: 120.87 | F118: 119.23 | G118: 118.12 | H118: 123.62 | I118: 124.73 | J118: 126.37 | K118: 123.1 | L118: 120.35 | M118: 38.76153
A119: 109 | B119: CLEAN | C119: 1238.8 | D119: 1249.25 | E119: 1224.55 | F119: 1210.30 | G119: 1185.60 | H119: 1263.50 | I119: 1288.20 | J119: 1302.45 | K119: 1273.95 | L119: 1235 | M119: 0.90965
A120: 110 | B120: COALINDIA | C120: 212.95 | D120: 212.08 | E120: 209.27 | F120: 205.58 | G120: 202.77 | H120: 215.77 | I120: 218.58 | J120: 222.27 | K120: 214.9 | L120: 208.4 | M120: 167.34166
A121: 111 | B121: COCHINSHIP | C121: 459 | D121: 450.53 | E121: 427.07 | F121: 395.13 | G121: 371.67 | H121: 482.47 | I121: 505.93 | J121: 537.87 | K121: 474 | L121: 418.6 | M121: 15.85774
A122: 112 | B122: COFORGE | C122: 3660.35 | D122: 3633.03 | E122: 3592.07 | F122: 3523.78 | G122: 3482.82 | H122: 3701.32 | I122: 3742.28 | J122: 3810.57 | K122: 3674 | L122: 3564.75 | M122: 3.48819
A123: 113 | B123: COLPAL | C123: 1495.45 | D123: 1499.63 | E123: 1485.92 | F123: 1476.38 | G123: 1462.67 | H123: 1509.17 | I123: 1522.88 | J123: 1532.42 | K123: 1513.35 | L123: 1490.1 | M123: 2.57945
A124: 114 | B124: CAMS | C124: 2017.4 | D124: 2025.12 | E124: 2002.33 | F124: 1987.27 | G124: 1964.48 | H124: 2040.18 | I124: 2062.97 | J124: 2078.03 | K124: 2047.9 | L124: 2010.05 | M124: 0.62569
A125: 115 | B125: CONCOR | C125: 569.7 | D125: 565.73 | E125: 558.97 | F125: 548.23 | G125: 541.47 | H125: 576.47 | I125: 583.23 | J125: 593.97 | K125: 572.5 | L125: 555 | M125: 13.09935
A126: 116 | B126: COROMANDEL | C126: 857.65 | D126: 858.05 | E126: 848.15 | F126: 838.65 | G126: 828.75 | H126: 867.55 | I126: 877.45 | J126: 886.95 | K126: 867.95 | L126: 848.55 | M126: 3.51954
A127: 117 | B127: CREDITACC | C127: 891.5 | D127: 895.47 | E127: 884.08 | F127: 876.67 | G127: 865.28 | H127: 902.88 | I127: 914.27 | J127: 921.68 | K127: 906.85 | L127: 888.05 | M127: 0.98287
A128: 118 | B128: CROMPTON | C128: 292.3 | D128: 293.18 | E128: 289.27 | F128: 286.23 | G128: 282.32 | H128: 296.22 | I128: 300.13 | J128: 303.17 | K128: 297.1 | L128: 290.15 | M128: 8.22474
A129: 119 | B129: CUMMINSIND | C129: 1639.85 | D129: 1632.13 | E129: 1617.27 | F129: 1594.68 | G129: 1579.82 | H129: 1654.72 | I129: 1669.58 | J129: 1692.17 | K129: 1647 | L129: 1609.55 | M129: 4.93564
A130: 120 | B130: CYIENT | C130: 985.55 | D130: 979.70 | E130: 965.35 | F130: 945.15 | G130: 930.80 | H130: 999.90 | I130: 1014.25 | J130: 1034.45 | K130: 994.05 | L130: 959.5 | M130: 3.05111
A131: 121 | B131: DCMSHRIRAM | C131: 751.35 | D131: 747.35 | E131: 734.20 | F131: 717.05 | G131: 703.90 | H131: 764.50 | I131: 777.65 | J131: 794.80 | K131: 760.5 | L131: 730.2 | M131: 0.72631
A132: 122 | B132: DLF | C132: 352.55 | D132: 351.02 | E132: 348.03 | F132: 343.52 | G132: 340.53 | H132: 355.53 | I132: 358.52 | J132: 363.03 | K132: 354 | L132: 346.5 | M132: 26.2428
A133: 123 | B133: DABUR | C133: 535.65 | D133: 534.12 | E133: 530.73 | F133: 525.82 | G133: 522.43 | H133: 539.03 | I133: 542.42 | J133: 547.33 | K133: 537.5 | L133: 529.2 | M133: 18.04819
A134: 124 | B134: DALBHARAT | C134: 1928.75 | D134: 1903.22 | E134: 1869.98 | F134: 1811.22 | G134: 1777.98 | H134: 1961.98 | I134: 1995.22 | J134: 2053.98 | K134: 1936.45 | L134: 1844.45 | M134: 4.79011
A135: 125 | B135: DEEPAKFERT | C135: 539.95 | D135: 537.18 | E135: 529.37 | F135: 518.78 | G135: 510.97 | H135: 547.77 | I135: 555.58 | J135: 566.17 | K135: 545 | L135: 526.6 | M135: 5.56664
A136: 126 | B136: DEEPAKNTR | C136: 1801.95 | D136: 1803.03 | E136: 1787.07 | F136: 1772.18 | G136: 1756.22 | H136: 1817.92 | I136: 1833.88 | J136: 1848.77 | K136: 1819 | L136: 1788.15 | M136: 3.75933
A137: 127 | B137: DELHIVERY | C137: 326.95 | D137: 323.92 | E137: 317.13 | F137: 307.32 | G137: 300.53 | H137: 333.73 | I137: 340.52 | J137: 350.33 | K137: 330.7 | L137: 314.1 | M137: 6.91667
A138: 128 | B138: DELTACORP | C138: 177.75 | D138: 176.65 | E138: 174.80 | F138: 171.85 | G138: 170.00 | H138: 179.60 | I138: 181.45 | J138: 184.40 | K138: 178.5 | L138: 173.7 | M138: 23.78343
A139: 129 | B139: DEVYANI | C139: 143.35 | D139: 142.17 | E139: 139.43 | F139: 135.52 | G139: 132.78 | H139: 146.08 | I139: 148.82 | J139: 152.73 | K139: 144.9 | L139: 138.25 | M139: 30.33045
A140: 130 | B140: DHANI | C140: 25.6 | D140: 25.58 | E140: 24.62 | F140: 23.63 | G140: 22.67 | H140: 26.57 | I140: 27.53 | J140: 28.52 | K140: 26.55 | L140: 24.6 | M140: 45.15188
A141: 131 | B141: DBL | C141: 168.35 | D141: 170.07 | E141: 163.53 | F141: 158.72 | G141: 152.18 | H141: 174.88 | I141: 181.42 | J141: 186.23 | K141: 176.6 | L141: 165.25 | M141: 33.26989
A142: 132 | B142: DIVISLAB | C142: 2820.25 | D142: 2817.65 | E142: 2795.30 | F142: 2770.35 | G142: 2748.00 | H142: 2842.60 | I142: 2864.95 | J142: 2889.90 | K142: 2840 | L142: 2792.7 | M142: 3.70527
A143: 133 | B143: DIXON | C143: 2793.55 | D143: 2803.88 | E143: 2749.77 | F143: 2705.98 | G143: 2651.87 | H143: 2847.67 | I143: 2901.78 | J143: 2945.57 | K143: 2858 | L143: 2760.1 | M143: 4.12376
A144: 134 | B144: LALPATHLAB | C144: 1800.05 | D144: 1804.45 | E144: 1790.35 | F144: 1780.65 | G144: 1766.55 | H144: 1814.15 | I144: 1828.25 | J144: 1837.95 | K144: 1818.55 | L144: 1794.75 | M144: 1.38542
A145: 135 | B145: DRREDDY | C145: 4567.8 | D145: 4554.98 | E145: 4534.97 | F145: 4502.13 | G145: 4482.12 | H145: 4587.82 | I145: 4607.83 | J145: 4640.67 | K145: 4575 | L145: 4522.15 | M145: 4.16707
A146: 136 | B146: EIDPARRY | C146: 465.45 | D146: 458.22 | E146: 440.43 | F146: 415.42 | G146: 397.63 | H146: 483.23 | I146: 501.02 | J146: 526.03 | K146: 476 | L146: 433.2 | M146: 4.77449
A147: 137 | B147: EIHOTEL | C147: 164.65 | D147: 161.92 | E147: 157.38 | F147: 150.12 | G147: 145.58 | H147: 169.18 | I147: 173.72 | J147: 180.98 | K147: 166.45 | L147: 154.65 | M147: 5.61649
A148: 138 | B148: EPL | C148: 159.35 | D148: 159.07 | E148: 156.88 | F148: 154.42 | G148: 152.23 | H148: 161.53 | I148: 163.72 | J148: 166.18 | K148: 161.25 | L148: 156.6 | M148: 4.09487
A149: 139 | B149: EASEMYTRIP | C149: 39.9 | D149: 40.35 | E149: 39.25 | F149: 38.60 | G149: 37.50 | H149: 41.00 | I149: 42.10 | J149: 42.75 | K149: 41.45 | L149: 39.7 | M149: 156.07138
A150: 140 | B150: EDELWEISS | C150: 51.5 | D150: 51.43 | E150: 50.42 | F150: 49.33 | G150: 48.32 | H150: 52.52 | I150: 53.53 | J150: 54.62 | K150: 52.45 | L150: 50.35 | M150: 24.14101
A151: 141 | B151: EICHERMOT | C151: 2933.7 | D151: 2910.50 | E151: 2873.20 | F151: 2812.70 | G151: 2775.40 | H151: 2971.00 | I151: 3008.30 | J151: 3068.80 | K151: 2947.8 | L151: 2850 | M151: 7.65293
A152: 142 | B152: ELGIEQUIP | C152: 428.3 | D152: 430.08 | E152: 419.22 | F152: 410.13 | G152: 399.27 | H152: 439.17 | I152: 450.03 | J152: 459.12 | K152: 440.95 | L152: 421 | M152: 2.41992
A153: 143 | B153: EMAMILTD | C153: 360.35 | D153: 359.02 | E153: 354.63 | F153: 348.92 | G153: 344.53 | H153: 364.73 | I153: 369.12 | J153: 374.83 | K153: 363.4 | L153: 353.3 | M153: 8.22366
A154: 144 | B154: ENDURANCE | C154: 1217.5 | D154: 1213.70 | E154: 1202.40 | F154: 1187.30 | G154: 1176.00 | H154: 1228.80 | I154: 1240.10 | J154: 1255.20 | K154: 1225 | L154: 1198.6 | M154: 2.39756
A155: 145 | B155: ENGINERSIN | C155: 71.7 | D155: 71.50 | E155: 70.70 | F155: 69.70 | G155: 68.90 | H155: 72.50 | I155: 73.30 | J155: 74.30 | K155: 72.3 | L155: 70.5 | M155: 12.92581
A156: 146 | B156: EQUITASBNK | C156: 68.05 | D156: 66.77 | E156: 64.53 | F156: 61.02 | G156: 58.78 | H156: 70.28 | I156: 72.52 | J156: 76.03 | K156: 69 | L156: 63.25 | M156: 69.00821
A157: 147 | B157: ESCORTS | C157: 1874.9 | D157: 1881.85 | E157: 1859.05 | F157: 1843.20 | G157: 1820.40 | H157: 1897.70 | I157: 1920.50 | J157: 1936.35 | K157: 1904.65 | L157: 1866 | M157: 2.36093
A158: 148 | B158: EXIDEIND | C158: 177.05 | D158: 175.95 | E158: 174.10 | F158: 171.15 | G158: 169.30 | H158: 178.90 | I158: 180.75 | J158: 183.70 | K158: 177.8 | L158: 173 | M158: 18.07365
A159: 149 | B159: FDC | C159: 256.05 | D159: 254.60 | E159: 250.70 | F159: 245.35 | G159: 241.45 | H159: 259.95 | I159: 263.85 | J159: 269.20 | K159: 258.5 | L159: 249.25 | M159: 0.73031
A160: 150 | B160: NYKAA | C160: 126.7 | D160: 127.07 | E160: 124.63 | F160: 122.57 | G160: 120.13 | H160: 129.13 | I160: 131.57 | J160: 133.63 | K160: 129.5 | L160: 125 | M160: 234.66327
A161: 151 | B161: FEDERALBNK | C161: 129.1 | D161: 128.20 | E161: 126.40 | F161: 123.70 | G161: 121.90 | H161: 130.90 | I161: 132.70 | J161: 135.40 | K161: 130 | L161: 125.5 | M161: 116.95672
A162: 152 | B162: FACT | C162: 206.9 | D162: 203.35 | E162: 199.80 | F162: 192.70 | G162: 189.15 | H162: 210.45 | I162: 214.00 | J162: 221.10 | K162: 206.9 | L162: 196.25 | M162: 2.40199
A163: 153 | B163: FINEORG | C163: 4288.65 | D163: 4270.68 | E163: 4187.02 | F163: 4085.38 | G163: 4001.72 | H163: 4372.32 | I163: 4455.98 | J163: 4557.62 | K163: 4354.35 | L163: 4169.05 | M163: 0.72965
A164: 154 | B164: FINCABLES | C164: 810.4 | D164: 806.13 | E164: 797.27 | F164: 784.13 | G164: 775.27 | H164: 819.27 | I164: 828.13 | J164: 841.27 | K164: 815 | L164: 793 | M164: 4.33875
A165: 155 | B165: FINPIPE | C165: 173.75 | D165: 171.12 | E165: 167.23 | F165: 160.72 | G165: 156.83 | H165: 177.63 | I165: 181.52 | J165: 188.03 | K165: 175 | L165: 164.6 | M165: 6.19081
A166: 156 | B166: FSL | C166: 104.7 | D166: 105.83 | E166: 102.42 | F166: 100.13 | G166: 96.72 | H166: 108.12 | I166: 111.53 | J166: 113.82 | K166: 109.25 | L166: 103.55 | M166: 60.74373
A167: 157 | B167: FORTIS | C167: 262.15 | D167: 261.50 | E167: 258.30 | F167: 254.45 | G167: 251.25 | H167: 265.35 | I167: 268.55 | J167: 272.40 | K167: 264.7 | L167: 257.65 | M167: 4.5234
A168: 158 | B168: GRINFRA | C168: 972.5 | D168: 974.13 | E168: 948.37 | F168: 924.23 | G168: 898.47 | H168: 998.27 | I168: 1024.03 | J168: 1048.17 | K168: 999.9 | L168: 950 | M168: 2.78471
A169: 159 | B169: GAIL | C169: 105.5 | D169: 105.23 | E169: 104.27 | F169: 103.03 | G169: 102.07 | H169: 106.47 | I169: 107.43 | J169: 108.67 | K169: 106.2 | L169: 104 | M169: 107.45581
A170: 160 | B170: GMMPFAUDLR | C170: 1459.1 | D170: 1449.88 | E170: 1424.77 | F170: 1390.43 | G170: 1365.32 | H170: 1484.22 | I170: 1509.33 | J170: 1543.67 | K170: 1475 | L170: 1415.55 | M170: 0.98516
A171: 161 | B171: GMRINFRA | C171: 39.2 | D171: 38.78 | E171: 37.92 | F171: 36.63 | G171: 35.77 | H171: 40.07 | I171: 40.93 | J171: 42.22 | K171: 39.65 | L171: 37.5 | M171: 121.04832
A172: 162 | B172: GALAXYSURF | C172: 2345.55 | D172: 2309.80 | E172: 2257.35 | F172: 2169.15 | G172: 2116.70 | H172: 2398.00 | I172: 2450.45 | J172: 2538.65 | K172: 2362.25 | L172: 2221.6 | M172: 0.24836
A173: 163 | B173: GARFIBRES | C173: 2833.5 | D173: 2802.83 | E173: 2680.67 | F173: 2527.83 | G173: 2405.67 | H173: 2955.67 | I173: 3077.83 | J173: 3230.67 | K173: 2925 | L173: 2650 | M173: 0.11909
A174: 164 | B174: GICRE | C174: 136.25 | D174: 133.83 | E174: 130.72 | F174: 125.18 | G174: 122.07 | H174: 139.37 | I174: 142.48 | J174: 148.02 | K174: 136.95 | L174: 128.3 | M174: 10.50033
A175: 165 | B175: GLAND | C175: 1257.8 | D175: 1257.07 | E175: 1233.68 | F175: 1209.57 | G175: 1186.18 | H175: 1281.18 | I175: 1304.57 | J175: 1328.68 | K175: 1280.45 | L175: 1232.95 | M175: 7.73942
A176: 166 | B176: GLAXO | C176: 1275.7 | D176: 1275.20 | E176: 1263.40 | F176: 1251.10 | G176: 1239.30 | H176: 1287.50 | I176: 1299.30 | J176: 1311.60 | K176: 1287 | L176: 1262.9 | M176: 0.25234
A177: 167 | B177: GLENMARK | C177: 445.45 | D177: 447.08 | E177: 442.67 | F177: 439.88 | G177: 435.47 | H177: 449.87 | I177: 454.28 | J177: 457.07 | K177: 451.5 | L177: 444.3 | M177: 10.69507
A178: 168 | B178: GOCOLORS | C178: 954.15 | D178: 959.28 | E178: 923.87 | F178: 893.58 | G178: 858.17 | H178: 989.57 | I178: 1024.98 | J178: 1055.27 | K178: 994.7 | L178: 929 | M178: 0.43351
A179: 169 | B179: GODFRYPHLP | C179: 1853.05 | D179: 1837.68 | E179: 1806.37 | F179: 1759.68 | G179: 1728.37 | H179: 1884.37 | I179: 1915.68 | J179: 1962.37 | K179: 1869 | L179: 1791 | M179: 0.71059
A180: 170 | B180: GODREJAGRO | C180: 403.3 | D180: 400.35 | E180: 395.95 | F180: 388.60 | G180: 384.20 | H180: 407.70 | I180: 412.10 | J180: 419.45 | K180: 404.75 | L180: 393 | M180: 1.07926
A181: 171 | B181: GODREJCP | C181: 966.3 | D181: 962.78 | E181: 956.52 | F181: 946.73 | G181: 940.47 | H181: 972.57 | I181: 978.83 | J181: 988.62 | K181: 969.05 | L181: 953 | M181: 12.82377
A182: 172 | B182: GODREJIND | C182: 402 | D182: 400.17 | E182: 396.83 | F182: 391.67 | G182: 388.33 | H182: 405.33 | I182: 408.67 | J182: 413.83 | K182: 403.5 | L182: 395 | M182: 0.7301
A183: 173 | B183: GODREJPROP | C183: 1021.7 | D183: 1018.10 | E183: 1008.60 | F183: 995.50 | G183: 986.00 | H183: 1031.20 | I183: 1040.70 | J183: 1053.80 | K183: 1027.6 | L183: 1005 | M183: 5.01795
A184: 174 | B184: GRANULES | C184: 273.25 | D184: 272.00 | E184: 269.00 | F184: 264.75 | G184: 261.75 | H184: 276.25 | I184: 279.25 | J184: 283.50 | K184: 275 | L184: 267.75 | M184: 10.73323
A185: 175 | B185: GRAPHITE | C185: 260.2 | D185: 258.48 | E185: 253.42 | F185: 246.63 | G185: 241.57 | H185: 265.27 | I185: 270.33 | J185: 277.12 | K185: 263.55 | L185: 251.7 | M185: 6.76436
A186: 176 | B186: GRASIM | C186: 1631.7 | D186: 1626.88 | E186: 1615.92 | F186: 1600.13 | G186: 1589.17 | H186: 1642.67 | I186: 1653.63 | J186: 1669.42 | K186: 1637.85 | L186: 1611.1 | M186: 5.7547
A187: 177 | B187: GESHIP | C187: 650.25 | D187: 644.67 | E187: 634.33 | F187: 618.42 | G187: 608.08 | H187: 660.58 | I187: 670.92 | J187: 686.83 | K187: 655 | L187: 628.75 | M187: 3.23475
A188: 178 | B188: GREENPANEL | C188: 256.75 | D188: 258.25 | E188: 253.50 | F188: 250.25 | G188: 245.50 | H188: 261.50 | I188: 266.25 | J188: 269.50 | K188: 263 | L188: 255 | M188: 2.44679
A189: 179 | B189: GRINDWELL | C189: 1813.65 | D189: 1799.70 | E189: 1772.40 | F189: 1731.15 | G189: 1703.85 | H189: 1840.95 | I189: 1868.25 | J189: 1909.50 | K189: 1827 | L189: 1758.45 | M189: 0.29096
A190: 180 | B190: GUJALKALI | C190: 589 | D190: 580.35 | E190: 567.70 | F190: 546.40 | G190: 533.75 | H190: 601.65 | I190: 614.30 | J190: 635.60 | K190: 593 | L190: 559.05 | M190: 1.64483
A191: 181 | B191: GAEL | C191: 235.85 | D191: 234.08 | E191: 231.02 | F191: 226.18 | G191: 223.12 | H191: 238.92 | I191: 241.98 | J191: 246.82 | K191: 237.15 | L191: 229.25 | M191: 2.50846
A192: 182 | B192: FLUOROCHEM | C192: 3017.55 | D192: 2995.85 | E192: 2921.70 | F192: 2825.85 | G192: 2751.70 | H192: 3091.70 | I192: 3165.85 | J192: 3261.70 | K192: 3070 | L192: 2900 | M192: 0.75023
A193: 183 | B193: GUJGASLTD | C193: 469.65 | D193: 470.72 | E193: 466.03 | F193: 462.42 | G193: 457.73 | H193: 474.33 | I193: 479.02 | J193: 482.63 | K193: 475.4 | L193: 467.1 | M193: 5.24679
A194: 184 | B194: GNFC | C194: 493.15 | D194: 491.92 | E194: 487.83 | F194: 482.52 | G194: 478.43 | H194: 497.23 | I194: 501.32 | J194: 506.63 | K194: 496 | L194: 486.6 | M194: 9.0887
A195: 185 | B195: GPPL | C195: 116.05 | D195: 114.75 | E195: 112.90 | F195: 109.75 | G195: 107.90 | H195: 117.90 | I195: 119.75 | J195: 122.90 | K195: 116.6 | L195: 111.6 | M195: 29.42844
A196: 186 | B196: GSFC | C196: 119.45 | D196: 118.80 | E196: 116.90 | F196: 114.35 | G196: 112.45 | H196: 121.35 | I196: 123.25 | J196: 125.80 | K196: 120.7 | L196: 116.25 | M196: 14.55029
A197: 187 | B197: GSPL | C197: 265.25 | D197: 266.25 | E197: 260.15 | F197: 255.05 | G197: 248.95 | H197: 271.35 | I197: 277.45 | J197: 282.55 | K197: 272.35 | L197: 261.15 | M197: 12.03287
A198: 188 | B198: HEG | C198: 921.55 | D198: 924.52 | E198: 917.03 | F198: 912.52 | G198: 905.03 | H198: 929.03 | I198: 936.52 | J198: 941.03 | K198: 932 | L198: 920 | M198: 1.08884
A199: 189 | B199: HCLTECH | C199: 1067.5 | D199: 1059.87 | E199: 1049.73 | F199: 1031.97 | G199: 1021.83 | H199: 1077.63 | I199: 1087.77 | J199: 1105.53 | K199: 1070 | L199: 1042.1 | M199: 24.78745
A200: 190 | B200: HDFCAMC | C200: 1678.05 | D200: 1679.67 | E200: 1664.93 | F200: 1651.82 | G200: 1637.08 | H200: 1692.78 | I200: 1707.52 | J200: 1720.63 | K200: 1694.4 | L200: 1666.55 | M200: 3.09356
A201: 191 | B201: HDFCBANK | C201: 1587.8 | D201: 1590.57 | E201: 1579.13 | F201: 1570.47 | G201: 1559.03 | H201: 1599.23 | I201: 1610.67 | J201: 1619.33 | K201: 1602 | L201: 1581.9 | M201: 198.81806
A202: 192 | B202: HDFCLIFE | C202: 495.95 | D202: 493.55 | E202: 489.10 | F202: 482.25 | G202: 477.80 | H202: 500.40 | I202: 504.85 | J202: 511.70 | K202: 498 | L202: 486.7 | M202: 31.3701
A203: 193 | B203: HFCL | C203: 58.75 | D203: 58.18 | E203: 56.97 | F203: 55.18 | G203: 53.97 | H203: 59.97 | I203: 61.18 | J203: 62.97 | K203: 59.4 | L203: 56.4 | M203: 101.85193
A204: 194 | B204: HLEGLAS | C204: 467.15 | D204: 471.38 | E204: 460.77 | F204: 454.38 | G204: 443.77 | H204: 477.77 | I204: 488.38 | J204: 494.77 | K204: 482 | L204: 465 | M204: 0.86278
A205: 195 | B205: HAPPSTMNDS | C205: 766.1 | D205: 770.45 | E205: 758.90 | F205: 751.70 | G205: 740.15 | H205: 777.65 | I205: 789.20 | J205: 796.40 | K205: 782 | L205: 763.25 | M205: 2.22191
A206: 196 | B206: HATSUN | C206: 800.9 | D206: 807.95 | E206: 777.90 | F206: 754.90 | G206: 724.85 | H206: 830.95 | I206: 861.00 | J206: 884.00 | K206: 838 | L206: 784.95 | M206: 1.17325
... 320 more rows

Sheet Bulk Deals
E6: Back To Main Page
A7: Subject : | B7: BULK DEAL | D7: =Main!B10 -> 2023-03-31
A9: Date | B9: Scrip code | C9: Scrip Name | D9: Client Name | E9: Buy / Sell | F9: Quantity Traded | G9: Trade Price / Wt.Avg.trade price | H9: Exchange
A10: 2023-03-29 | B10: 531156 | C10: ALFAVIO | D10: AMARESH GUPTA | E10: SELL | F10: 240,530 | G10: 10.25 | H10: BSE
A11: 2023-03-29 | B11: 531156 | C11: ALFAVIO | D11: ANKIT GUPTA | E11: BUY | F11: 256,696 | G11: 10.31 | H11: BSE
A12: 2023-03-29 | B12: 543453 | C12: ALKOSIGN | D12: MANISHA ART JEWELLERS P LTD | E12: BUY | F12: 30,000 | G12: 76 | H12: BSE
A13: 2023-03-29 | B13: 500023 | C13: ASIANHOTNR | D13: SHYAM JATIA FAMILY TRUST | E13: BUY | F13: 100,000 | G13: 99.95 | H13: BSE
A14: 2023-03-29 | B14: 513642 | C14: AXELPOLY | D14: BHAVYA DHIMAN | E14: BUY | F14: 49,000 | G14: 39.87 | H14: BSE
A15: 2023-03-29 | B15: 513642 | C15: AXELPOLY | D15: AKSHAY RAJENDRABHAI OSWAL | E15: SELL | F15: 48,999 | G15: 39.87 | H15: BSE
A16: 2023-03-29 | B16: 543497 | C16: BCCL | D16: NNM SECURITIES PVT LTD | E16: BUY | F16: 88,000 | G16: 42.99 | H16: BSE
A17: 2023-03-29 | B17: 543497 | C17: BCCL | D17: NNM SECURITIES PVT LTD | E17: SELL | F17: 27,200 | G17: 44.94 | H17: BSE
A18: 2023-03-29 | B18: 543497 | C18: BCCL | D18: AMRUTLAL GORDHANDAS THOBHANI | E18: SELL | F18: 84,800 | G18: 43 | H18: BSE
A19: 2023-03-29 | B19: 543831 | C19: BRIGHT | D19: MANISHA ART JEWELLERS P LTD | E19: BUY | F19: 134,000 | G19: 151.44 | H19: BSE
A20: 2023-03-29 | B20: 543831 | C20: BRIGHT | D20: MANISHA ART JEWELLERS P LTD | E20: SELL | F20: 8,000 | G20: 152.02 | H20: BSE
A21: 2023-03-29 | B21: 540681 | C21: CHOTHANI | D21: DHANESHA ADVISORY LLP | E21: SELL | F21: 90,000 | G21: 16.5 | H21: BSE
A22: 2023-03-29 | B22: 540681 | C22: CHOTHANI | D22: AMIT OMPRAKASH SHARMA | E22: BUY | F22: 90,000 | G22: 16.5 | H22: BSE
A23: 2023-03-29 | B23: 540403 | C23: CLEDUCATE | D23: MATHEW CYRIAC | E23: BUY | F23: 942,648 | G23: 49.7 | H23: BSE
A24: 2023-03-29 | B24: 540403 | C24: CLEDUCATE | D24: ELIZABETH MATHEW | E24: SELL | F24: 942,648 | G24: 49.7 | H24: BSE
A25: 2023-03-29 | B25: 535267 | C25: COMFINCAP | D25: LUHARUKA SALES & SERVICES PRIVATE LIMITED | E25: BUY | F25: 54,400 | G25: 37.12 | H25: BSE
A26: 2023-03-29 | B26: 535267 | C26: COMFINCAP | D26: KRIPA SECURITIES PVT. LTD. | E26: SELL | F26: 61,308 | G26: 37.65 | H26: BSE
A27: 2023-03-29 | B27: 543843 | C27: COMMAND | D27: SWAPNIL JAIN | E27: BUY | F27: 52,000 | G27: 26.5 | H27: BSE
A28: 2023-03-29 | B28: 543843 | C28: COMMAND | D28: NIRBHAY FANCY VASSA | E28: BUY | F28: 176,000 | G28: 26.6 | H28: BSE
A29: 2023-03-29 | B29: 543843 | C29: COMMAND | D29: ANUPAM HARSHAD VASSA | E29: BUY | F29: 92,000 | G29: 26.5 | H29: BSE
A30: 2023-03-29 | B30: 543843 | C30: COMMAND | D30: AMOOLYA HARSHAD VASSA | E30: BUY | F30: 92,000 | G30: 26.5 | H30: BSE
A31: 2023-03-29 | B31: 543848 | C31: DEVLAB | D31: GOENKA BUSINESS & FINANCE LIMITED | E31: BUY | F31: 248,000 | G31: 50.32 | H31: BSE
A32: 2023-03-29 | B32: 543848 | C32: DEVLAB | D32: JNSP TRADING LLP | E32: BUY | F32: 180,000 | G32: 50.51 | H32: BSE
A33: 2023-03-29 | B33: 531237 | C33: DHRUVCA | D33: KETAN PRANLAL VADALIA | E33: BUY | F33: 24,745 | G33: 36 | H33: BSE
A34: 2023-03-29 | B34: 531237 | C34: DHRUVCA | D34: NIRMALABEN K SHAH | E34: SELL | F34: 24,745 | G34: 36 | H34: BSE
A35: 2023-03-29 | B35: 543516 | C35: DHYAANI | D35: SIMRAN SUNIL RAHEJA | E35: SELL | F35: 16,000 | G35: 165 | H35: BSE
A36: 2023-03-29 | B36: 543516 | C36: DHYAANI | D36: SIDDHARTHKISANSINHRAMLAVAT | E36: SELL | F36: 8,000 | G36: 151.85 | H36: BSE
A37: 2023-03-29 | B37: 543516 | C37: DHYAANI | D37: SOMANI VENTURES AND INNOVATIONS LIMITED | E37: BUY | F37: 16,000 | G37: 165 | H37: BSE
A38: 2023-03-29 | B38: 540006 | C38: EASTWEST | D38: SUMANCHEPURI | E38: SELL | F38: 2,500 | G38: 3.9 | H38: BSE
A39: 2023-03-29 | B39: 540006 | C39: EASTWEST | D39: SUMANCHEPURI | E39: BUY | F39: 616,777 | G39: 3.87 | H39: BSE
A40: 2023-03-29 | B40: 500246 | C40: ENVAIREL | D40: KARAN AGARWAL | E40: BUY | F40: 99,701 | G40: 55 | H40: BSE
A41: 2023-03-29 | B41: 500246 | C41: ENVAIREL | D41: RAKESH KUMAR | E41: SELL | F41: 184,500 | G41: 55.98 | H41: BSE
A42: 2023-03-29 | B42: 500246 | C42: ENVAIREL | D42: AANKUSH NAGPAL | E42: BUY | F42: 84,350 | G42: 57.15 | H42: BSE
A43: 2023-03-29 | B43: 532767 | C43: GAYAPROJ | D43: HARJINDERSINGH SARNA | E43: SELL | F43: 1,000,000 | G43: 5.17 | H43: BSE
A44: 2023-03-29 | B44: 532767 | C44: GAYAPROJ | D44: MANKHUSHKAUR HARJINDERSINGH SARNA | E44: BUY | F44: 1,000,000 | G44: 5.17 | H44: BSE
A45: 2023-03-29 | B45: 543324 | C45: GCSL | D45: SHREYA MULTITRADE PRIVATE LIMITED | E45: BUY | F45: 72,000 | G45: 190 | H45: BSE
A46: 2023-03-29 | B46: 543324 | C46: GCSL | D46: SW CAPITAL PRIVATE LIMITED | E46: SELL | F46: 72,000 | G46: 190 | H46: BSE
A47: 2023-03-29 | B47: 542918 | C47: GIANLIFE | D47: ARUN KUMAR GUPTA | E47: SELL | F47: 73,815 | G47: 17.91 | H47: BSE
A48: 2023-03-29 | B48: 531600 | C48: GOGIACAP | D48: DREAM ACHIEVER CONSULTANCY SERVICES PRIVATE LIMITED | E48: BUY | F48: 1,056,951 | G48: 58.52 | H48: BSE
A49: 2023-03-29 | B49: 531600 | C49: GOGIACAP | D49: EQUIPOISE INVESTMENT FUND | E49: SELL | F49: 1,058,202 | G49: 58.52 | H49: BSE
A50: 2023-03-29 | B50: 530315 | C50: HINDTIN | D50: MURARI LAL GOENKA | E50: BUY | F50: 65,000 | G50: 89.5 | H50: BSE
A51: 2023-03-29 | B51: 530315 | C51: HINDTIN | D51: SANJAY KUMAR SONTHALIA | E51: SELL | F51: 64,517 | G51: 89.5 | H51: BSE
A52: 2023-03-29 | B52: 535667 | C52: IFINSEC | D52: SHRI RAVINDRA MEDIA VENTURES PRIVATE LIMITED | E52: BUY | F52: 213,479 | G52: 20.7 | H52: BSE
A53: 2023-03-29 | B53: 535667 | C53: IFINSEC | D53: SHIELD FINANCE PVT LTD | E53: SELL | F53: 213,479 | G53: 20.7 | H53: BSE
A54: 2023-03-29 | B54: 508918 | C54: IRONWOOD | D54: VALUE LINE ADVISORS PRIVATE LIMITED | E54: BUY | F54: 51,998 | G54: 28.24 | H54: BSE
A55: 2023-03-29 | B55: 543806 | C55: ITCONS | D55: JIBI JOHN | E55: BUY | F55: 26,000 | G55: 40.49 | H55: BSE
A56: 2023-03-29 | B56: 543286 | C56: JETMALL | D56: HITESH KUMAR | E56: BUY | F56: 30,000 | G56: 25.5 | H56: BSE
A57: 2023-03-29 | B57: 543286 | C57: JETMALL | D57: KUSHBU LODHA | E57: BUY | F57: 96,000 | G57: 25.92 | H57: BSE
A58: 2023-03-29 | B58: 543286 | C58: JETMALL | D58: KUSHBU LODHA | E58: SELL | F58: 18,000 | G58: 23 | H58: BSE
A59: 2023-03-29 | B59: 543286 | C59: JETMALL | D59: KUBEIRKHERAHUF | E59: SELL | F59: 72,000 | G59: 24.4 | H59: BSE
A60: 2023-03-29 | B60: 543286 | C60: JETMALL | D60: KUBEIRKHERA | E60: SELL | F60: 60,000 | G60: 25.9 | H60: BSE
A61: 2023-03-29 | B61: 513456 | C61: KANSHST | D61: RAJESH KUMAR GUPTA | E61: BUY | F61: 248,703 | G61: 23.13 | H61: BSE
A62: 2023-03-29 | B62: 513456 | C62: KANSHST | D62: KANISHK GUPTA | E62: BUY | F62: 200,000 | G62: 23.46 | H62: BSE
A63: 2023-03-29 | B63: 513456 | C63: KANSHST | D63: SHAILJA GUPTA | E63: BUY | F63: 200,000 | G63: 23.34 | H63: BSE
A64: 2023-03-29 | B64: 513456 | C64: KANSHST | D64: GOODFAITH VINIMAY PRIVATE LIMITED | E64: SELL | F64: 277,000 | G64: 23.35 | H64: BSE
A65: 2023-03-29 | B65: 513456 | C65: KANSHST | D65: ASSAM MERCANTILE CO LTD | E65: SELL | F65: 377,000 | G65: 23.25 | H65: BSE
A66: 2023-03-29 | B66: 540385 | C66: KDLL | D66: TEJPAL SINGH | E66: SELL | F66: 72,964 | G66: 8.65 | H66: BSE
A67: 2023-03-29 | B67: 540385 | C67: KDLL | D67: ACS WORLD | E67: BUY | F67: 72,964 | G67: 8.65 | H67: BSE
A68: 2023-03-29 | B68: 512329 | C68: KRL | D68: DEEPAK KUMAR | E68: SELL | F68: 23,451 | G68: 492.8 | H68: BSE
A69: 2023-03-29 | B69: 512329 | C69: KRL | D69: VIKASH GUPTA | E69: SELL | F69: 37,500 | G69: 492.8 | H69: BSE
A70: 2023-03-29 | B70: 512329 | C70: KRL | D70: MADHU JAISWAL | E70: BUY | F70: 59,804 | G70: 492.8 | H70: BSE
A71: 2023-03-29 | B71: 543830 | C71: LABELKRAFT | D71: ANAND KUMAR MOHANLAL | E71: BUY | F71: 30,000 | G71: 54.89 | H71: BSE
A72: 2023-03-29 | B72: 541352 | C72: MEGASTAR | D72: KOMALAY INVESTRADE PRIVATE LIMITED | E72: SELL | F72: 108,000 | G72: 204.05 | H72: BSE
A73: 2023-03-29 | B73: 541352 | C73: MEGASTAR | D73: GOENKA BUSINESS & FINANCE LIMITED | E73: BUY | F73: 108,000 | G73: 204.05 | H73: BSE
A74: 2023-03-29 | B74: 500271 | C74: MFSL | D74: MAX VENTURES INVESTMENT HOLDINGS PRIVATE LIMITED | E74: SELL | F74: 3,000,000 | G74: 606.6 | H74: BSE
A75: 2023-03-29 | B75: 500271 | C75: MFSL | D75: PLUTUS WEALTH MANAGEMENT LLP | E75: BUY | F75: 2,000,000 | G75: 606.6 | H75: BSE
A76: 2023-03-29 | B76: 539767 | C76: MNIL | D76: SHASHANK PRAVINCHANDRA DOSHI | E76: SELL | F76: 91,369 | G76: 18.8 | H76: BSE
A77: 2023-03-29 | B77: 539767 | C77: MNIL | D77: SHERWOOD SECURITIES PVT LTD | E77: BUY | F77: 91,369 | G77: 18.8 | H77: BSE
A78: 2023-03-29 | B78: 540809 | C78: MRCAGRO | D78: SUMICKSHA | E78: SELL | F78: 50,753 | G78: 44.69 | H78: BSE
A79: 2023-03-29 | B79: 540809 | C79: MRCAGRO | D79: SUMICKSHA | E79: BUY | F79: 60,400 | G79: 43.53 | H79: BSE
A80: 2023-03-29 | B80: 531494 | C80: NAVKAR | D80: NOVARATHANMALPRAVEENKUMAR | E80: SELL | F80: 2,003,300 | G80: 6.79 | H80: BSE
A81: 2023-03-29 | B81: 531494 | C81: NAVKAR | D81: ANILKUMAR | E81: SELL | F81: 4,675,800 | G81: 6.82 | H81: BSE
A82: 2023-03-29 | B82: 531494 | C82: NAVKAR | D82: NOVARATHANMALPRAVEENKUMAR | E82: BUY | F82: 591,000 | G82: 6.97 | H82: BSE
A83: 2023-03-29 | B83: 531494 | C83: NAVKAR | D83: VINITAJAIN | E83: BUY | F83: 6,714,316 | G83: 6.8 | H83: BSE
A84: 2023-03-29 | B84: 509040 | C84: NETLINK | D84: MINESH VASANTLAL MODI | E84: BUY | F84: 22,083 | G84: 58.77 | H84: BSE
A85: 2023-03-29 | B85: 543798 | C85: PATRON | D85: BHAVYA DHIMAN | E85: SELL | F85: 620,000 | G85: 7.97 | H85: BSE
A86: 2023-03-29 | B86: 543798 | C86: PATRON | D86: BHAVYA DHIMAN | E86: BUY | F86: 620,000 | G86: 7.97 | H86: BSE
A87: 2023-03-29 | B87: 543798 | C87: PATRON | D87: MIKER FINANCIAL CONSULTANTS PRIVATE LIMITED | E87: BUY | F87: 356,000 | G87: 7.97 | H87: BSE
A88: 2023-03-29 | B88: 543798 | C88: PATRON | D88: NNM SECURITIES PVT LTD | E88: SELL | F88: 892,000 | G88: 7.97 | H88: BSE
A89: 2023-03-29 | B89: 543798 | C89: PATRON | D89: MANSI SHARE & STOCK ADVISORS PRIVATE LIMITED | E89: SELL | F89: 444,000 | G89: 7.97 | H89: BSE
A90: 2023-03-29 | B90: 543798 | C90: PATRON | D90: MANSI SHARE & STOCK ADVISORS PRIVATE LIMITED | E90: BUY | F90: 400,000 | G90: 7.97 | H90: BSE
A91: 2023-03-29 | B91: 543798 | C91: PATRON | D91: TOPGAIN FINANCE PRIVATE LIMITED | E91: SELL | F91: 52,000 | G91: 7.97 | H91: BSE
A92: 2023-03-29 | B92: 543798 | C92: PATRON | D92: EPITOME TRADING AND INVESTMENTS | E92: BUY | F92: 184,000 | G92: 7.97 | H92: BSE
A93: 2023-03-29 | B93: 543798 | C93: PATRON | D93: TOPGAIN FINANCE PRIVATE LIMITED | E93: BUY | F93: 160,000 | G93: 7.97 | H93: BSE
A94: 2023-03-29 | B94: 543798 | C94: PATRON | D94: CHETAN RASIKLAL SHAH | E94: BUY | F94: 372,000 | G94: 7.97 | H94: BSE
A95: 2023-03-29 | B95: 543798 | C95: PATRON | D95: CHETAN RASIKLAL SHAH | E95: SELL | F95: 176,000 | G95: 7.97 | H95: BSE
A96: 2023-03-29 | B96: 543798 | C96: PATRON | D96: MULTIPLIER SHARE & STOCK ADVISORS PRIVATE LIMITED | E96: SELL | F96: 128,000 | G96: 7.97 | H96: BSE
A97: 2023-03-29 | B97: 538452 | C97: QUASAR | D97: DEEPAK BATRA HUF | E97: SELL | F97: 27,703 | G97: 15.46 | H97: BSE
A98: 2023-03-29 | B98: 524502 | C98: RAAJMEDI | D98: HIMASHU SHARMA | E98: SELL | F98: 60,000 | G98: 24.58 | H98: BSE
A99: 2023-03-29 | B99: 539673 | C99: RCL | D99: BASDEB DHURIA | E99: SELL | F99: 10,450 | G99: 19.45 | H99: BSE
A100: 2023-03-29 | B100: 539673 | C100: RCL | D100: GANPATI STOCKS PVT LTD | E100: BUY | F100: 10,450 | G100: 19.45 | H100: BSE
A101: 2023-03-29 | B101: 543617 | C101: REETECH | D101: NNM SECURITIES PVT LTD | E101: SELL | F101: 30,000 | G101: 58 | H101: BSE
A102: 2023-03-29 | B102: 543617 | C102: REETECH | D102: BLOOM COMMERCIAL PRIVATE LIMITED | E102: BUY | F102: 30,000 | G102: 58.04 | H102: BSE
A103: 2023-03-29 | B103: 543805 | C103: RESGEN | D103: ACHATHKONRENSIS SALES AGENCY PRIVATE LIMITED | E103: SELL | F103: 156,000 | G103: 43.6 | H103: BSE
A104: 2023-03-29 | B104: 543805 | C104: RESGEN | D104: SHRADDHA SAGAR BORA | E104: BUY | F104: 177,000 | G104: 39.8 | H104: BSE
A105: 2023-03-29 | B105: 543256 | C105: RFLL | D105: VINUBHAI NANJIBHAI VEKARIA | E105: SELL | F105: 72,800 | G105: 27.73 | H105: BSE
A106: 2023-03-29 | B106: 543366 | C106: SBLI | D106: DHANVARSHA ADVISORY SERVICES PRIVATE LIMITED | E106: SELL | F106: 10,800 | G106: 82.01 | H106: BSE
A107: 2023-03-29 | B107: 543366 | C107: SBLI | D107: NILA BISWAKARMA | E107: BUY | F107: 4,800 | G107: 76.32 | H107: BSE
A108: 2023-03-29 | B108: 543366 | C108: SBLI | D108: SAVITABEN RAJESHBHAI VAGHELA | E108: BUY | F108: 8,400 | G108: 82.07 | H108: BSE
A109: 2023-03-29 | B109: 543366 | C109: SBLI | D109: SAVITABEN RAJESHBHAI VAGHELA | E109: SELL | F109: 8,400 | G109: 79.57 | H109: BSE
A110: 2023-03-29 | B110: 543537 | C110: SCARNOSE | D110: ECONO BROKING PRIVATE LIMITED | E110: SELL | F110: 20,000 | G110: 54.9 | H110: BSE
A111: 2023-03-29 | B111: 534708 | C111: SHANTIGURU | D111: SURESHCHAND SUDARSHAN | E111: BUY | F111: 63,000 | G111: 6.71 | H111: BSE
A112: 2023-03-29 | B112: 538923 | C112: SOFCOM | D112: JAIMIN KAILASH GUPTA | E112: BUY | F112: 38,500 | G112: 53 | H112: BSE
A113: 2023-03-29 | B113: 538923 | C113: SOFCOM | D113: VISAGAR FINANCIAL SERVICES LIMITED | E113: BUY | F113: 73,000 | G113: 52.37 | H113: BSE
A114: 2023-03-29 | B114: 538923 | C114: SOFCOM | D114: ANKITGERA | E114: BUY | F114: 34,782 | G114: 52.83 | H114: BSE
A115: 2023-03-29 | B115: 538923 | C115: SOFCOM | D115: SHILPIKA BHUGRA | E115: SELL | F115: 34,782 | G115: 52.83 | H115: BSE
A116: 2023-03-29 | B116: 538923 | C116: SOFCOM | D116: KISHORE MEHTA | E116: SELL | F116: 140,000 | G116: 52.67 | H116: BSE
A117: 2023-03-29 | B117: 540914 | C117: SRUSTEELS | D117: PAVAN PATEL | E117: SELL | F117: 48,767 | G117: 23.01 | H117: BSE
A118: 2023-03-29 | B118: 540914 | C118: SRUSTEELS | D118: SAFAL CAPITAL (INDIA) LIMITED | E118: BUY | F118: 95,000 | G118: 23.02 | H118: BSE
A119: 2023-03-29 | B119: 538714 | C119: SUCHITRA | D119: R P SONI DAUGHTERS TRUST | E119: BUY | F119: 409,656 | G119: 39.5 | H119: BSE
A120: 2023-03-29 | B120: 538714 | C120: SUCHITRA | D120: SEAWOODS HOSPITALITY & REALTY PRIVATE LIMITED | E120: SELL | F120: 410,000 | G120: 39.5 | H120: BSE
A121: 2023-03-29 | B121: 539310 | C121: THINKINK | D121: DIPAK POPATLAL BAFNA | E121: SELL | F121: 155,000 | G121: 78.16 | H121: BSE
A122: 2023-03-29 | B122: 543616 | C122: TLL | D122: KOMALAY INVESTRADE PRIVATE LIMITED | E122: SELL | F122: 343,200 | G122: 145 | H122: BSE
A123: 2023-03-29 | B123: 543616 | C123: TLL | D123: GOENKA BUSINESS & FINANCE LIMITED | E123: BUY | F123: 567,600 | G123: 145.44 | H123: BSE
A124: 2023-03-29 | B124: 543616 | C124: TLL | D124: KOMALAY INVESTRADE PRIVATE LIMITED | E124: SELL | F124: 224,400 | G124: 146.1 | H124: BSE
A125: 2023-03-29 | B125: 543616 | C125: TLL | D125: SAMBHAVNATH INVESTMENTS AND FINANCES PRIVATE LIMITED | E125: SELL | F125: 70,800 | G125: 142.51 | H125: BSE
A126: 2023-03-29 | B126: 531390 | C126: UPSURGE | D126: GAGAN DEEP MULTITRADE PRIVATE LIMITED | E126: BUY | F126: 613,323 | G126: 27.81 | H126: BSE
A127: 2023-03-29 | B127: 531390 | C127: UPSURGE | D127: BLUE DIAMOND PLASTOWARE PRIVATE LIMITED | E127: SELL | F127: 193,007 | G127: 27.76 | H127: BSE
A128: 2023-03-29 | B128: 531390 | C128: UPSURGE | D128: PARAMONE CONCEPTS LIMITED | E128: SELL | F128: 342,333 | G128: 27.75 | H128: BSE
A129: 2023-03-29 | B129: 543545 | C129: VEERKRUPA | D129: BHAVYA DHIMAN | E129: SELL | F129: 122,000 | G129: 88.47 | H129: BSE
A130: 2023-03-29 | B130: 543545 | C130: VEERKRUPA | D130: BHAVYA DHIMAN | E130: BUY | F130: 80,000 | G130: 95.59 | H130: BSE
A131: 2023-03-29 | B131: 543545 | C131: VEERKRUPA | D131: APPU FINANCIAL SERVICES LTD | E131: BUY | F131: 232,000 | G131: 87.7 | H131: BSE
A132: 2023-03-29 | B132: 543545 | C132: VEERKRUPA | D132: NNM SECURITIES PVT LTD | E132: BUY | F132: 8,000 | G132: 96.6 | H132: BSE
A133: 2023-03-29 | B133: 543545 | C133: VEERKRUPA | D133: NNM SECURITIES PVT LTD | E133: SELL | F133: 128,000 | G133: 87.91 | H133: BSE
A134: 2023-03-29 | B134: 532372 | C134: VIRINCHI | D134: HANSRAJ COMMOSALES LLP | E134: BUY | F134: 345,611 | G134: 32.12 | H134: BSE
A135: 2023-03-29 | B135: 532372 | C135: VIRINCHI | D135: SAHITAY COMMOSALES LLP | E135: SELL | F135: 714,251 | G135: 32.11 | H135: BSE
A136: 2023-03-29 | B136: 532372 | C136: VIRINCHI | D136: HANSRAJ COMMOSALES LLP | E136: SELL | F136: 1,656,633 | G136: 32.24 | H136: BSE
A137: 2023-03-29 | B137: 532372 | C137: VIRINCHI | D137: WILSON HOLDINGS PRIVATE LIMITED | E137: BUY | F137: 687,875 | G137: 31.91 | H137: BSE
A138: 2023-03-29 | B138: 532372 | C138: VIRINCHI | D138: VINITAJAIN | E138: SELL | F138: 1,100,022 | G138: 32.69 | H138: BSE
A139: 2023-03-29 | B139: 532372 | C139: VIRINCHI | D139: ANILKUMAR | E139: BUY | F139: 1,100,022 | G139: 32.69 | H139: BSE
A140: 2023-03-29 | B140: 531025 | C140: VISAGAR | D140: AKSHAY RAJENDRABHAI OSWAL | E140: SELL | F140: 4,234,657 | G140: 0.68 | H140: BSE
A141: 2023-03-29 | B141: 536846 | C141: YURANUS | D141: KANTA DEVI SAMDARIA | E141: BUY | F141: 18,000 | G141: 26.16 | H141: BSE
A142: 2023-03-29 | B142: AAATECH | C142: AAA Technologies Limited | D142: NNM SECURITIES PVT LTD | E142: BUY | F142: 132 | G142: 42.5 | H142: NSE
A143: 2023-03-29 | B143: AAATECH | C143: AAA Technologies Limited | D143: INDIACREDIT RISK MANAGEMENT LLP | E143: BUY | F143: 76,750 | G143: 43.19 | H143: NSE
A144: 2023-03-29 | B144: ALLETEC | C144: All E Technologies Ltd | D144: MONEY PLANT PICTURES LLP | E144: BUY | F144: 355,200 | G144: 85.84 | H144: NSE
A145: 2023-03-29 | B145: CMRSL | C145: Cyber Media Res & Ser Ltd | D145: SATYA GUPTA | E145: BUY | F145: 15,200 | G145: 140.53 | H145: NSE
A146: 2023-03-29 | B146: DYNPRO | C146: Dynemic Products Limited | D146: KALPANA KRISHNAMURTHY | E146: BUY | F146: 116,077 | G146: 240.46 | H146: NSE
A147: 2023-03-29 | B147: INOXWIND | C147: Inox Wind Limited | D147: ARYAVARDHAN TRADING LLP | E147: BUY | F147: 1,500,000 | G147: 94.9 | H147: NSE
A148: 2023-03-29 | B148: KCK | C148: Kck Industries Limited | D148: VISHWASH BHARATKUMAR GANDHI | E148: BUY | F148: 36,000 | G148: 17.18 | H148: NSE
A149: 2023-03-29 | B149: MAKS | C149: Maks Energy Sol India Ltd | D149: APPU FINANCIAL SERVICES LTD | E149: BUY | F149: 150,000 | G149: 23 | H149: NSE
A150: 2023-03-29 | B150: MCON | C150: Mcon Rasayan India Ltd | D150: NIKITABEN DEVALBHAI PATEL | E150: BUY | F150: 51,000 | G150: 45.55 | H150: NSE
A151: 2023-03-29 | B151: MEGAFLEX | C151: Mega Flex Plastics Ltd | D151: CHANDAN AGARWALA | E151: BUY | F151: 69,000 | G151: 27.3 | H151: NSE
A152: 2023-03-29 | B152: MEGASTAR | C152: Megastar Foods Limited | D152: GOENKA BUSINESS AND FINANCE LIMITED | E152: BUY | F152: 150,000 | G152: 202.09 | H152: NSE
A153: 2023-03-29 | B153: NBIFIN | C153: N.B.I. Ind. Fin. Co. Ltd | D153: DORITE TRACON PRIVATE LIMITED | E153: BUY | F153: 94,000 | G153: 1450 | H153: NSE
A154: 2023-03-29 | B154: NIDAN | C154: Nidan Labs and Health Ltd | D154: DHIMAN BHAVYA | E154: BUY | F154: 112,000 | G154: 30.55 | H154: NSE
A155: 2023-03-29 | B155: QUESS | C155: Quess Corp Limited | D155: FAIRBRIDGE CAPITAL (MAURITIUS) LIMITED | E155: BUY | F155: 6,600,000 | G155: 384.99 | H155: NSE
A156: 2023-03-29 | B156: ROHLTD | C156: Royal Orchid Hotels Limit | D156: GRAVITON RESEARCH CAPITAL LLP | E156: BUY | F156: 197,002 | G156: 267.26 | H156: NSE
A157: 2023-03-29 | B157: ROHLTD | C157: Royal Orchid Hotels Limit | D157: HARSHA FARMS PRIVATE LTD | E157: BUY | F157: 397,200 | G157: 251.38 | H157: NSE
A158: 2023-03-29 | B158: SCAPDVR | C158: Stampede Capital Limited | D158: L7 HITECH PRIVATE LIMITED | E158: BUY | F158: 335,318 | G158: 14.59 | H158: NSE
A159: 2023-03-29 | B159: SECURCRED | C159: SecUR Credentials Limited | D159: NEERAJ YADAV | E159: BUY | F159: 238,759 | G159: 23.61 | H159: NSE
A160: 2023-03-29 | B160: SECURCRED | C160: SecUR Credentials Limited | D160: PALAK INTERMEDIATES PRIVATE LIMITED | E160: BUY | F160: 450,000 | G160: 23.99 | H160: NSE
A161: 2023-03-29 | B161: SOUTHBANK | C161: South Indian Bank Ltd. | D161: SHARE INDIA SECURITIES LIMITED | E161: BUY | F161: 10,950,139 | G161: 14.47 | H161: NSE
A162: 2023-03-29 | B162: SPCENET | C162: Spacenet Enters Ind Ltd | D162: MEGHE SAGAR DATTATRAYA | E162: BUY | F162: 4,100,000 | G162: 17 | H162: NSE
A163: 2023-03-29 | B163: SVPGLOB | C163: SVP GLOBAL TEXTILES LTD | D163: M/S. PRARTHANA ENTERPRISES | E163: BUY | F163: 971,750 | G163: 10.81 | H163: NSE
A164: 2023-03-29 | B164: TRACXN | C164: Tracxn Technologies Ltd | D164: CRONY VYAPAR PVT LTD | E164: BUY | F164: 583,266 | G164: 64.44 | H164: NSE
A165: 2023-03-29 | B165: TRU | C165: TruCap Finance Limited | D165: AMBUD BUILDCON PRIVATE LIMITED . | E165: BUY | F165: 500,000 | G165: 44.3 | H165: NSE
A166: 2023-03-29 | B166: VELS | C166: Vels Film International L | D166: THILLAINAYAGAM MUTHURAMA YESWANTH | E166: BUY | F166: 450,000 | G166: 99.96 | H166: NSE
A167: 2023-03-29 | B167: VERTOZ | C167: Vertoz Advertising Ltd | D167: SW CAPITAL PRIVATE LIMITED | E167: BUY | F167: 2,222 | G167: 192.26 | H167: NSE
A168: 2023-03-29 | B168: VERTOZ | C168: Vertoz Advertising Ltd | D168: HITESH RUPARELIYA(HUF) . | E168: BUY | F168: 106,373 | G168: 190.48 | H168: NSE
A169: 2023-03-29 | B169: VERTOZ | C169: Vertoz Advertising Ltd | D169: SOHAM FINCARE INDIA LLP | E169: BUY | F169: 75,000 | G169: 190.83 | H169: NSE
A170: 2023-03-29 | B170: AAATECH | C170: AAA Technologies Limited | D170: NNM SECURITIES PVT LTD | E170: SELL | F170: 102,218 | G170: 43.21 | H170: NSE
A171: 2023-03-29 | B171: ALLETEC | C171: All E Technologies Ltd | D171: ERROR ACCOUNT | E171: SELL | F171: 348,800 | G171: 85.85 | H171: NSE
A172: 2023-03-29 | B172: ARISTO | C172: Aristo Bio T and Lifesc L | D172: MAYURI SHRIPAL VORA | E172: SELL | F172: 70,400 | G172: 56.12 | H172: NSE
A173: 2023-03-29 | B173: BCG | C173: Lycos Internet Limited | D173: INDIABULLS HOUSING FINANCE LIMITED | E173: SELL | F173: 18,914,309 | G173: 13.88 | H173: NSE
A174: 2023-03-29 | B174: CMRSL | C174: Cyber Media Res & Ser Ltd | D174: SUNIL KUMAR GUPTA | E174: SELL | F174: 16,000 | G174: 140.4 | H174: NSE
A175: 2023-03-29 | B175: DYNPRO | C175: Dynemic Products Limited | D175: KRISHNAMURTHY NARAYANAN IYER | E175: SELL | F175: 116,000 | G175: 240.45 | H175: NSE
A176: 2023-03-29 | B176: DYNPRO | C176: Dynemic Products Limited | D176: KALPANA KRISHNAMURTHY | E176: SELL | F176: 77 | G176: 242.11 | H176: NSE
A177: 2023-03-29 | B177: INOXWIND | C177: Inox Wind Limited | D177: DEVANSH TRADEMART LLP | E177: SELL | F177: 1,500,000 | G177: 94.9 | H177: NSE
A178: 2023-03-29 | B178: KCK | C178: Kck Industries Limited | D178: NILAMBEN BHARATKUMAR GANDHI | E178: SELL | F178: 32,000 | G178: 17.2 | H178: NSE
A179: 2023-03-29 | B179: KNAGRI | C179: KN Agri Resources Limited | D179: NEW BERRY CAPITALS PRIVATE LIMITED | E179: SELL | F179: 166,400 | G179: 101.39 | H179: NSE
A180: 2023-03-29 | B180: MAKS | C180: Maks Energy Sol India Ltd | D180: NNM SECURITIES PVT LTD | E180: SELL | F180: 156,000 | G180: 23.02 | H180: NSE
A181: 2023-03-29 | B181: MCON | C181: Mcon Rasayan India Ltd | D181: ECONO BROKING PRIVATE LIMITED | E181: SELL | F181: 54,000 | G181: 45.86 | H181: NSE
A182: 2023-03-29 | B182: MEGASTAR | C182: Megastar Foods Limited | D182: KOMALAY INVESTRADE PRIVATE LIMITED | E182: SELL | F182: 150,000 | G182: 202.07 | H182: NSE
A183: 2023-03-29 | B183: NBIFIN | C183: N.B.I. Ind. Fin. Co. Ltd | D183: NARANTAK DEALCOMM LIMITED | E183: SELL | F183: 94,000 | G183: 1450 | H183: NSE
A184: 2023-03-29 | B184: NIDAN | C184: Nidan Labs and Health Ltd | D184: KHUSHI ADVERTISING IDEAS PRIVATE LIMITED . | E184: SELL | F184: 160,000 | G184: 30.55 | H184: NSE
A185: 2023-03-29 | B185: NIDAN | C185: Nidan Labs and Health Ltd | D185: DHIMAN BHAVYA | E185: SELL | F185: 112,000 | G185: 32.45 | H185: NSE
A186: 2023-03-29 | B186: QUESS | C186: Quess Corp Limited | D186: SMALLCAP WORLD FUND INC | E186: SELL | F186: 2,846,013 | G186: 385 | H186: NSE
A187: 2023-03-29 | B187: QUESS | C187: Quess Corp Limited | D187: ADITYA BIRLA SUN LIFE MUTUAL FUND A/C - ADITYA BIRLA SUN LIFE TAX RELIEF 96 | E187: SELL | F187: 1,136,091 | G187: 383.79 | H187: NSE
A188: 2023-03-29 | B188: QUESS | C188: Quess Corp Limited | D188: ICICI PRUDENTIAL LIFE INSURANCE COMPANY LIMITED | E188: SELL | F188: 1,349,257 | G188: 385 | H188: NSE
A189: 2023-03-29 | B189: ROHLTD | C189: Royal Orchid Hotels Limit | D189: GRAVITON RESEARCH CAPITAL LLP | E189: SELL | F189: 197,002 | G189: 267.64 | H189: NSE
A190: 2023-03-29 | B190: ROHLTD | C190: Royal Orchid Hotels Limit | D190: CHANDER KAMAL BALJEE | E190: SELL | F190: 397,200 | G190: 251.38 | H190: NSE
A191: 2023-03-29 | B191: SECURCRED | C191: SecUR Credentials Limited | D191: NEERAJ YADAV | E191: SELL | F191: 341,847 | G191: 23.34 | H191: NSE
A192: 2023-03-29 | B192: SOUTHBANK | C192: South Indian Bank Ltd. | D192: SHARE INDIA SECURITIES LIMITED | E192: SELL | F192: 10,987,219 | G192: 14.44 | H192: NSE
A193: 2023-03-29 | B193: SRPL | C193: Shree Ram Proteins Ltd. | D193: INTERNATIONAL FINANCIAL SERVICES LTD | E193: SELL | F193: 128,000 | G193: 39.05 | H193: NSE
A194: 2023-03-29 | B194: SVPGLOB | C194: SVP GLOBAL TEXTILES LTD | D194: SHUBHANKAR PRAFULLA GATTANI | E194: SELL | F194: 800,000 | G194: 10.8 | H194: NSE
A195: 2023-03-29 | B195: SVPGLOB | C195: SVP GLOBAL TEXTILES LTD | D195: M/S. PRARTHANA ENTERPRISES | E195: SELL | F195: 961,464 | G195: 11.2 | H195: NSE
A196: 2023-03-29 | B196: TRACXN | C196: Tracxn Technologies Ltd | D196: CRONY VYAPAR PVT LTD | E196: SELL | F196: 433,266 | G196: 65.03 | H196: NSE
A197: 2023-03-29 | B197: VELS | C197: Vels Film International L | D197: UDAYA SANKAR UDAYA SANKAR | E197: SELL | F197: 427,200 | G197: 100 | H197: NSE
A198: 2023-03-29 | B198: VERTOZ | C198: Vertoz Advertising Ltd | D198: SW CAPITAL PRIVATE LIMITED | E198: SELL | F198: 129,804 | G198: 189.6 | H198: NSE
A199: 2023-03-29 | B199: VERTOZ | C199: Vertoz Advertising Ltd | D199: SOHAM FINCARE INDIA LLP | E199: SELL | F199: 75,000 | G199: 190.66 | H199: NSE
A200: 2023-03-29 | B200: VITAL | C200: Vital Chemtech Limited | D200: SAMBHAVNATH INVESTMENTS AND FINANCES PRIVATE LIMITED | E200: SELL | F200: 151,200 | G200: 77.23 | H200: NSE

Sheet Call Tracker (Equity & F&O)
M5: Back To Main Page
A6: Retail Research Technical Calls & Fundamental Performance Report for the month of Mar-2023
M7: =Main!B10 -> 2023-03-31
B8: Positional Call
A9: Sr.no | B9: Date | D9: Company | E9: Rec | F9: Rec Price | G9: Stop Loss*** | H9: Call Closed At | I9: Target | J9: Remark | K9: Profit / Loss per Share | L9: All charges | M9: Net Gain / Loss % | N9: Status | O9: Closed Date | P9: Market Closing Price
A10: 1 | B10: 2022-12-01 | D10: TCS | E10: Buy<> | F10: 3380 | G10: 3140 | H10: =(3565+3140)/2 -> 3352.5 | I10: 3800-4000 | J10: Loss of Rs.27.5/- | K10: =H10-F10 -> -27.5 | L10: =(F10*-0.7)/100 -> -23.66 | M10: =(K10+L10)/F10 -> -1.51% | N10: Unsuccessful | O10: 2023-03-20 | R10: H
A11: 2 | B11: 2023-01-10 | D11: BHARTIARTL | E11: Buy | F11: 780-800 | G11: 735 | I11: 870-900 | J11: Open | P11: =VLOOKUP(D11,'MidCap Intra'!B11:C511,2,0) -> 743.60 | R11: H
A12: 3 | B12: 2023-01-24 | D12: KIMS | E12: Buy | F12: 1435 | G12: 1340 | H12: =(1512.5+1324.5)/2 -> 1418.5 | I12: 1580-1650 | J12: Loss of Rs.16.5/- | K12: =H12-F12 -> -16.5 | L12: =(F12*-0.7)/100 -> -10.05 | M12: =(K12+L12)/F12 -> -1.85% | N12: Unsuccessful | O12: 2023-03-22 | R12: N
A13: 4 | B13: 2023-02-01 | D13: AXISBANK | E13: Accu | F13: 825-850 | G13: 790 | I13: 900-950 | J13: Open | P13: =VLOOKUP(D13,'MidCap Intra'!B13:C513,2,0) -> 842.60 | R13: H
A14: 5 | B14: 2023-02-06 | D14: JSWSTEEL | E14: Accu | F14: 706.25 | G14: 660 | H14: 660 | I14: 770-800 | J14: Loss of Rs.46.25/- | K14: =H14-F14 -> -46.25 | L14: =(F14*-0.7)/100 -> -4.94 | M14: =(K14+L14)/F14 -> -7.25% | N14: Unsuccessful | O14: 2023-03-27 | R14: H
A15: 6 | B15: 2023-02-16 | D15: PIDILITIND | E15: Accu | F15: 2280 | G15: 2170 | H15: 2395 | I15: 2450-2500 | J15: Profit of Rs.115/- | K15: =H15-F15 -> 115 | L15: =(F15*-0.7)/100 -> -15.96 | M15: =(K15+L15)/F15 -> 4.34% | N15: Successful | O15: 2023-03-22 | R15: H
A16: 7 | B16: 2023-02-20 | D16: SHARDACROP | E16: Accu | F16: 462.5 | G16: 425 | I16: 520-550 | J16: Open | P16: =VLOOKUP(D16,'MidCap Intra'!B16:C516,2,0) -> 476.10 | R16: H
A17: 8 | B17: 2023-02-21 | D17: CANBK | E17: Accu | F17: 284.5 | G17: 268 | H17: 303.5 | I17: 315-335 | J17: Profit of Rs.19/- | K17: =H17-F17 -> 19 | L17: =(F17*-0.7)/100 -> -1.99 | M17: =(K17+L17)/F17 -> 5.98% | N17: Successful | O17: 2023-03-03 | R17: N
A18: 9 | B18: 2023-02-21 | D18: HAPPIESTMNDS | E18: Accu | F18: =(865+899)/2 -> 882 | G18: 830 | H18: 830 | I18: 960-1000 | J18: Loss of Rs.52/- | K18: =H18-F18 -> -52 | L18: =(F18*-0.7)/100 -> -6.17 | M18: =(K18+L18)/F18 -> -6.60% | N18: Unsuccessful | O18: 2023-03-15 | R18: H
A19: 10 | B19: 2023-02-24 | D19: PIIND | E19: Accu | F19: 3110-3010 | G19: 2890 | I19: 3300-3400 | J19: Open | P19: =VLOOKUP(D19,'MidCap Intra'!B19:C519,2,0) -> 2937.90 | R19: H
A20: 11 | B20: 2023-02-27 | D20: SBIN | E20: Accu | F20: 522.5 | G20: 478 | H20: 554 | I20: 570-600 | J20: Profit of Rs.31.50/- | K20: =H20-F20 -> 31.5 | L20: =(F20*-0.7)/100 -> -3.66 | M20: =(K20+L20)/F20 -> 5.33% | N20: Successful | O20: 2023-03-03 | R20: H
A21: 12 | B21: 2023-03-01 | D21: REDINGTON | E21: Accu | F21: 167.25 | G21: 158 | H21: 174 | I21: 180-185 | J21: Part profit of Rs.6.76/- | K21: =H21-F21 -> 6.75 | L21: =(F21*-0.7)/100 -> -1.17 | M21: =(K21+L21)/F21 -> 3.34% | N21: Successful | O21: 2023-03-24 | P21: =VLOOKUP(D21,'MidCap Intra'!B21:C521,2,0) -> 169.25 | R21: H
A22: 13 | B22: 2023-03-14 | D22: SANOFI | E22: Accu | F22: 5625-5725 | G22: 5340 | I22: 6000-6300 | J22: Open | P22: =VLOOKUP(D22,'MidCap Intra'!B22:C522,2,0) -> 5613.65 | R22: H
A23: 14 | B23: 2023-03-14 | D23: COFORGE | E23: Accu | F23: =7715/2 -> 3857.5 | G23: 3680 | H23: 3660 | I23: 4200-4300 | J23: Loss of Rs.197.5/- | K23: =H23-F23 -> -197.5 | L23: =(F23*-0.7)/100 -> -27.00 | M23: =(K23+L23)/F23 -> -5.82% | N23: Unsuccessful | O23: 2023-03-27 | R23: H
A24: 15 | B24: 2023-03-16 | D24: CANBK | E24: Accu | F24: 270-280.5 | G24: 255 | I24: 310-320 | J24: Open | P24: =VLOOKUP(D24,'MidCap Intra'!B24:C524,2,0) -> 281.05 | R24: N
A25: 16 | B25: 2023-03-28 | D25: FLUOROCHEM | E25: Accu | F25: 2800-2905 | G25: 2690 | I25: 3200-3300 | J25: Open | P25: =VLOOKUP(D25,'MidCap Intra'!B25:C525,2,0) -> 3017.55 | R25: H
A26: 17 | B26: 2023-03-28 | D26: BEL | E26: Accu | F26: 87-90.5 | G26: 83 | I26: 100-105 | J26: Open | P26: =VLOOKUP(D26,'MidCap Intra'!B26:C526,2,0) -> 91.55 | R26: H
A31: CLBS = Closing Basis ***
A32: Dividend adjusted <> | F32: Reinitiated $
A33: Part book {} | D33: s | F33: Revised stoploss #
B35: Momentum Call
A36: Sr.no | B36: Date | D36: Company | E36: Rec | F36: Rec Price | G36: Stop Loss | H36: Call Closed At | I36: Target | J36: Remark | K36: Profit / Loss per Share/Lot | L36: All charges | M36: Net Gain / Loss % | N36: Status | O36: Closed Date
A37: 1 | B37: 2023-02-28 | D37: RELIANCE | E37: Buy | F37: 2357 | G37: 2270 | H37: 2270 | I37: 2450-2500 | J37: Loss of Rs.87/- | K37: =H37-F37 -> -87 | L37: =(F37*-0.7)/100 -> -16.50 | M37: =(K37+L37)/F37 -> -4.39% | N37: Unsuccessful | O37: 2023-03-15 | R37: H
A38: 2 | B38: 2023-03-01 | D38: AMARAJABAT | E38: Buy | F38: 561 | G38: 545 | H38: 576.5 | I38: 585-595 | J38: Profit of Rs.15.5/- | K38: =H38-F38 -> 15.5 | L38: =(F38*-0.7)/100 -> -3.93 | M38: =(K38+L38)/F38 -> 2.06% | N38: Successful | O38: 2023-03-02 | R38: H
A39: 3 | B39: 2023-03-01 | D39: VTL | E39: Buy | F39: 310 | G39: 300 | H39: 318.5 | I39: 325-330 | J39: Profit of Rs.8.5/- | K39: =H39-F39 -> 8.5 | L39: =(F39*-0.7)/100 -> -2.17 | M39: =(K39+L39)/F39 -> 2.04% | N39: Successful | O39: 2023-03-06 | R39: N
A40: 4 | B40: 2023-03-01 | D40: TECHM | E40: Buy | F40: 1110 | G40: 1078 | H40: 1063.5 | I40: 1150-1170 | J40: Loss of Rs.46.5/- | K40: =H40-F40 -> -46.5 | L40: =(F40*-0.7)/100 -> -7.77 | M40: =(K40+L40)/F40 -> -4.89% | N40: Unsuccessful | O40: 2023-03-09 | R40: H
A41: 5 | B41: 2023-03-03 | D41: M&M | E41: Buy | F41: 1266 | G41: 1230 | H41: 1230 | I41: 1320-1350 | J41: Loss of Rs.36/- | K41: =H41-F41 -> -36 | L41: =(F41*-0.7)/100 -> -8.86 | M41: =(K41+L41)/F41 -> -3.54% | N41: Unsuccessful | O41: 2023-03-10 | R41: H
A42: 6 | B42: 2023-03-03 | D42: TATACONSUM | E42: Buy | F42: 710 | G42: 689 | H42: 713 | I42: 740-750 | J42: Profit of Rs.3/- | K42: =H42-F42 -> 3 | L42: =(F42*-0.7)/100 -> -4.97 | M42: =(K42+L42)/F42 -> -0.28% | N42: Neutral | O42: 2023-03-23 | R42: H
A43: 7 | B43: 2023-03-06 | D43: STARHEALTH | E43: Buy | F43: 582 | G43: 566 | H43: 560 | I43: 600-615 | J43: Loss of Rs.22/- | K43: =H43-F43 -> -22 | L43: =(F43*-0.7)/100 -> -4.07 | M43: =(K43+L43)/F43 -> -4.48% | N43: Unsuccessful | O43: 2023-03-13 | R43: N
A44: 8 | B44: 2023-03-15 | D44: M&M | E44: Buy | F44: 1160-1170 | G44: 1137 | I44: 1200-1220 | J44: Open | R44: H
A45: 9 | B45: 2023-03-16 | D45: VTL | E45: Buy | F45: 299 | G45: 290 | H45: 290 | I45: 315-320 | J45: Loss of Rs.9/- | K45: =H45-F45 -> -9 | L45: =(F45*-0.7)/100 -> -2.09 | M45: =(K45+L45)/F45 -> -3.71% | N45: Unsuccessful | O45: 2023-03-23 | R45: N
A46: 10 | B46: 2023-03-17 | D46: SBIN | E46: Buy | F46: 523.5 | G46: 509 | H46: 531.5 | I46: 540-550 | J46: Profit of Rs.8/- | K46: =H46-F46 -> 8 | L46: =(F46*-0.07)/100 -> -0.37 | M46: =(K46+L46)/F46 -> 1.46% | N46: Successful | O46: 2023-03-17 | R46: H
A47: 11 | B47: 2023-03-21 | D47: SBIN | E47: Buy | F47: 517-520 | G47: 505 | I47: 540-550 | J47: Open | R47: H
A48: 12 | B48: 2023-03-23 | D48: ZENSARTECH | E48: Buy | F48: 271 | G48: 264 | H48: 264 | I48: 280-285 | J48: Loss of Rs.7/- | K48: =H48-F48 -> -7 | L48: =(F48*-0.7)/100 -> -1.90 | M48: =(K48+L48)/F48 -> -3.28% | N48: Unsuccessful | O48: 2023-03-27 | R48: H
A49: 13 | B49: 2023-03-28 | D49: MCDOWELL-N | E49: Buy | F49: 746-750 | G49: 725 | I49: 780-800 | J49: Open | R49: H
A50: 14 | B50: 2023-03-28 | D50: AMARAJABAT | E50: Buy | F50: 561.5 | G50: 544 | H50: 569.5 | I50: 590-600 | J50: Profit of Rs.8/- | K50: =H50-F50 -> 8 | L50: =(F50*-0.07)/100 -> -0.39 | M50: =(K50+L50)/F50 -> 1.35% | N50: Successful | O50: 2023-03-28 | R50: H
A51: 15 | B51: 2023-03-28 | D51: GSPL | E51: Buy | F51: 267-269 | G51: 262 | I51: 278-285 | J51: Open | R51: N
A52: 16 | B52: 2023-03-29 | D52: RELIANCE | E52: Buy | F52: 2220-2230 | G52: 2170 | I52: 2300-2350 | J52: Open
A54: CLBS = Closing Basis *** | H54: *
A55: Dividend adjusted <> | F55: Reinitiated $
F56: Revised stoploss #
A58: Master Trade High Risk
A59: Sr.no | B59: Date | D59: Company | E59: Rec | F59: Rec Price | G59: Stop Loss | H59: Call Closed At | I59: Target | J59: Remark | K59: Profit / Loss per share | L59: All charges | M59: Gain / Loss per Lot | N59: Lot | O59: Status | P59: Closed Date
A60: 1 | B60: 2023-02-21 | D60: IGL MAR FUT | E60: Buy | F60: 442.5 | G60: 432 | H60: 432 | I60: 455-463 | J60: Loss of Rs.10.50/- | K60: =H60-F60 -> -10.5 | L60: 100.00 | M60: =(K60*N60)-100 -> -14275.0 | N60: 1350 | O60: Unsuccessful | P60: 2023-03-03 | R60: N
A61: 2 | B61: 2023-02-22 | D61: BATAINDIA MAR FUT | E61: Buy | F61: 1422.5 | G61: 1380 | H61: 1400 | I61: 1470-1480 | J61: Loss of Rs.22.5/- | K61: -22.5 | L61: 100.00 | M61: -6287.5 | N61: 275 | O61: Unsuccessful | P61: 2023-03-29 | R61: H
A62: 3 | B62: 2023-03-01 | D62: LT MAR FUT | E62: Buy | F62: 2130 | G62: 2090 | H62: 2162 | I62: 2170-2200 | J62: Profit of Rs.32/- | K62: =H62-F62 -> 32 | L62: 100.00 | M62: =(K62*N62)-100 -> 9500.0 | N62: 300 | O62: Successful | P62: 2023-03-03 | R62: H
A63: 4 | B63: 2023-03-01 | D63: BHARTIARTL MAR FUT | E63: Buy | F63: 753 | G63: 739 | H63: 762.5 | I63: 770-780 | J63: Profit of Rs.9.50/- | K63: =H63-F63 -> 9.5 | L63: 100.00 | M63: =(K63*N63)-100 -> 8925.0 | N63: 950 | O63: Successful | P63: 2023-03-03 | R63: H
A64: 5 | B64: 2023-03-02 | D64: SIEMENS MAR FUT | E64: Buy | F64: 3202.5 | G64: 3155 | H64: 3155 | I64: 3260-3290 | J64: Loss of Rs.47.5/- | K64: =H64-F64 -> -47.5 | L64: 100.00 | M64: =(K64*N64)-100 -> -13162.5 | N64: 275 | O64: Unsuccessful | P64: 2023-03-02 | R64: N
A65: 6 | B65: 2023-03-10 | D65: RELIANCE MAR FUT | E65: Buy | F65: 2340 | G65: 2290 | H65: 2290 | I65: 2390-2420 | J65: Loss of Rs.50/- | K65: =H65-F65 -> -50 | L65: 100.00 | M65: =(K65*N65)-100 -> -12600.0 | N65: 250 | O65: Unsuccessful | P65: 2023-03-13 | R65: H
A66: 7 | B66: 2023-03-14 | D66: LUPIN MAR FUT | E66: Buy | F66: 659 | G66: 645 | H66: 669.5 | I66: 680-690 | J66: Profit of Rs.10.50/- | K66: 10.5 | L66: 100.00 | M66: 8825.0 | N66: 850 | O66: Successful | P66: 2023-03-16 | R66: N
A67: 8 | B67: 2023-03-14 | D67: NIFTY MAR FUT | E67: Buy | F67: 17150 | G67: 16880 | H67: 16880 | I67: 17400-17500 | J67: Loss of Rs.194/- | K67: =H67-F67 -> -270 | L67: 400.00 | M67: -13600.0 | N67: 50 | O67: Unsuccessful | P67: 2023-03-20 | R67: H
D68: NIFTY 17400 CE 29 MAR | E68: Sell | F68: 105 | H68: 29 | K68: =F68-H68 -> 76 | L68: 100.00 | M68: =76*50 -> 3800.0
A69: 9 | B69: 2023-03-14 | D69: ONGC MAR FUT | E69: Buy | F69: 156 | G69: 152.75 | H69: 152.75 | I69: 160-162 | J69: Loss of Rs.3.25/- | K69: =H69-F69 -> -3.25 | L69: 100.00 | M69: =(K69*N69)-100 -> -12612.5 | N69: 3850 | O69: Unsuccessful | P69: 2023-03-15 | R69: N
A70: 10 | B70: 2023-03-15 | D70: MCDOWELL-N MAR FUT | E70: Buy | F70: 772 | G70: 752 | H70: 786 | I70: 795-805 | J70: Profit of Rs.14/- | K70: 14 | L70: 100.00 | M70: 8650.0 | N70: 625 | O70: Successful | P70: 2023-03-23 | R70: H
A71: 11 | B71: 2023-03-15 | D71: MPHASIS MAR FUT | E71: Buy | F71: 1905 | G71: 1845 | H71: 1845 | I71: 1980-2020 | J71: Loss of Rs.60/- | K71: =H71-F71 -> -60 | L71: 100.00 | M71: =(K71*N71)-100 -> -16600.0 | N71: 275 | O71: Unsuccessful | P71: 2023-03-20 | R71: H
A72: 12 | B72: 2023-03-17 | D72: ICICIBANK MAR FUT | E72: Buy | F72: 832 | G72: 814 | H72: 845 | I72: 850-860 | J72: Profit of Rs.13/- | K72: 13 | L72: 100.00 | M72: 9000.0 | N72: 700 | O72: Successful | P72: 2023-03-21 | R72: H
A73: 13 | B73: 2023-03-20 | D73: LUPIN MAR FUT | E73: Buy | F73: 648 | G73: 633 | H73: 658.5 | I73: 670-680 | J73: Profit of Rs.10.50/- | K73: 10.5 | L73: 100.00 | M73: 8825.0 | N73: 850 | O73: Successful | P73: 2023-03-22 | R73: N
A74: 14 | B74: 2023-03-24 | D74: TATACONSUM APR FUT | E74: Buy | F74: 704-706 | G74: 690 | I74: 725-735 | J74: Open | R74: H
A75: 15 | B75: 2023-03-24 | D75: LUPIN APR FUT | E75: Buy | F75: 650.5 | G75: 635 | H75: 662 | I75: 670-680 | J75: Profit of Rs.11.50/- | K75: =H75-F75 -> 11.5 | L75: 100.00 | M75: =(K75*N75)-100 -> 9675.0 | N75: 850 | O75: Successful | P75: 2023-03-27 | R75: N
A76: 16 | B76: 2023-03-27 | D76: LALPATHLAB APR FUT | E76: Sell | F76: 1870 | G76: 1920 | H76: 1832 | I76: 1800-1760 | J76: Profit of Rs.38/- | K76: =F76-H76 -> 38 | L76: 100.00 | M76: =(K76*N76)-100 -> 9400.0 | N76: 250 | O76: Successful | P76: 2023-03-28 | R76: N
A77: 17 | B77: 2023-03-27 | D77: M&M APR FUT | E77: Buy | F77: 1151-1153 | G77: 1134 | I77: 1175-1185 | J77: Open | R77: H
A78: 18 | B78: 2023-03-28 | D78: LUPIN APR FUT | E78: Buy | F78: 651 | G78: 635 | H78: 660.5 | I78: 670-680 | J78: Profit of Rs.9.50/- | K78: =H78-F78 -> 9.5 | L78: 100.00 | M78: =(K78*N78)-100 -> 7975.0 | N78: 850 | O78: Successful | P78: 2023-03-29 | R78: H
A79: 19 | B79: 2023-03-28 | D79: SIEMENS APR FUT | E79: Buy | F79: 3297.5 | G79: 3250 | H79: 3332 | I79: 3350-3380 | J79: Profit of Rs.34.50/- | K79: 34.5 | L79: 100.00 | M79: 9387.5 | N79: 275 | O79: Successful | P79: 2023-03-29 | R79: N
A83: Master Trade Medium Risk
A84: Sr.no | B84: Date | D84: Company | E84: Rec | F84: Rec Price | G84: Stop Loss | H84: Call Closed At | I84: Target | J84: Remark | K84: Profit/ Loss per lot | L84: All charges | M84: Gain / Loss per Lot | N84: Lot | O84: Status | P84: Closed Date
A85: 1 | B85: 2023-02-28 | D85: LT 2160 CE MAR | E85: Buy | F85: 38 | G85: 21 | H85: 45.5 | I85: 60-70 | J85: Profit of Rs.7.5/- | K85: =H85-F85 -> 7.5 | L85: 100.00 | M85: =(K85*N85)-100 -> 2150.0 | N85: 300 | O85: Successful | P85: 2023-03-02 | R85: N
A86: 2 | B86: 2023-02-28 | D86: RELIANCE 2400 CE MAR | E86: Buy | F86: 39 | H86: 0 | J86: Loss of Rs.19/- | K86: -39 | L86: 100.00 | M86: -4950.0 | N86: 250 | O86: Unsuccessful | P86: 2023-03-29 | R86: H
D87: RELIANCE 2460 CE MAR | E87: Sell | F87: 20 | H87: 0 | K87: 20 | L87: 100.00
A88: 3 | B88: 2023-02-28 | D88: ACC 1900 CE MAR | E88: Buy | F88: 22 | H88: 28.5 | I88: 50-60 | J88: Profit of Rs.6.5/- | K88: =H88-F88 -> 6.5 | L88: 100.00 | M88: =(K88*N88)-100 -> 1525.0 | N88: 250 | O88: Successful | P88: 2023-03-01 | R88: H
A89: 4 | B89: 2023-03-01 | D89: ACC 1900 CE MAR | E89: Buy | F89: 20.5 | H89: 27.5 | I89: 50-60 | J89: Profit of Rs.7/- | K89: =H89-F89 -> 7 | L89: 100.00 | M89: =(K89*N89)-100 -> 1650.0 | N89: 250 | O89: Successful | P89: 2023-03-02 | R89: H
A90: 5 | B90: 2023-03-01 | D90: NIFTY 17400 CE 2-MAR | E90: Buy | F90: 71 | G90: 40 | H90: 91 | I90: 110-140 | J90: Profit of Rs.20/- | K90: =H90-F90 -> 20 | L90: 100.00 | M90: =(K90*N90)-100 -> 900.0 | N90: 50 | O90: Successful | P90: 2023-03-01 | R90: H
A91: 6 | B91: 2023-03-02 | D91: NIFTY 17400 CE 2-MAR | E91: Buy | F91: 19 | G91: 0 | H91: 0 | I91: 50-60 | J91: Loss of Rs.19/- | K91: =H91-F91 -> -19 | L91: 100.00 | M91: =(K91*N91)-100 -> -1050.0 | N91: 50 | O91: Unsuccessful | P91: 2023-03-02 | R91: N
A92: 7 | B92: 2023-03-02 | D92: BANKNIFTY 40400 CE 2-MAR | E92: Buy | F92: 65 | G92: 0 | H92: 95 | I92: 150-200 | J92: Profit of Rs.30/- | K92: 30 | L92: 100.00 | M92: 650.0 | N92: 25 | O92: Successful | P92: 2023-03-02 | R92: H
A93: 8 | B93: 2023-03-03 | D93: POLYCAB 3200 CE MAR | E93: Sell | F93: 43 | G93: 64 | H93: 27 | I93: 20.0-5 | J93: Profit of Rs.16/- | K93: =F93-H93 -> 16 | L93: 100.00 | M93: 4700.0 | N93: 300 | O93: Successful | P93: 2023-03-10 | R93: H
A94: 9 | B94: 2023-03-06 | D94: NIFTY 18000 CE 29-MAR | E94: Sell | F94: 97.5 | G94: 140 | H94: 67.5 | I94: 40-5 | J94: Profit of Rs.30/- | K94: =F94-H94 -> 30 | L94: 100.00 | M94: =(K94*N94)-100 -> 1400.0 | N94: 50 | O94: Successful | P94: 2023-03-08 | R94: H
A95: 10 | B95: 2023-03-06 | D95: NIFTY 17750 PE 9-MAR | E95: Buy | F95: 57 | G95: 18 | H95: 80 | I95: 100-130 | J95: Profit of Rs.23/- | K95: =H95-F95 -> 23 | L95: 100.00 | M95: =(K95*N95)-100 -> 1050.0 | N95: 50 | O95: Successful | P95: 2023-03-06 | R95: N
A96: 11 | B96: 2023-03-08 | D96: IGL 460 CE MAR | E96: Buy | F96: 10.5 | G96: 7 | H96: 6 | I96: 16-18 | J96: Profit of Rs.4.50/- | K96: =H96-F96 -> -4.5 | L96: 100.00 | M96: =(K96*N96)-100 -> -6287.5 | N96: 1375 | O96: Unsuccessful | P96: 2023-03-10 | R96: H
A97: 12 | B97: 2023-03-08 | D97: BATAINDIA 1420 CE MAR | E97: Buy | F97: 29 | G97: 13 | H97: 37.5 | I97: 45-50 | J97: Profit of Rs.8.5/- | K97: =H97-F97 -> 8.5 | L97: 100.00 | M97: =(K97*N97)-100 -> 2237.5 | N97: 275 | O97: Successful | P97: 2023-03-08 | R97: H
A98: 13 | B98: 2023-03-08 | D98: NIFTY 18000 CE 29-MAR | E98: Sell | F98: 94 | G98: 140 | H98: 73 | I98: 1.00 | J98: Profit of Rs.21/- | K98: =F98-H98 -> 21 | L98: 100.00 | M98: 950.0 | N98: 50 | O98: Successful | P98: 2023-03-09 | R98: H
A99: 14 | B99: 2023-03-09 | D99: BANKNIFTY 41500 CE 9-MAR | E99: Buy | F99: 65 | H99: 125 | I99: 150-200 | J99: Profit of Rs.60/- | K99: =H99-F99 -> 60 | L99: 100.00 | M99: 1400.0 | N99: 25 | O99: Successful | P99: 2023-03-09 | R99: N
A100: 15 | B100: 2023-03-09 | D100: RELIANCE 2380 CE MAR | E100: Buy | F100: 50 | G100: 30 | H100: 30 | I100: 80-90 | J100: Loss of Rs.20/- | K100: -20 | L100: 100.00 | M100: -5100.0 | N100: 250 | O100: Unsuccessful | P100: 2023-03-10 | R100: H
A101: 16 | B101: 2023-03-09 | D101: NIFTY 17650 CE 9-MAR | E101: Buy | F101: 45 | G101: 9 | H101: 67 | I101: 90-110 | J101: Profit of Rs.22/- | K101: =H101-F101 -> 22 | L101: 100.00 | M101: =(K101*N101)-100 -> 1000.0 | N101: 50 | O101: Successful | P101: 2023-03-09 | R101: H
A102: 17 | B102: 2023-03-09 | D102: BATAINDIA 1440 CE MAR | E102: Buy | F102: 27.5 | G102: 13 | H102: 13 | I102: 45-60 | J102: Loss of Rs.14/- | K102: -14.5 | L102: 100.00 | M102: -4087.5 | N102: 275 | O102: Unsuccessful | P102: 2023-03-20 | R102: H
A103: 18 | B103: 2023-03-09 | D103: BANKNIFTY 41400 CE 9-MAR | E103: Buy | F103: 45 | G103: 0 | H103: 0 | I103: 80-100 | J103: Loss of Rs.45/- | K103: =H103-F103 -> -45 | L103: 100.00 | M103: =(K103*N103)-100 -> -1225.0 | N103: 25 | O103: Unsuccessful | P103: 2023-03-09 | R103: N
A104: 19 | B104: 2023-03-10 | D104: NIFTY 17500 CE 16-MAR | E104: Buy | F104: 62.5 | G104: 28 | H104: 64 | I104: 90-110 | J104: Profit of Rs.1.5/- | K104: 1.5 | L104: 100.00 | M104: -25.0 | N104: 50 | O104: Neutral | P104: 2023-03-10 | R104: H
A105: 20 | B105: 2023-03-10 | D105: LT 2160 CE MAR | E105: Buy | F105: 39 | G105: 21 | H105: 48.5 | I105: 60-75 | J105: Profit of Rs.9.5/- | K105: =H105-F105 -> 9.5 | L105: 100.00 | M105: =(K105*N105)-100 -> 2750.0 | N105: 300 | O105: Successful | P105: 2023-03-13 | R105: H
A106: 21 | B106: 2023-03-10 | D106: MARUTI 8600 CE MAR | E106: Buy | F106: 138 | G106: 90 | H106: 163.5 | I106: 180-220 | J106: Profit of Rs.25.5/- | K106: =H106-F106 -> 25.5 | L106: 100.00 | M106: =(K106*N106)-100 -> 2450.0 | N106: 100 | O106: Successful | P106: 2023-03-10 | R106: N
A107: 22 | B107: 2023-03-10 | D107: MARUTI 8600 CE MAR | E107: Buy | F107: 131 | G107: 80 | H107: 154 | I107: 170-200 | J107: Profit of Rs.23/- | K107: =H107-F107 -> 23 | L107: 100.00 | M107: =(K107*N107)-100 -> 2200.0 | N107: 100 | O107: Successful | P107: 2023-03-10 | R107: N
A108: 23 | B108: 2023-03-13 | D108: LALPATHLAB 1800 PE MAR | E108: Buy | F108: 32 | G108: 14 | H108: 52 | I108: 50-65 | J108: Profit of Rs.23/- | K108: =H108-F108 -> 20 | L108: 100.00 | M108: =(K108*N108)-100 -> 4900.0 | N108: 250 | O108: Successful | P108: 2023-03-13 | R108: N
A109: 24 | B109: 2023-03-13 | D109: TECHM 1180 CE 29-MAR | E109: Sell | F109: 16 | G109: 25 | H109: 10 | I109: 1.00 | J109: Profit of Rs.6/- | K109: =F109-H109 -> 6 | L109: 100.00 | M109: 3500.0 | N109: 600 | O109: Successful | P109: 2023-03-13 | R109: H
A110: 25 | B110: 2023-03-13 | D110: LT 2160 CE MAR | E110: Buy | F110: 41 | G110: 23 | H110: 48.5 | I110: 60-75 | J110: Profit of Rs.7.5/- | K110: =H110-F110 -> 7.5 | L110: 100.00 | M110: 2150.0 | N110: 300 | O110: Successful | P110: 2023-03-14 | R110: N
A111: 26 | B111: 2023-03-13 | D111: NIFTY 17500 CE 16-MAR | E111: Buy | F111: 38 | G111: 8 | H111: 9.5 | I111: 80-100 | J111: Loss of Rs.28.5/- | K111: -28.5 | L111: 100.00 | M111: -2950.0 | N111: 100 | O111: Unsuccessful | P111: 2023-03-14 | R111: H
A112: 27 | B112: 2023-03-13 | D112: ULTRACEMCO 7200 CE MAR | E112: Buy | F112: 128 | G112: 90 | H112: 90 | I112: 170-200 | J112: Loss of Rs.38/- | K112: =H112-F112 -> -38 | L112: 100.00 | M112: =(K112*N112)-100 -> -3900.0 | N112: 100 | O112: Unsuccessful | P112: 2023-03-14 | R112: N
A113: 28 | B113: 2023-03-13 | D113: BANKNIFTY 40100 CE 16-MAR | E113: Buy | F113: 250 | G113: 130 | H113: 130 | I113: 400-500 | J113: Loss of Rs.120/- | K113: =H113-F113 -> -120 | L113: 100.00 | M113: =(K113*N113)-100 -> -3100.0 | N113: 25 | O113: Unsuccessful | P113: 2023-03-13 | R113: H
A114: 29 | B114: 2023-03-14 | D114: LT 2160 CE MAR | E114: Buy | F114: 39 | G114: 21 | H114: 49 | I114: 60-75 | J114: Profit of Rs.10/- | K114: 10 | L114: 100.00 | M114: 2900.0 | N114: 300 | O114: Successful | P114: 2023-03-15 | R114: N
A115: 30 | B115: 2023-03-14 | D115: MARUTI 8500 CE MAR | E115: Buy | F115: 145 | G115: 95 | H115: 165 | I115: 200-240 | J115: Profit of Rs.20/- | K115: =H115-F115 -> 20 | L115: 100.00 | M115: =(K115*N115)-100 -> 1900.0 | N115: 100 | O115: Successful | P115: 2023-03-14 | R115: H
A116: 31 | B116: 2023-03-14 | D116: MARUTI 8500 CE MAR | E116: Buy | F116: 145 | G116: 95 | H116: 163 | I116: 200-240 | J116: Profit of Rs.18/- | K116: 18 | L116: 100.00 | M116: 1700.0 | N116: 100 | O116: Successful | P116: 2023-03-14 | R116: H
A117: 32 | B117: 2023-03-14 | D117: BANKNIFTY 39600 CE 16 MAR | E117: Buy | F117: 285 | G117: 150 | H117: 425 | I117: 500.00 | J117: Profit of Rs.140/- | K117: 140 | L117: 100.00 | M117: 3400.0 | N117: 25 | O117: Successful | P117: 2023-03-15 | R117: N
A118: 33 | B118: 2023-03-15 | D118: BANKNIFTY 39500 CE 16 MAR | E118: Buy | F118: 260 | G118: 130 | H118: 315 | I118: 400-500 | J118: Profit of Rs.55/- | K118: =H118-F118 -> 55 | L118: 100.00 | M118: =(K118*N118)-100 -> 1275.0 | N118: 25 | O118: Successful | P118: 2023-03-15 | R118: N
A119: 34 | B119: 2023-03-15 | D119: M&M 1180 CE MAR | E119: Buy | F119: 19.5 | G119: 13 | H119: 23.5 | I119: 30-35 | J119: Profit of Rs.4/- | K119: 4 | L119: 100.00 | M119: 2700.0 | N119: 700 | O119: Successful | P119: 2023-03-15 | R119: H
A120: 35 | B120: 2023-03-15 | D120: BANKNIFTY 39500 CE 16 MAR | E120: Buy | F120: 235 | G120: 120 | H120: 120 | I120: 400-500 | J120: Loss of Rs.115/- | K120: =H120-F120 -> -115 | L120: 100.00 | M120: =(K120*N120)-100 -> -2975.0 | N120: 25 | O120: Unsuccessful | P120: 2023-03-15 | R120: N
A121: 36 | B121: 2023-03-16 | D121: LT 2160 CE MAR | E121: Buy | F121: 30 | G121: 13 | H121: 37.5 | I121: 55-70 | J121: Profit of Rs.7.5/- | K121: =H121-F121 -> 7.5 | L121: 100.00 | M121: 2150.0 | N121: 300 | O121: Successful | P121: 2023-03-16 | R121: N
A122: 37 | B122: 2023-03-16 | D122: NIFTY 16950 CE 16-MAR | E122: Buy | F122: 26 | G122: 0 | H122: 46 | I122: 50-70 | J122: Profit of Rs.20/- | K122: 20 | L122: 100.00 | M122: =(K122*N122)-100 -> 900.0 | N122: 50 | O122: Successful | P122: 2023-03-16 | R122: N
A123: 38 | B123: 2023-03-17 | D123: BANKNIFTY 39500 CE 23-MAR | E123: Buy | F123: 350 | G123: 240 | H123: 240 | I123: 500-600 | J123: Loss of Rs.110/- | K123: =H123-F123 -> -110 | L123: 100.00 | M123: -2850.0 | N123: 25 | O123: Unsuccessful | P123: 2023-03-17 | R123: H
A124: 39 | B124: 2023-03-17 | D124: M&M 1180 CE MAR | E124: Buy | F124: 18 | G124: 12 | H124: 21.5 | I124: 25-30 | J124: Profit of Rs.3.5/- | K124: 3.5 | L124: 100.00 | M124: 2350.0 | N124: 700 | O124: Successful | P124: 2023-03-17 | R124: H
A125: 40 | B125: 2023-03-17 | D125: BHARTIARTL 750 CE MAR | E125: Buy | F125: 8.75 | G125: 3.5 | H125: 11.1 | I125: 15-18 | J125: Profit of Rs.2.35/- | K125: =H125-F125 -> 2.35 | L125: 100.00 | M125: =(K125*N125)-100 -> 2132.5 | N125: 950 | O125: Successful | P125: 2023-03-17 | R125: H
A126: 41 | B126: 2023-03-20 | D126: M&M 1180 CE MAR | E126: Buy | F126: 12.5 | G126: 5 | H126: 16.5 | I126: 20-25 | J126: Profit of Rs.4/- | K126: 4 | L126: 100.00 | M126: 2700.0 | N126: 700 | O126: Successful | P126: 2023-03-21 | R126: H
A127: 42 | B127: 2023-03-20 | D127: MCDOWELL-N 780 CE MAR | E127: Buy | F127: 7.5 | H127: 11 | I127: 15-20 | J127: Profit of Rs.3.5/- | K127: 3.5 | L127: 100.00 | M127: 2087.5 | N127: 625 | O127: Successful | P127: 2023-03-23 | R127: H
A128: 43 | B128: 2023-03-20 | D128: LT 2160 CE MAR | E128: Buy | F128: 35 | G128: 19 | H128: 43 | I128: 50-60 | J128: Profit of Rs.8/- | K128: =H128-F128 -> 8 | L128: 100.00 | M128: =(K128*N128)-100 -> 2300.0 | N128: 300 | O128: Successful | P128: 2023-03-20 | R128: N
A129: 44 | B129: 2023-03-20 | D129: NIFTY 16950 CE 23-MAR | E129: Buy | F129: 87 | G129: 40 | H129: 109 | I129: 140-160 | J129: Profit of Rs.22/- | K129: 22 | L129: 100.00 | M129: 1000.0 | N129: 50 | O129: Successful | P129: 2023-03-20 | R129: H
A130: 45 | B130: 2023-03-21 | D130: MARUTI 8300 CE MAR | E130: Buy | F130: 101 | G130: 55 | H130: 122 | I130: 160-190 | J130: Profit of Rs.21/- | K130: 21 | L130: 100.00 | M130: 2000.0 | N130: 100 | O130: Successful | P130: 2023-03-23 | R130: N
A131: 46 | B131: 2023-03-21 | D131: HINDUNILVR 2500 CE MAR | E131: Buy | F131: 24 | G131: 9 | H131: 9 | I131: 40-50 | J131: Loss of Rs.15/- | K131: -15 | L131: 100.00 | M131: -4600.0 | N131: 300 | O131: Unsuccessful | P131: 2023-03-27 | R131: H
A132: 47 | B132: 2023-03-22 | D132: LT 2220 CE MAR | E132: Buy | F132: 26.5 | G132: 10 | H132: 34 | I132: 45-55 | J132: Profit of Rs.7.5/- | K132: =H132-F132 -> 7.5 | L132: 100.00 | M132: =(K132*N132)-100 -> 2150.0 | N132: 300 | O132: Successful | P132: 2023-03-23 | R132: N
A133: 48 | B133: 2023-03-22 | D133: NIFTY 17100 PE 23-MAR | E133: Buy | F133: 52.5 | G133: 10 | H133: 72.5 | I133: 100-140 | J133: Profit of Rs.22/- | K133: =H133-F133 -> 20 | L133: 100.00 | M133: =(K133*N133)-100 -> 900.0 | N133: 50 | O133: Successful | P133: 2023-03-23 | R133: N
A134: 49 | B134: 2023-03-23 | D134: NIFTY 17200 CE 29-MAR | E134: Buy | F134: 77 | G134: 30 | H134: 97 | I134: 120-140 | J134: Profit of Rs.22/- | K134: 20 | L134: 100.00 | M134: 900.0 | N134: 50 | O134: Successful | P134: 2023-03-23 | R134: H
A135: 50 | B135: 2023-03-23 | D135: MCDOWELL-N 780 CE MAR | E135: Buy | F135: 7.5 | H135: 0 | I135: 15-20 | J135: Loss of Rs.7.5/- | K135: -7.5 | L135: 100.00 | M135: -4787.5 | N135: 625 | O135: Unsuccessful | P135: 2023-03-29 | R135: H
A136: 51 | B136: 2023-03-23 | D136: M&M 1180 CE MAR | E136: Buy | F136: 9.5 | G136: 3 | H136: 3.8 | I136: 18-23 | J136: Loss of Rs.5.7/- | K136: =H136-F136 -> -5.7 | L136: 100.00 | M136: =(K136*N136)-100 -> -4090.0 | N136: 700 | O136: Unsuccessful | P136: 2023-03-24 | R136: H
A137: 52 | B137: 2023-03-23 | D137: LT 2220 CE MAR | E137: Buy | F137: 23 | G137: 6 | H137: 6 | I137: 40-50 | J137: Loss of Rs.17/- | K137: =H137-F137 -> -17 | L137: 100.00 | M137: =(K137*N137)-100 -> -5200.0 | N137: 300 | O137: Unsuccessful | P137: 2023-03-24 | R137: N
A138: 53 | B138: 2023-03-23 | D138: RELIANCE 2260 CE MAR | E138: Buy | F138: 23 | G138: 4 | H138: 8.5 | I138: 50-60 | J138: Loss of Rs.14.5/- | K138: -14.5 | L138: 100.00 | M138: -3725.0 | N138: 250 | O138: Unsuccessful | P138: 2023-03-28 | R138: H
A139: 54 | B139: 2023-03-23 | D139: NIFTY 17100 CE 23-MAR | E139: Buy | F139: 9 | H139: 0 | I139: 30-40 | J139: Loss of Rs.9/- | K139: =H139-F139 -> -9 | L139: 100.00 | M139: =(K139*N139)-100 -> -550.0 | N139: 50 | O139: Unsuccessful | P139: 2023-03-23 | R139: N
A140: 55 | B140: 2023-03-24 | D140: NIFTY 17100 CE MAR | E140: Buy | F140: 67.5 | G140: 35 | H140: 89 | I140: 110-130 | J140: Profit of Rs.21.5/- | K140: 21.5 | L140: 100.00 | M140: 975.0 | N140: 50 | O140: Successful | P140: 2023-03-27 | R140: H
A141: 56 | B141: 2023-03-27 | D141: MARUTI 8500 CE APR | E141: Buy | F141: 126-130 | G141: 78 | I141: 180-220 | J141: Open | R141: N
A142: 57 | B142: 2023-03-28 | D142: NIFTY 17000 CE MAR | E142: Buy | F142: 64 | G142: 35 | H142: 38 | I142: 110-130 | J142: Loss of Rs.26/- | K142: =H142-F142 -> -26 | L142: 100.00 | M142: =(K142*N142)-100 -> -1400.0 | N142: 50 | O142: Unsuccessful | P142: 2023-03-28 | R142: H
A143: 58 | B143: 2023-03-29 | D143: BHARTIARTL 760 CE APR | E143: Buy | F143: 10.0-11 | G143: 5 | I143: 18-22 | J143: Open
A145: Techno -Funda (positional)
A146: Sr.no | B146: Date | D146: Company | E146: Rec | F146: Rec Price | G146: Stop Loss*** | H146: Call Closed At | I146: Target | J146: Remark | K146: Profit / Loss per Share/Lot | L146: All charges | M146: Net Gain / Loss % | N146: Status | O146: Closed Date | P146: Market Closing Price
A147: 1 | B147: 2022-10-06 | D147: AMBIKCO | E147: Buy | F147: 1420-1620 | G147: 1220 | I147: 2000-2300 | J147: Open | R147: H
A149: CLBS = Closing Basis *** | F149: Reinitiated $
A150: Dividend adjusted <> | F150: Revised stoploss # | H150: .................
B154: Investment Idea
A155: Sr.no | B155: Date | D155: Company | E155: Rec | F155: Rec Price | G155: Point of Review | H155: Close Rate | I155: Target | J155: Remark | K155: Profit / Loss per Share | L155: Gain / Loss % | M155: Status | N155: Closed Date
A156: 1 | B156: 2013-11-01 | D156: L&T Finance Holding | E156: Accu | F156: 82.00 | G156: - | H156: 100 | I156: 100.00 | J156: Target Achieved | K156: =H156-F156 -> 18.00 | L156: =K156/F156 -> 21.95% | M156: Successful | N156: 2016-10-14
A157: 2 | B157: 2014-06-04 | D157: Finolex Inds | E157: Buy | F157: 257.00 | G157: - | H157: 300 | I157: 300.00 | J157: Target Achieved | K157: 43.00 | L157: 16.73% | M157: Successful | N157: 2014-07-02
A158: 3 | B158: 2014-07-08 | D158: JK Cement | E158: Buy | F158: 393.00 | G158: - | H158: 468 | I158: 468.00 | J158: Target Achieved | K158: 75.00 | L158: 19.08% | M158: Successful | N158: 2014-08-12
A159: 4 | B159: 2014-08-06 | D159: Finolex Cables | E159: Buy | F159: 205.00 | G159: - | H159: 275 | I159: 250.00 | J159: Target Achieved | K159: 70.00 | L159: 34.15% | M159: Successful | N159: 2014-11-19
A160: 5 | B160: 2014-09-04 | D160: Exide Inds | E160: Buy | F160: 162.00 | G160: - | H160: 190 | I160: 190.00 | J160: Target Achieved | K160: 28.00 | L160: 17.28% | M160: Successful | N160: 2015-01-02
A161: 6 | B161: 2014-09-04 | D161: Deepak Nitrite | E161: Buy | F161: 75.00 | G161: - | H161: 91.5 | I161: 95-100 | J161: Profit of Rs.16.50/- | K161: 16.50 | L161: 22.00% | M161: Successful | N161: 2014-11-11
A162: 7 | B162: 2014-10-01 | D162: Mercks | E162: Buy | F162: 850.00 | G162: - | H162: 982.5 | I162: 1050.00 | J162: Profit of Rs.132.50/- | K162: 132.50 | L162: 15.59% | M162: Successful | N162: 2015-02-04
A163: 8 | B163: 2014-10-01 | D163: Grindwell Norton | E163: Buy | F163: 475.00 | G163: - | H163: 515 | I163: 600.00 | J163: Profit of Rs.40/- | K163: 40.00 | L163: 8.42% | M163: Successful | N163: 2014-10-27
A164: 9 | B164: 2014-10-01 | D164: Snowman Logistics | E164: Buy | F164: 86.00 | G164: - | H164: 99 | I164: 140.00 | J164: Profit of Rs.13.00/- | K164: 13.00 | L164: 15.12% | M164: Successful | N164: 2014-10-27
A165: 10 | B165: 2014-10-14 | D165: Birla Corp | E165: Buy | F165: 496.60 | G165: - | H165: 621 | I165: 580.00 | J165: Target Achieved | K165: 124.40 | L165: 25.05% | M165: Successful | N165: 2016-08-23
A166: 11 | B166: 2014-10-14 | D166: Ultratech Cem | E166: Buy | F166: 2481.90 | G166: - | H166: 2840 | I166: 2870.00 | J166: Profit of Rs.358.10/- | K166: 358.10 | L166: 14.43% | M166: Successful | N166: 2015-01-13
A167: 12 | B167: 2014-10-16 | D167: Sintex Inds | E167: Buy | F167: 84.50 | G167: - | H167: 93 | I167: 110.00 | J167: Profit of Rs.8.50/- | K167: 8.50 | L167: 10.06% | M167: Successful | N167: 2014-10-27
A168: 13 | B168: 2014-10-16 | D168: HSIL | E168: Buy | F168: 401.00 | G168: - | H168: 428 | I168: 450.00 | J168: Profit of Rs.27.00/- | K168: 27.00 | L168: 6.73% | M168: Successful | N168: 2015-01-16
A169: 14 | B169: 2014-10-16 | D169: Eveready Inds | E169: Buy | F169: 101.00 | G169: - | H169: 112 | I169: 120.00 | J169: Profit of Rs.11.00/- | K169: 11.00 | L169: 10.89% | M169: Successful | N169: 2014-10-27
A170: 15 | B170: 2014-11-11 | D170: Pennar Inds | E170: Buy | F170: 59.00 | G170: - | H170: 76 | I170: 76.00 | J170: Target Achieved | K170: 17.00 | L170: 28.81% | M170: Successful | N170: 2017-10-24
A171: 16 | B171: 2014-11-11 | D171: Snowman Logistics | E171: Buy | F171: 99.00 | G171: - | H171: 120 | I171: 120.00 | J171: Profit of Rs.21/- | K171: 21.00 | L171: 21.21% | M171: Successful | N171: 2014-11-17
A172: 17 | B172: 2014-11-13 | D172: Dharamsi Morarji Chem | E172: Buy | F172: 22.00 | G172: - | H172: 33.55 | I172: 32.00 | J172: Profit of Rs 11.55/- | K172: 11.55 | L172: 52.50% | M172: Successful | N172: 2015-07-03
A173: 18 | B173: 2014-12-03 | D173: Tatachem | E173: Buy | F173: 440.00 | G173: - | H173: 520 | I173: 520.00 | J173: Profit of Rs 80.00/- | K173: 80.00 | L173: 18.18% | M173: Successful | N173: 2015-07-23
A174: 19 | B174: 2014-12-03 | D174: Advanta | E174: Buy | F174: 360.00 | G174: - | H174: 427 | I174: 425.00 | J174: Profit of Rs.67.00/- | K174: 67.00 | L174: 18.61% | M174: Successful | N174: 2015-02-23
A175: 20 | B175: 2015-01-08 | D175: GDL | E175: Buy | F175: 360.00 | G175: - | H175: 455 | I175: 420.00 | J175: Profit of Rs.95.00/- | K175: 95.00 | L175: 26.39% | M175: Successful | N175: 2015-01-20
A176: 21 | B176: 2015-01-08 | D176: NRB Bearing | E176: Buy | F176: 130.00 | H176: 175.5 | I176: 165.00 | J176: Profit of Rs 45.50/- | K176: 45.50 | L176: 35.00% | M176: Successful | N176: 2017-12-19
A177: 22 | B177: 2015-02-05 | D177: GSFC | E177: Accu | F177: 98.00 | H177: 120 | I177: 120.00 | J177: Target Achieved | K177: 22.00 | L177: 22.45% | M177: Successful | N177: 2017-01-18
A178: 23 | B178: 2015-02-05 | D178: Sundrmfast | E178: Accu | F178: 196.00 | H178: 262 | I178: 255.00 | J178: Target Achieved | K178: 66.00 | L178: 33.67% | M178: Successful | N178: 2016-08-17
A179: 24 | B179: 2015-03-04 | D179: GPPL | E179: Accu | F179: 235 | H179: 77.00 | I179: 280-285 | J179: Loss of Rs.158/- | K179: -158.00 | L179: -67.23% | M179: Unsuccessful | N179: 2019-02-26
A180: 25 | B180: 2015-03-04 | D180: ORIENTCEM | E180: Accu | F180: 185.00 | H180: 224 | I180: 220-225 | J180: Target Achieved | K180: 39.00 | L180: 21.08% | M180: Successful | N180: 2016-10-04
A181: 26 | B181: 2015-03-27 | D181: PFS | E181: Accu | F181: 49.5 | H181: 15.85 | I181: 67.00 | J181: Loss of Rs.33.65/- | K181: -33.65 | L181: -68% | M181: Unsuccessful | N181: 2019-06-11
A182: 27 | B182: 2015-03-30 | D182: Walchandnagar Ind Ltd | E182: Accu | F182: 183.50 | H182: 219 | I182: 218.00 | J182: Profit of Rs.35.50/- | K182: 35.50 | L182: 19.35% | M182: Successful | N182: 2015-04-09
A183: 28 | B183: 2015-04-20 | D183: Kalpataru Power Transmission Ltd | E183: Accu | F183: =(227+237)/2 -> 232.00 | H183: 298 | I183: 298.00 | J183: Target Achieved | K183: 66.00 | L183: 28.45% | M183: Successful | N183: 2017-03-29
A184: 29 | B184: 2015-05-04 | D184: Mastek Ltd | E184: Buy | F184: 385.00 | H184: =212.5+331 -> 543.5 | I184: 510.00 | J184: Profit of Rs 158.50/- | K184: 158.50 | L184: 41.17% | M184: Successful | N184: 2015-08-19
A185: 30 | B185: 2015-05-04 | D185: Suprajit Eng | E185: Buy | F185: 115.50 | H185: 146 | I185: 142.00 | J185: Profit of Rs 30.50/- | K185: 30.50 | L185: 26.41% | M185: Successful | N185: 2015-07-17
A186: 31 | B186: 2015-05-27 | D186: TCI | E186: Buy | F186: 237.50 | H186: 279.5 | I186: 278.00 | J186: Target Achieved | K186: 42.00 | L186: 17.68% | M186: Successful | N186: 2015-08-06
A187: 32 | B187: 2015-06-19 | D187: HSIL | E187: Accu | F187: 340.00 | H187: 448 | I187: 448.00 | J187: Target Achieved | K187: 108.00 | L187: 31.76% | M187: Successful | N187: 2017-10-10
A188: 33 | B188: 2015-07-06 | D188: Capital First | E188: Accu | F188: 390.00 | H188: 460 | I188: 460.00 | J188: Target Achieved | K188: 70.00 | L188: 17.95% | M188: Successful | N188: 2016-04-18
A189: 34 | B189: 2015-07-10 | D189: Dolphin OffShore | E189: Accu | F189: 122.5 | H189: 61.00 | I189: 172.00 | J189: Loss of Rs.61.50/- | K189: -61.50 | L189: -50.20% | M189: Unsuccessful | N189: 2018-08-21
A190: 35 | B190: 2015-08-03 | D190: Allcargo logistics | E190: Accu | F190: 297.50 | H190: 350 | I190: 360.00 | J190: Profit of Rs 52.50/- | K190: 52.50 | L190: 17.65% | M190: Successful | N190: 2015-08-16
A191: 36 | B191: 2015-08-03 | D191: Camline Fine | E191: Accu | F191: 115.50 | H191: 149 | I191: 140.00 | J191: Profit of Rs 33.50/- | K191: 33.50 | L191: 29.00% | M191: Successful | N191: 2017-01-05
A192: 37 | B192: 2015-09-04 | D192: TCI | E192: Accu | F192: 226.00 | H192: 292 | I192: 292.00 | J192: Target Achieved | K192: 66.00 | L192: 29.20% | M192: Successful | N192: 2015-10-09
A193: 38 | B193: 2015-09-07 | D193: Kalpataru Power Transmission Ltd | E193: Accu | F193: 232.50 | H193: 312.5 | I193: 310.00 | J193: Target Achieved | K193: 80.00 | L193: 34.41% | M193: Successful | N193: 2017-03-29
A194: 39 | B194: 2015-09-21 | D194: LLOYD ELECTRIC & ENG LTD | E194: Accu | F194: 196.50 | H194: 238 | I194: 238.00 | J194: Target Achieved | K194: 41.50 | L194: 21.12% | M194: Successful | N194: 2015-10-14
A195: 40 | B195: 2015-09-24 | D195: L&T Finance Holding | E195: Accu | F195: 65.00 | H195: 82 | I195: 82.00 | J195: Target Achieved | K195: 17.00 | L195: 26.15% | M195: Successful | N195: 2016-07-27
A196: 41 | B196: 2015-10-14 | D196: KEC International ltd | E196: Accu | F196: 144.00 | H196: 182.5 | I196: 181.00 | J196: Target Achieved | K196: 38.50 | L196: 26.74% | M196: Successful | N196: 2017-03-23
A197: 42 | B197: 2015-10-14 | D197: Gruh Finance | E197: Accu | F197: 264.00 | H197: 311 | I197: 311.00 | J197: Target Achieved | K197: 47.00 | L197: 17.80% | M197: Successful | N197: 2016-08-22
A198: 43 | B198: 2015-11-10 | D198: Pidilitind | E198: Buy | F198: 549.50 | H198: 630 | I198: 630.00 | J198: Target Achieved | K198: 80.50 | L198: 14.65% | M198: Successful | N198: 2016-02-19
A199: 44 | B199: 2015-12-04 | D199: Zensar Technology | E199: Accu | F199: 1027.50 | H199: 1315 | I199: 1250.00 | J199: Target Achieved | K199: 287.50 | L199: 27.98% | M199: Successful | N199: 2018-05-24
A200: 45 | B200: 2015-12-29 | D200: Vinati Organics Ltd | E200: Accu | F200: 465.00 | H200: 540 | I200: 540.00 | J200: Target Achieved | K200: 75.00 | L200: 16.13% | M200: Successful | N200: 2016-06-09
A201: 46 | B201: 2016-01-11 | D201: GSFC | E201: Buy | F201: 81.00 | H201: 110 | I201: 110.00 | J201: Target Achieved | K201: 29.00 | L201: 35.80% | M201: Successful | N201: 2017-01-10
A202: 47 | B202: 2016-01-13 | D202: SSWL | E202: Buy | F202: 417.50 | H202: 547 | I202: 535.00 | J202: Target Achieved | K202: 129.50 | L202: 31.02% | M202: Successful | N202: 2016-07-27
A203: 48 | B203: 2016-02-08 | D203: Persistent System Ltd | E203: Accu | F203: 650.00 | H203: 800 | I203: 800.00 | J203: Target Achieved | K203: 150.00 | L203: 23.08% | M203: Successful | N203: 2018-02-23
A204: 49 | B204: 2016-03-04 | D204: UPL | E204: Accu | F204: 437.50 | H204: 504.5 | I204: 522.00 | J204: Profit of Rs.67/- | K204: 67.00 | L204: 15.31% | M204: Successful | N204: 2016-04-20
A205: 50 | B205: 2016-03-09 | D205: Ashoka Buildcon Ltd | E205: Accu | F205: 189.50 | H205: 218 | I205: 218.00 | J205: Target Achieved | K205: 28.50 | L205: 15.04% | M205: Successful | N205: 2017-10-26
A206: 51 | B206: 2016-04-11 | D206: PTC INDIA FIN SERV LTD | E206: Accu | F206: 36.5 | H206: 15.85 | I206: 60.00 | J206: Loss of Rs.20.65/- | K206: -20.65 | L206: -56.58% | M206: Unsuccessful | N206: 2019-06-11
A207: 52 | B207: 2016-04-12 | D207: CAMLINFINE $ | E207: Accu | F207: 93.00 | H207: 149 | I207: 140.00 | J207: Profit of Rs 56/- | K207: 56.00 | L207: 60.22% | M207: Successful | N207: 2017-01-05
A208: 53 | B208: 2016-04-12 | D208: Greaves Cotton Ltd. | E208: Accu | F208: 130.00 | H208: 150 | I208: 150-155 | J208: Target Achieved | K208: 20.00 | L208: 15.38% | M208: Successful | N208: 2016-07-13
A209: 54 | B209: 2016-04-13 | D209: DHFL | E209: Accu | F209: 196.00 | H209: 299 | I209: 299.00 | J209: Target Achieved | K209: 103.00 | L209: 52.55% | M209: Successful | N209: 2016-09-07
A210: 55 | B210: 2016-04-13 | D210: Magma | E210: Accu | F210: 88.00 | H210: 103 | I210: 103.00 | J210: Target Achieved | K210: 15.00 | L210: 17.05% | M210: Successful | N210: 2016-06-09
A211: 56 | B211: 2016-05-02 | D211: KEC International ltd $ | E211: Accu | F211: 127.50 | H211: 148 | I211: 148-150 | J211: Target Achieved | K211: =H211-F211 -> 20.50 | L211: =K211/F211 -> 16.08% | M211: Successful | N211: 2016-07-13
A212: 57 | B212: 2016-05-03 | D212: Mindtree | E212: Accu | F212: 675.00 | H212: 815 | I212: 790-800 | J212: Target Achieved | K212: =H212-F212 -> 140.00 | L212: =K212/F212 -> 20.74% | M212: Successful | N212: 2018-02-23
A213: 58 | B213: 2016-06-01 | D213: Atulauto | E213: Accu | F213: 500 | H213: 232.50 | I213: 565-570 | J213: Loss of Rs.267.50 /- | K213: =H213-F213 -> -267.50 | L213: =K213/F213 -> -53.50% | M213: Unsuccessful | N213: 2019-09-27
A214: 59 | B214: 2016-06-06 | D214: TRITURBINE | E214: Accu | F214: 110.00 | H214: 126.5 | I214: 125.00 | J214: Profit of Rs.16.50/- | K214: =H214-F214 -> 16.50 | L214: =K214/F214 -> 15.00% | M214: Successful | N214: 2016-07-01
A215: 60 | B215: 2016-06-17 | D215: Pennar Industries Ltd | E215: Accu | F215: 44.00 | H215: 69.5 | I215: 69.50 | J215: Profit of Rs.25.50/- | K215: =H215-F215 -> 25.50 | L215: =K215/F215 -> 57.95% | M215: Successful | N215: 2017-08-30
A216: 61 | B216: 2016-06-28 | D216: EVEREADY | E216: Accu | F216: 262.50 | H216: 340 | I216: 333.00 | J216: Profit of Rs.77.50/- | K216: 77.50 | L216: 29.52% | M216: Successful | N216: 2017-10-09
A217: 62 | B217: 2016-06-28 | D217: FIEMIND | E217: Accu | F217: 840.00 | H217: 1230 | I217: 1230.00 | J217: Target Achieved | K217: 390.00 | L217: 46.43% | M217: Successful | N217: 2016-10-06
A218: 63 | B218: 2016-07-05 | D218: Bajaj Corp Ltd | E218: Accu | F218: 395 | H218: =(468.5+342.5)/2 -> 405.50 | I218: 510.00 | J218: Profit of Rs.10.50/- | K218: =H218-F218 -> 10.50 | L218: =K218/F218 -> 3% | M218: Neutral | N218: 2019-05-21
A219: 64 | B219: 2016-08-02 | D219: GPPL $ | E219: Buy | F219: =169.5-12.8 -> 156.7 | H219: 77.00 | I219: 198-200 | J219: Loss of Rs.79.7/- | K219: -79.70 | L219: -50.86% | M219: Unsuccessful | N219: 2019-02-26
... 121 more rows
